{"text_format":"2","workbook":"xlsx","n_sheets":1,"sheets":["N 1 աղյուսակ N7"],"not_rendered":{"charts":0,"images":0,"macros":0,"external_links":0,"defined_names":2,"comments":0,"pivot_tables":0},"unopened":[],"bounds":{"document_bytes":16777216,"sheet_cells":100000,"run_cost":"one","rows_first":2000,"rows_last":500,"rows_between":2000,"halvings":0,"cell_chars":16384,"cell_head_chars":4096},"cells_cut":0,"cells_raw":0,"read":"whole","date_system":"1900"}

{"sheet":"N 1 աղյուսակ N7","index":0,"n_rows":622,"n_cols":7,"rows_kept":622,"cut":false,"hidden":false,"merged":[[620,0,620,6],[621,0,621,6],[6,4,7,4],[6,5,7,5],[6,6,7,6],[6,3,7,3],[6,2,7,2]]}
[{"$nulls":6},"ՀավելվածN 1"]
[{"$nulls":6},"Աղյուսակ N 7  "]
["Հաշվետվություն"]
["«Հայաստանի Հանրապետության 2023 թվականի պետական բյուջեի մասին» ՀՀ օրենքի նախագծի N 1 հավելվածով ՀՀ համայնքներին (այդ թվում՝ Երևան համայնքին) տրամադրվող սուբվենցիաների վերաբերյալ` ըստ բյուջետային գլխավոր կարգադրիչների, ծրագրերի, միջոցառումների և կատարողների"]
["(հազար դրամ)"]
[]
["Ծրագրային դասիչը",null,"Հատկացումների տրամադրման նպատակները և բյուջետային գլխավոր կարգադրիչների, ծրագրերի, միջոցառումների և կատարող պետական մարմնի անվանումները"," Տարեկան պլան¹ "," Տարեկան ճշտված պլան²  "," Փաստ ","Կատարման % ճշտված պլանի նկատմամբ "]
["Ծրագիր","Միջոցառում"]
[null,null,"Ընդամենը",{"$f":"+D11+D81","v":31782682.5},{"$f":"+E11+E81","v":40337556},{"$f":"+F11+F81","v":39529598.608000003},{"$f":"IF(F9=0,\"       \",F9/E9)","v":0.97997009556057391}]
[null,null," այդ թվում`"]
[" Ընթացիկ սուբվենցիաներ համայնքներին",null,null,{"$f":"+D12+D34+D69+D75","v":7705582.7000000002},{"$f":"+E12+E34+E69+E75","v":7700244.7000000002},7697720.7000000002,{"$f":"IF(F11=0,\"       \",F11/E11)","v":0.99967221820885765}]
[" ՀՀ տարածքային կառավարման և ենթակառուցվածքների նախարարություն",null,null,{"$f":"+D13+D18+D23","v":6185008.5999999996},{"$f":"+E13+E18+E23","v":6326250.5999999996},6326250.5999999996,1]
[" 1110",null," Այլընտրանքային աշխատանքային ծառայություն",{"$f":"D15","v":7080},{"$f":"E15","v":8940},8940,1]
[null,null," այդ թվում`",null,null,null,"       "]
[null," 12001"," Այլընտրանքային աշխատանքային ծառայողներին դրամական բավարարման և դրամական փոխհատուցման տրամադրում",{"$f":"+D17","v":7080},{"$f":"+E17","v":8940},8940,1]
[null,null," այդ թվում` ըստ կատարողների",null,null,null,"       "]
[null,null," ՀՀ տարածքային կառավարման և ենթակառուցվածքների նախարարություն",7080,8940,8940,1]
[1157,null," Քաղաքային զարգացում",{"$f":"+D20","v":765928.6},{"$f":"+E20","v":765928.6},765928.6,1]
[null,null," այդ թվում`",null,null,null,"       "]
[null,12025,"Երևանի տարածքում ճանապարհային երթևեկության կարգավորման գծով պետության կողմից համայնքի ղեկավարին պատվիրակված լիազորությունների իրականացում",{"$f":"+D22","v":765928.6},{"$f":"+E22","v":765928.6},765928.6,1]
[null,null," այդ թվում` ըստ կատարողների",null,null,null,"       "]
[null,null," ՀՀ տարածքային կառավարման և ենթակառուցվածքների նախարարություն",765928.6,765928.6,765928.6,1]
[" 1212",null," Տարածքային զարգացում",{"$f":"+D25+D31","v":5412000},{"$f":"+E25+E31","v":5551382},5551382,1]
[null,null," այդ թվում`",null,null,null,"       "]
[null,12028," Երևան քաղաքին սուբվենցիաների տրամադրում` քաղաքային ենթակառուցվածքների պահպանման նպատակով",{"$f":"+D27","v":5412000},{"$f":"+E27","v":5412000},{"$f":"+F27","v":5412000},1]
[null,null," այդ թվում` ըստ կատարողների",null,null,null,"       "]
[null,null," ՀՀ տարածքային կառավարման և ենթակառուցվածքների նախարարություն",{"$f":"SUM(D28:D30)","v":5412000},{"$f":"SUM(E28:E30)","v":5412000},5412000,1]
[null,null,"- Երևան քաղաքի փողոցների ճանապարհաշինարարական աշխատանքներ",3284000,3284000,3284000,1]
[null,null,"- Երևան քաղաքի փողոցների արտաքին լուսավորության ծառայություններ",1500000,1500000,1500000,1]
[null,null,"-Վերգետնյա էլեկտրատրանսպորտով ուղևորափոխադրումների ծառայությունների մատուցում",628000,628000,628000,1]
[null,12029,"Լաչինի միջանցքի արգելափակման հետևանքով Հայաստանի Հանրապետությունում Լեռնային Ղարաբաղի քաղաքացիներին կացարան տրամադրած կազմակերպություններին աջակցության տրամադրում",{"$f":"D33","v":0},{"$f":"E33","v":139382},{"$f":"F33","v":139382},1]
[null,null," այդ թվում` ըստ կատարողների",null,null,null,"       "]
[null,null," ՀՀ տարածքային կառավարման և ենթակառուցվածքների նախարարություն",0,139382,139382,1]
[" ՀՀ  կրթության, գիտության, մշակույթի և սպորտի նախարարություն",null,null,{"$f":"D35+D40+D45+D54","v":1062557.3999999999},{"$f":"E35+E40+E45+E50+E54","v":1065977.3999999999},{"$f":"F35+F40+F45+F50+F54","v":1063453.3999999999},0.99763221997014195]
[" 1075",null," Մշակութային ժառանգության ծրագիր",{"$f":"+D37","v":297759.3},{"$f":"+E37","v":297759.3},297759.3,1]
[null,null," այդ թվում`",null,null,null,"       "]
[null," 11004"," Թանգարանային ծառայություններ և ցուցահանդեսներ",{"$f":"+D39","v":297759.3},{"$f":"+E39","v":297759.3},297759.3,1]
[null,null," այդ թվում` ըստ կատարողների",null,null,null,"       "]
[null,null," ՀՀ տարածքային կառավարման և ենթակառուցվածքների նախարարություն",297759.3,297759.3,297759.3,1]
[" 1148",null," Արտադպրոցական դաստիարակության ծրագիր",{"$f":"+D42","v":55863},{"$f":"+E42","v":55863},55863,1]
[null,null," այդ թվում`",null,null,null,"       "]
[null," 12001"," Ուսումնամարզական գործընթացի իրականացում մարզադպրոցներում",{"$f":"+D44","v":55863},{"$f":"+E44","v":55863},55863,1]
[null,null," այդ թվում` ըստ կատարողների",null,null,null,"       "]
[null,null," ՀՀ տարածքային կառավարման և ենթակառուցվածքների նախարարություն",55863,55863,55863,1]
[" 1168",null," Արվեստների ծրագիր",{"$f":"+D47","v":457064.6},{"$f":"+E47","v":457064.6},457064.6,1]
[null,null," այդ թվում`",null,null,null,"       "]
[null," 11003"," Թատերական ներկայացումներ",{"$f":"+D49","v":457064.6},{"$f":"+E49","v":457064.6},457064.6,1]
[null,null," այդ թվում` ըստ կատարողների",null,null,null,"       "]
[null,null," ՀՀ տարածքային կառավարման և ենթակառուցվածքների նախարարություն",457064.6,457064.6,457064.6,1]
[1192,null,"Կրթության որակի ապահովում",{"$f":"D51","v":0},3420,2130.5,0.62295321637426904]
[null,11022,"Հանրակրթական  հիմնական  և նախադպրոցական ծրագրեր իրականացնող ուսումնական հաստատությունների հերթական ատեստավորման ենթակա ուսուցչի և մանկավարժի վերապատրաստում",{"$f":"D53","v":0},{"$f":"E53","v":3420},{"$f":"F53","v":2130.5},{"$f":"IF(F53=0,\"       \",F53/E53)","v":0.62295321637426904}]
[null,null," այդ թվում` ըստ կատարողների",null,null,null,"       "]
[null,null,"ՀՀ Արմավիրի մարզպետի աշխատակազմ",0,3420,2130.5,0.62295321637426904]
[" 1198",null," Մշակութային և գեղագիտական դաստիարակության ծրագիր",{"$f":"+D56","v":251870.5},{"$f":"+E56","v":251870.5},250635.99999999997,0.99509867173805577]
[null,null," այդ թվում`",null,null,null,"       "]
[null," 11005"," Ազգային, փողային և լարային նվագարանների գծով ուսուցում",{"$f":"SUM(D58:D68)","v":251870.5},{"$f":"SUM(E58:E68)","v":251870.5},250635.99999999997,0.99509867173805577]
[null,null," այդ թվում` ըստ կատարողների",null,null,null,"       "]
[null,null," ՀՀ տարածքային կառավարման և ենթակառուցվածքների նախարարություն",60353.9,60353.9,60353.9,1]
[null,null," ՀՀ Արագածոտնի  մարզպետարան",8715.4,8715.4,8715.4,1]
[null,null," ՀՀ  Արարատի  մարզպետարան",13290.9,13290.9,13290.9,1]
[null,null," ՀՀ  Արմավիրի մարզպետարան",17866.5,17866.5,17866.5,1]
[null,null," ՀՀ Գեղարքունիքի մարզպետարան",20481.099999999999,20481.099999999999,20481.099999999999,1]
[null,null," ՀՀ Լոռու մարզպետարան",16123.4,16123.4,16123.4,1]
[null,null," ՀՀ Կոտայքի մարզպետարան",27017.599999999999,27017.599999999999,27017.5,0.99999629870898976]
[null,null," ՀՀ Շիրակի մարզպետարան",40305.1,40305.1,39070.699999999997,0.96937360284430507]
[null,null," ՀՀ Սյունիքի մարզպետարան",19827.400000000001,19827.400000000001,19827.400000000001,1]
[null,null," ՀՀ Վայոց ձորի մարզպետարան",4793.5,4793.5,4793.5,1]
[null,null," ՀՀ Տավուշի մարզպետարան",23095.7,23095.7,23095.7,1]
[" ՀՀ  աշխատանքի և սոցիալական հարցերի նախարարություն",null,null,{"$f":"+D70","v":150000},{"$f":"+E70","v":0},0,"       "]
[" 1088",null," Զբաղվածության ծրագիր",{"$f":"+D72","v":150000},{"$f":"+E72","v":0},0,"       "]
[null,null," այդ թվում`",null,null,null,"       "]
[null," 12011"," Վարձատրվող հասարակական աշխատանքների կազմակերպման միջոցով գործազուրկների ժամանակավոր զբաղվածության ապահովում",{"$f":"+D74","v":150000},{"$f":"+E74","v":0},0,"       "]
[null,null," այդ թվում` ըստ կատարողների",null,null,null,"       "]
[null,null," ՀՀ աշխատանքի և սոցիալական հարցերի նախարարության միասնական սոցիալական ծառայություն",150000,0,0,"       "]
[" ՀՀ շրջակա միջավայրի նախարարություն",null,null,{"$f":"D76","v":308016.7},{"$f":"E76","v":308016.7},308016.7,1]
[" 1186",null," Բնագիտական նմուշների պահպանություն և ցուցադրություն",{"$f":"+D78","v":308016.7},{"$f":"+E78","v":308016.7},308016.7,1]
[null,null," այդ թվում`",null,null,null,"       "]
[null," 11002"," Կենդանաբանական այգու ցուցադրություններ",{"$f":"+D80","v":308016.7},{"$f":"+E80","v":308016.7},308016.7,1]
[null,null," այդ թվում` ըստ կատարողների",null,null,null,"       "]
[null,null," ՀՀ տարածքային կառավարման և ենթակառուցվածքների նախարարություն",308016.7,308016.7,308016.7,1]
[" Կապիտալ սուբվենցիաներ համայնքներին",null,null,{"$f":"D83+D613","v":24077099.800000001},{"$f":"E83+E613","v":32637311.300000001},{"$f":"F83+F613","v":31831877.908},0.97532169900282195]
[null," այդ թվում`",{"$nulls":4},"       "]
[" ՀՀ տարածքային կառավարման և ենթակառուցվածքների նախարարություն",null,null,{"$f":"+D84+D89","v":23474726},{"$f":"+E84+E89","v":32034937.5},{"$f":"+F84+F89","v":31335909.517999999},0.97817919944435661]
[" 1157",null," Քաղաքային զարգացում",{"$f":"+D86","v":600000},{"$f":"+E86","v":364000},229014.26,0.629160054945055]
[null,null," այդ թվում`",null,null,null,{"$f":"IF(F85=0,\"       \",F85/E85)","v":"       "}]
[null," 12006"," Եվրոպական ներդրումային բանկի աջակցությամբ իրականացվող Երևանի էներգաարդյունավետության ծրագրին պետական աջակցություն",{"$f":"+D88","v":600000},{"$f":"+E88","v":364000},229014.26,0.629160054945055]
[null,null," այդ թվում` ըստ կատարողների",null,null,null,"       "]
[null,null," ՀՀ տարածքային կառավարման և ենթակառուցվածքների նախարարություն",600000,364000,229014.26,0.629160054945055]
[" 1212",null," Տարածքային զարգացում",{"$f":"+D91+D597+D610","v":22874726},{"$f":"+E91+E597+E610","v":31670937.5},{"$f":"+F91+F597+F610","v":31106895.257999998},0.98219054165984188]
[null,null," այդ թվում`",null,null,null,"       "]
[null," 12007"," ՀՀ մարզերին սուբվենցիաների տրամադրում՛ ենթակառուցվածքների զարգացման նպատակով",{"$f":"D93+D94+D116+D170+D226+D299+D367+D436+D473+D537+D560","v":22000000},{"$f":"E93+E94+E116+E170+E226+E299+E367+E436+E473+E537+E560","v":30828046.899999999},{"$f":"F93+F94+F116+F170+F226+F299+F367+F436+F473+F537+F560","v":30270866.074999999},0.98192617174849306]
[null,null," այդ թվում` ըստ կատարողների",null,null,null,"       "]
[null,null," ՀՀ կառավարություն",22000000,0,0,"       "]
[null,null,"ՀՀ Արագածոտնի մարզպետի աշխատակազմ",{"$f":"SUM(D95:D115)","v":0},{"$f":"SUM(E95:E115)","v":2148095.2000000002},{"$f":"SUM(F95:F115)","v":2147295.9650000003},0.99962793315678011]
[null,null,"Համայնքի խմելու ջրի ջրագծի ցանցի հիմնանորոգում և քայքայված հատվածների փոխարինման աշխատանքներ",0,3496.9,3496.9,1]
[null,null,"Համայնքի Նորաշեն, Գեղադիր, Հնաբերդ, Գեղաձոր, Բերքառատ բնակավայրերի գազաֆիկացման աշխատանքներ",0,203339.4,203339.4,1]
[null,null,"Համայնքի Լուսակն բն․ խմելու ջրագծի կառուցման աշխատանքներ",0,6468,6468,1]
[null,null,"Համայնքի Արտաշավան բն. «Կակաչ մանկապարտեզ» ՀՈԱԿ-ի շենքի հիմնանորոգման և բակային տարածքների բարեկարգման աշխատանքներ ",0,134050,133385.66500000001,0.99504412532637077]
[null,null,"Մաստարա համայնքի 8-րդ փողոց, 8-րդ հասցեում գտնվող «Միջոցառման տան» տարածքի ցանկապատի կառուցման աշխատանքներ",0,4721.6000000000004,4721.6000000000004,1]
[null,null,"Համայնքի Արագածավան, Արտենի և Լուսակն բնակավայրի ասֆալտբետոնե պատվածքի հիմնանորոգում /Արագածավան, Արտենի/  ",0,30682.1,30682.1,1]
[null,null,"Համայնքի ներհամայնքային «1-ին փող 2-րդ նրբ., 1-ին փող. 9-րդ փակուղու ձոր իջնող հատված, 3-րդ փող 4-րդ նրբ. մեջտեղի հատված, 4-րդ փող. 7-րդ նրբ.» փողոցների ասֆալտապատում և կապիտալ վերանորոգում ",0,11490.1,11490.1,1]
[null,null,"Թալին համայնքի Արագածավան, Արտենի և Լուսակն բն․ ասֆալտբետոնե պատվածքի հիմնանորոգում /Լուսակն բնակավայրի 4-րդ փողոց/",0,14293.5,14293.5,1]
[null,null,"Թալին համայնքի Թալին բնակավայրում Մ․ Խրիմյան փողոց, 6-րդ նրբանցք, թիվ 1 հողամաս հասցեում նոր գերեզմանատան կառուցման աշխատանքներ",0,15514.8,15514.8,1]
[null,null,"Ապարան համայնքի Ապարան քաղաքի մի շարք փողոցների ասֆալտապատման աշխատանքներ, գյուղական բնակավայրերի մի շարք փողոցների ասֆալտապատման աշխատանքներ և Ապարան քաղաքի բակային տարածքների ասֆալտապատման աշխատանքներ /գյուղական բնակավայրերը՝ Երնջատափ, Ջրամբար, Արագած, Քուչակ, Արայի/",0,82978.399999999994,82978.399999999994,1]
[null,null,"Ապարան համայնքի Եղիպատրուշ վարչական տարածքի գազաֆիկացում",0,83349.3,83349.3,1]
[null,null,"Աշտարակ համայնքի Աշտարակ քաղաքի, Աղձք, Արուճ, Ագարակ, Անտառուտ, Ավան, Արտաշավան, Բազմաղբյուր, Բյուրական, Լեռնարոտ, Կարբի, Կոշ, Ղազարավան, Նոր Ամանոս, Նոր Եդեսիա, Նոր Երզնկա, Ոսկեհատ, Ոսկեվազ, Ուշի, Ուջան, Սաղմոսավան, Սասունիկ, Փարպի, Օհանավան և Օշական բնակավայրերի փողոցների ասֆալտապատում",0,749892.3,749892.3,1]
[null,null,"Թալին համայնքի Դաշտադեմ բնակավայրի ոռոգման համակարգի վերակառուցում",0,132400.1,132400.1,1]
[null,null,"Թալին համայնքի Ծաղկասար, Մաստարա բն. ասֆալտբետոնե ծածկույթի հիմնանորոգում",0,108067.6,108067.6,1]
[null,null,"Աշտարակ համայնքի Աշտարակ, Աղձք, Բյուրական, Արագածոտն և Օրգով Բն․ գազաֆիկացում",0,105433.2,105433.2,1]
[null,null,"Ալագյազ համայնքի Ճարճակիս բն․ գազաֆիկացում",0,49708.9,49708.9,1]
[null,null,"Ալագյազ համայնքիԱլագյազ, Ջամշլու, Սադունց և Շենկանի բն․ գերեզմանատների ցանկապատում",0,21814.1,21679.200000000001,0.99381592639623006]
[null,null,"Ապարան համայնքի Արագած եւ Շենավան բնակավայրերում նոր մանկապարտեզի կառուցում /Շենավան/",0,197919.8,197919.8,1]
[null,null,"Թալին համայնքի Եղնիկ, Կաքավաձոր, Ն. Բազմաբերդ բն. փողոցների նորոգում՝ սալարկմամբ",0,73152.3,73152.3,1]
[null,null,"Աշտարակ համայնքի Աշտարակ եւ Բազմաղբյուր բն. Մարզադաշտերի հիմնանորոգում եւ տարածքների բարեկարգում",0,93561.600000000006,93561.600000000006,1]
[null,null,"Մեծաձոր համայնքի Մեծաձոր եւ Օթևան բն. ներհամայնքային փողոցների նորոգում",0,25761.200000000001,25761.200000000001,1]
[null,null,"ՀՀ Արարատի մարզպետի աշխատակազմ",{"$f":"SUM(D117:D169)","v":0},{"$f":"SUM(E117:E169)","v":4636352.3999999994},{"$f":"SUM(F117:F169)","v":4327538.7220000001},0.93339296685040607]
[null,null,"Մասիս համայնքի Մասիս քաղաքում մանկապատեզի կառուցում  (թիվ 3 մանկապարտեզ) ",0,138254,124812.59,0.90277742416132623]
[null,null,"Մասիս համայնքի Այնթապ և Զորակ բնակավայրերի փողոցների նորոգում՝ ասֆալտապատմամբ /անվան փոփոխություն Ձորակը Զորակով/",0,79324.600000000006,79324.600000000006,1]
[null,null,"Արտաշատ համայնքի Այգեպատ, Մխչյան, Շահումյան, Բերքանուշ, Բաղրամյան, Ազատավան, Այգեստան, Դեղձուտ, Բերդիկ, Գետազատ, Մրգանուշ և Վարդաշեն բնակավայրերի ոռոգման համակարգերի կառուցում/նորոգում",0,329640,326995.67499999999,0.99197814282247299]
[null,null,"Արտաշատ համայնքի Արտաշատ, Այգեպատ, Բերքանուշ, Գետազատ, Կանաչուտ, Նշավան բնակավայրերի գազիֆիկացման աշխատանքներ",0,35208,35208,1]
[null,null,"Արտաշատ համայնքի Աբովյան, Դվին, Բարձրաշեն, Վարդաշեն, Նշավան, Արևշատ, Դիտակ, Դեղձուտ բնակավայրերի փողոցների նորոգման, ասֆալտապատման աշխատանքներ",0,245070,236180.391,0.96372624556249231]
[null,null,"Արտաշատ համայնքի հասարակական շենքերի\n/մշակույթի տուն, համայնքային կենտրոններ և այլն/\nվերանորոգման աշխատանքներ",0,24806.6,24778.32,0.99885998081155825]
[null,null,"Արարատ համայնքի Արարատ քաղաքի ՈԿՖ\nԲանավանի դրենաժային համակարգի կառուցում ",0,55808.1,55808.1,1]
[null,null,"Վեդի համայնքի Վեդի քաղաքային, Գինեվետ, Նոր Ուղի, Արալեզ, Այգավան և Փոքր Վեդի բնակավայրերի գազիֆիկացման աշխատանքներ ",0,45864.9,45864.5,0.99999127873384652]
[null,null,"Արտաշատ համայնքի բազմաբնակարան շենքերի ընդհանուր բաժնային սեփականության գույքի նորոգում, այդ թվում՝ էներգախնայող միջոցառումների կիրառում ",0,175497,175497,1]
[null,null,"Արտաշատ համայնքի բնակավայրերի ոռոգման համակարգերի կառուցում/նորոգում / Արաքսավան, Դիմիտրով և Հովտաշեն բնակավայրերի/",0,96300,96299.998999999996,0.99999998961578396]
[null,null,"Արարատ համայնքի Սուրենավան, Արմաշ և Երասխ բնակավայրերի գազատարի կառուցում ",0,90903.8,90903.8,1]
[null,null,"Արարատ համայնքի Արարատ քաղաքի Սալակիթներ փողոցի, Սուրենավան բնակավայրի, 5 մուտքերի, Զանգակատուն /2 փուլ/ և Պարույր Սևակ բնակավայրերի կենտրոնական փողոցների վերանորոգում ասֆալտապատմամբ /Սուրենավան/",0,41250,41249.953000000001,0.99999886060606069]
[null,null,"Վեդի համայնքի Լուսաշող և Փոքր Վեդի բնակավայրերի փողոցների ասֆալտապատում",0,32716.2,32715.5,0.99997860387208781]
[null,null,"Արտաշատ համայնքի բազմաբնակարան շենքերի ընդհանուր բաժնային սեփականության գույքի նորոգում, այդ թվում՝ էներգախնայող միջոցառումների կիրառում",0,3717,3717,1]
[null,null,"Արարատ համայնքի Ավշար բնակավայրի մանկապարտեզի 3-րդ և 4-րդ մասնաշենքերի, ապաստարանի կառուցում և հարակից տարածքի բարեկարգում",0,172270,149729.58499999999,0.86915646949555925]
[null,null,"Արարատ համայնքի Սուրենավան, Արմաշ և Երասխ բնակավայրերի գազատարի կառուցում",0,5486,5486,1]
[null,null,"Արտաշատ համայնքի Նորաշեն, Նարեկ, Վ. Արտաշատ, Քաղցրաշեն, Մրգավան, Դալար, Ազատավան, Մխչյան բնակավայրերի փողոցների նորոգման, ասֆալտապատման աշխատանքներ ",0,208250,206440.99900000001,0.99131332052821131]
[null,null,"Արարատ համայնքի Նոյակերտ, Պարույր Սևակ, Արմաշ և Ավշար բնակավայրերի ջրամատակարարում /Նոյակերտ/",0,4536,4536,1]
[null,null,"Արարատ համայնքի Կայարանային փ., Կայարանային նրբ., Գայի փ.հատված, Իսակով փ., Իսահակյան փ. հատված, Շ. Գրիգորյան փ., Սայաթ-Նովա փ., Օղակաձև փ., Արարատյան փ., Պ. Սևակ փ. հատված, հաղթանակի փ. հատված, Րաֆֆի փ. հատված, Թևոսյան փ., Կոլխոզնիկների փ. հատված փողոցների ասֆալտապատման աշխատանքներ /2-րդ փուլ/",0,38842.199999999997,38842.199999999997,1]
[null,null,"Արտաշատ համայնքի Ազատավան, Բարձրաշեն, Դալար, Դեղձուտ, Դիտակ,Դվին, Նորաշեն, Քաղցրաշեն, Վ․ Արտաշատ, Վարդաշեն, ք․ Արտաշատ, Աբովյան, Արևշատ, Մխչյան, Նարեկ, Մրգավան, Նշավան բնակավայրերի փողոցների նորոգման, ասֆալտապատման աշխատանքներ /ք․ Արտաշատ/",0,297500,297500,1]
[null,null,"Արտաշատ համայնքի կոմունալ սպասարկման կարիքների համար մեքենասարքավորումների և տեխնիկայի ձեռքբերում",0,48474.3,48474.3,1]
[null,null,"Արարատ համայնքի Արարատ քաղաքի Սալակիթներ փողոցի,Սուրենավան բնակավայրի, 5 մուտքերի, Զանգակատուն և Պարույր Սևակ բնակավայրերի կենտրոնական փողոցների վերանորոգում ասֆալտապատմամբ (Զանգակատուն)",0,83633.2,83623.311000000002,0.99988175748387009]
[null,null,"Արարատ համայնքի Սուրենավան, Արմաշ, Երասխ և Արմաշ բնակավայրերի գազիֆիկացում (Երասխ)",0,28860,28860,1]
[null,null,"Արտաշատ համայնքի բնակավայրերի ոռոգման համակարգերի կառուցում/նորոգում (Աբովյան, Նշավան, Բյուրավան)",0,96570,96346.616999999998,0.99768682820751786]
[null,null,"Արարատ համայնքի Արարատ քաղաքի ՈԿՖ բանավանի և Պարույր Սևակ բնակավայրի ջրահեռացման համակարգի կառուցում (Պ․Սևակ)",0,31296.6,31296.595000000001,0.99999984023823685]
[null,null,"Արարատ համայնքի Նոյակերտ, Պարույր Սևակ, Արմաշ և Ավշար բնակավայրերի ջրամատակարարում (Պ․Սևակ, Արմաշ-1-ին փուլ)",0,16667.7,16667.695,0.99999970001859884]
[null,null,"Արտաշատ համայնքի բնակավայրերի ոռոգման համակարգերի կառուցում/նորոգում /Աբովյան, Նշավան, Բյուրավան/",0,9012,9012,1]
[null,null,"Արտաշատ համայնքի բնակավայրերի փողոցների նորոգման,ասֆալտապատման աշխատանքներ /ք. Արտաշատ/",0,25196.5,25196.5,1]
[null,null,"Արարատ համայնքի Արարատ քաղաքի ՈԿՖ բանավանի և Պարույր Սևակ բնակավայրի ջրահեռացման համակարգի կառուցում /ՈԿՖ բանավանի ջրահեռացման համակարգի կառուցում-1-ին փուլ/",0,47263.6,47263.58,0.99999957684137486]
[null,null,"Արարատ համայնքի Նոյակերտ, Պարույր Սևակ, Արմաշ և Ավշար բնակավայրերի ջրամատակարարում /Ավշար բնակավայրի ջրամատակարարում-1-ին փուլ",0,38781.800000000003,38781.226999999999,0.99998522502823484]
[null,null,"Արարատ համայնքի Արարատ քաղաքի, Զանգակատուն, Երասխ, Ավշար,Նոյակերտ և Ուրցալանջ բնակավայրերի ճանապարհների վերանորոգում  ասֆալտապատմամբ/Ավշար և Ուրցալանջ բնակավայրերի փողոցների ասֆալտապատում/",0,63629.4,63629.4,1]
[null,null,"Արարատ համայնքի Սուրենավան, Արմաշ, Երասխ և Ավշար բնակավայրերի գազիֆիկացում /Սուրենավան /1-ին փուլ/ և Ավշար /1-ին փուլ//",0,61493.5,61492.6,0.99998536430679663]
[null,null,"Վերին Դվին համայնքի փողոցների լուսավորության իրականացման աշխատանքներ",0,16618.900000000001,16618.900000000001,1]
[null,null,"Վեդի համայնքի Վեդի քաղաքային և Լուսառատ բնակավայրի բազմաբնակարան բնակելի շենքերի տանիքների հիմնանորոգում",0,106389,106023,0.99655979471561906]
[null,null,"Արարատ համայնքի Արարատ քաղաքի, Զանգակատուն, Երասխ, Ավշար,Նոյակերտ և Ուրցալանջ բնակավայրերի ճանապարհների վերանորոգում ասֆալտապատմամբ /Նոյակերտ բն․ Նոյ և Րաֆֆու փող․, Զանգակատուն բն․ կենտրոնական փող․ և Պ․ Սևակ փող․ 1-ին փակ․ 430 գծմ/",0,101484.1,101484.09299999999,0.99999993102367746]
[null,null,"Վեդի համայնքի Եղեգնավան և Վեդի քաղաքային բնակավայրերի փողոցների ասֆալտապատում",0,289955.20000000001,289955.15999999997,0.99999986204765412]
[null,null,"Արարատ համայնքի Սուրենավան, Արմաշ, Երասխ և Ավշար բնակավայրերի գազիֆիկացում /Արմաշ/",0,15986.1,15986.1,1]
[null,null,"Արարատ համայնքի Արարատ և Երասխ բնակավայրերում մարզադպրոցների կառուցում /Երասխ/",0,30943.9,28515.886999999999,0.92153500366792795]
[null,null,"Արարատ համայնքի Արարատ քաղաքի Կոմիտասի 2ա, Խանջյան 26, 28, 62 և Շահումյան 22, 67 շենքերի տանիքների վերանորոգում",0,30762.400000000001,29072,0.94504980105583436]
[null,null,"Մասիս համայնքի բնակավայրերում   փողոցային լուսավորության համակարգի  կառուցում և նորոգում /1.Նիզամի, Դաշտավան,  Ազատաշեն,Ռանչպար, Գետափնյա,3․ Մարմարաշեն, Արևաբույր,, Այնթապ, Ջրահովիտ, Նոր Խարբերդ, 5․ Արբաթ, Զորակ, Դաշտավան, , Դարակերտ, Նորամարգ,  Խաչփար,  Այնթապ, Սիս,Դարբնիկ",0,302850.90000000002,247217.796,0.81630200207428794]
[null,null,"Մասիս համայնքի Ազատաշեն, Արբաթ,  Արևաբույր, Գետափնյա, Գեղանիստ, Դաշտավան, Դարակերտ, Դարբնիկ, Զորակ, Խաչփար, Հայանիստ, Մարմարաշեն, Նորաբաց, Նոր Կյուրին, Ջրահովիտ և Սայաթ-Նովա բնակավայրերում ոռոգման համակարգի կառուցում  և նորոգում /Արևաբույր, Ջրահովիտ, Նոր Կյուրին/",0,280099,278372.74300000002,0.99383697549794903]
[null,null,"Արտաշատ համայնքի Բարձրաշեն, Դեղձուտ, Դիմիտրով, Մրգանուշ, Մրգավետ, Քաղցրաշեն, Աբովյան, Այգեզարդ, Արաքսավան, Դիտակ, Դվին, Մխչյան, Մրգավան, Ոստան բնակավայրերի գազաֆիկացման աշխատանքներ",0,41751.9,41751.9,1]
[null,null,"Արարատ համայնքի Արարատ քաղաքի, Զանգակատուն, Երասխ, Ավշար, Նոյակերտ և Ուրցալանջ բնակավայրերի ճանապարհների վերանորոգում ասֆալտապատմամբ /ք․ Արարատ, ՈԿՖ բանավան, Երասխ/",0,89647.9,62152.101999999999,0.69329122043014957]
[null,null,"Մասիս համայնքում բնակավայրերի գազաֆիկացում /Այնթապ, Արբաթ, Դաշտավան, Դարակերտ, Նորաբաց, Սայաթ - Նովա/",0,60750,27502,0.45270781893004114]
[null,null,"Արարատ համայնքի բնակավայրերի մանկապաևտեզների համար գույքի ձեռքբերում",0,61091,61090.792000000001,0.99999659524316187]
[null,null,"Արարատ համայնքի Արարատ քաղաքային, Պարույր Սևակ, Ուրցալանջ, Զանգակատուն, Ավշար, Արմաշ, Նոյակերտ և Սուրենավան բնակավայրերի փողոցային լուսավորության համակարգի կառուցում  և վերակառուցում արևային և լեդ լուսատուներով",0,52071.6,51044,0.98026563424208213]
[null,null,"Մասիս համայնքում բնակավայրերի գազաֆիկացում․ Այնթապ, Նոր Կյուրին,Մարմարաշեն, Ջրահովիտ, Սիփանիկ, Սիս, Հովտաշատ, Ռանչպար,Նորամարգ, Այնթապ, Արբաթ, Դաշտավան, Դարակերտ, Նորաբաց, Սայաթ - Նովա/Նորամարգ բնակավայր/",0,79410.7,22498.05,0.28331257626491141]
[null,null,"Արտաշատ համայնքի Այգեպատ, Դիտակ, Դվին, Մրգանուշ, Մրգավետ, Նորաշեն,Քաղցրաշեն և Մխչյան բնակավայրերի ոռոգման համակարգի կառուցում /նորոգում/Մխչյան խորքային հոր,Մրգավետ/",0,55728,55248.860999999997,0.99140218561584836]
[null,null,"Արարատ համայնքի Արարատ քաղաքի ՈԿՖ բանավանի մանկապարտեզի, Արարատ բնակավայրի մշակույթի տան և մանկապարտեզի, Պարույր Սևակ բնակավայրի մանկապարտեզի և Զանգակատուն բնակավայրի մանկապարտեզի տանիքներում ֆոտովոլտային կայանների տեղադրում",0,45730.3,43280.205000000002,0.94642294058862497]
[null,null,"Վեդի համայնքի Տափերական, Գինեվետ և Վանաշեն բնակավայրերի փողոցներում կոյուղագծի ցանցի կառուցում",0,97048.7,97045.212,0.99996405928157717]
[null,null,"Այնթապ համայնքի փողոցների հիմնանորոգման և հարթեցման աշխատանքներ 4կմ",0,9175.7999999999993,9175.732,0.99999258920203149]
[null,null,"Վեդի քաղաքային համայնքի Արարատյան 36, 38, 40, 42, Գայի 5, 7, 9, և Կասյան26/14, 26/15 ԲԲՇ-ների բակերի ասֆալտապատում և բարեկարգում",0,24205.5,23879.7,0.98654024911693627]
[null,null,"Վեդի համայնքի Այգավան, Վանաշեն, Սիսավան, Գոռավան, Շաղափ և Գինեվետ բնակավայրերի խմելու ջրագծի կառուցում",0,172528.5,97090.452000000005,0.56275022387605533]
[null,null,"ՀՀ Արմավիրի մարզպետի աշխատակազմ",{"$f":"SUM(D171:D225)","v":0},{"$f":"SUM(E171:E225)","v":2606287.5},{"$f":"SUM(F171:F225)","v":2603296.3140000002},0.99885231924720519]
[null,null,"Վաղարշապատ համայնքի Էջմիածին բնակավայրի Տիգրան Մեծի և Սբ. Գրիգոր Լուսավորիչ փողոցների մայթերի հիմնանորոգում",0,{"$f":"61501.4-1053.5","v":60447.9},60447.872000000003,0.99999953679118714]
[null,null,"Մեծամոր համայնքի Մեծամոր քաղաքի և և Արտաշար բնակավայրի խմելու ջրամատակարարման ցանցի կառուցում (Մեծամոր համայնքի Մեծամոր քաղաք)",0,5494.7,5494.7,1]
[null,null,"Մեծամոր համայնքի Գետաշեն բնակավայրի փողոցների ց/ճնշման գազատարի կառուցում, Շենավան, Վարդանաշեն, Այգեշատ, Նոր Արմավիր, Եղեգնուտ, Ակնալիճ բնակավայրերի գազիֆիկացում (Ակնալիճ բնակավայրերի գազիֆիկացում)",0,6691.5,6664.5,0.99596503026227301]
[null,null,"Մեծամոր համայնքի Տանձուտ բնակավայրի «Խնձորներ», Հայկավան բնակավայրի «Թավաբլուրի», Երասխահուն բնակավայրի «Ախմեյան» (Ակադեմիայի), Վարդանաշեն բնակավայրի «Դեղձեր», «Ժորժիկի», Զարթոնք բնակավայրի «Գործարանի բաց», «Գործարանի փակ», Արտաշար բնակավայրի «Ավազահանքի», «Խդոյի», Տարոնիկ բնակավայրի «Աղբանոցի», «Ցանկապատի», Մրգաշատ բնակավայրի «Ճլլիկներ», Արմավիր բնակավայրի «Նարյադի», Արգավանդ բնակավայրի «Թոփերի», Բամբակաշատ բնակավայրի «Պոպոքի», Արազափ բնակավայրի «Գուգուշի» խորքային հորերի վերակառուցում»",0,143010.20000000001,143010.20000000001,1]
[null,null,"Փարաքար համայնքի Բաղրամյան գյուղի Շիրազի, Թումանյանի և Այգեգործների փողոցների, Պտղունք գյուղի Ագաթանգեղոս փողոցի, Մուսալեռ գյուղի Տիգրան Մեծ թաղամասի 1-ին, 2-րդ, 3-րդ, 4-րդ, 5-րդ, 6-րդ և 7-րդ փողոցների, Մերձավան գյուղի 1-ին, 2-րդ, 3-րդ և 4-րդ փողոցների, Այգեկ գյուղի 2-րդ և 3-րդ փողոցների, Փարաքար գյուղի Արցախ թաղամասի 1-ին, 2-րդ, 3-րդ, 4-րդ, 5-րդ, 6-րդ և Մհեր Մկրտչյան փողոցների գազիֆիկացում.   1) Բաղրամյան գյուղի Շիրազի, Թումանյանի և Այգեգործների փողոցների գազիֆիկացում,  2) Մերձավան գյուղի 1-ին, 2-րդ, 3-րդ և 4-րդ փողոցների գազիֆիկացում,   3) Այգեկ գյուղի 2-րդ և 3-րդ փողոցների գազիֆիկացում,  4) Փարաքար գյուղի Մհեր Մկրտչյան փողոցի գազիֆիկացում",0,56638.5,56638.49,0.99999982344165184]
[null,null," Արմավիր համայնքի  Արմավիր քաղաքի թիվ 2 մանկապարտեզ ՀՈԱԿ-ի հիմնանորոգում, թիվ 3 և թիվ 7 մանկապարտեզ ՀՈԱԿ-ների ջեռուցման համակարգերի կառուցում, գազաֆիկացում, հին դռների և պատուհանների նորով փոխարինում, Մյասնիկյան գյուղի մանկապարտեզ ՀՈԱԿ-ի ջեռուցման համակարգի կառուցում և սանհանգույցի վերանորոգում, Լուկաշին գյուղի մանկապարտեզ ՀՈԱԿ-ի ջեռուցման համակարգի կառուցում, Սարդարապատ գյուղի մանկապարտեզ ՀՈԱԿ-ի հիմնանորոգում, գազաֆիկացում և ջեռուցման համակարգի կառուցում /Մյասնիկյան գյուղի մանկապարտեզ ՀՈԱԿ-ի ջեռուցման համակարգի կառուցում և սանհանգույցի վերանորոգում/",0,{"$f":"8742.1-508.9","v":8233.2000000000007},8233.1759999999995,0.99999708497303585]
[null,null," Արաքս համայնքի Ջրառատ գյուղի Թումանյան, Վ.Մամիկոնյան, Իսահակյան փողոցների և Ակնաշեն գյուղի 18-րդ փողոցի գազիֆիկացում /Ջրառատ գյուղի Թումանյան, Վ.Մամիկոնյան, Իսահակյան փողոցներ/",0,30635.8,30635.8,1]
[null,null,"Մեծամոր համայնքի 2 թաղամաս 1 շենքի, 1 թաղամաս 13ա  և 27 բազմաբնակարն շենքերի տանիքների հիմնանորոգում և  1 թաղամաս 4Բ1, 6Բ1, 8Բ1, 8Բ2 և 2Բ շենքերի վերելակների փոխարինում   (վերելակների փոխարինում)",0,16590,16590,1]
[null,null,"Մեծամոր համայնքի Գետաշեն բնակավայրի փողոցների ց/ճնշման գազատարի կառուցում, Շենավան, Վարդանաշեն, Այգեշատ, Նոր Արմավիր, Եղեգնուտ, Ակնալիճ բնակավայրերի գազաֆիկացում  (Վարդանաշեն, Այգեշատ, Եղեգնուտ)",0,19097.5,19092.96,0.99976227254876293]
[null,null,"Խոյ համայնքի Հայթաղ գյուղի մանկապարտեզի վերակառուցում և ձախ կողաճակատին կիպ միահարկ կցակառույց շինության իրականացում, Այգեշատ բնակավայրի մանկապարտեզի վերանորոգում (Այգեշատ)",0,{"$f":"36643.1-717.5","v":35925.599999999999},35925.557000000001,0.9999988030819249]
[null,null,"Բաղրամյան համայնքի Հուշակերտ գյուղի մանկապարտեզի սեյսմազինվածության բարձրացում և վերանորոգում ",0,21590.2,21590.2,1]
[null,null,"Մեծամոր համայնքի Մեծամոր և Արազափ մշակույթի տների վերանորոգում, Նոր Կեսարիա մշակույթի տան ջեռուցման համակարգի կառուցում, Մրգաշատ բնակավայրի երաժշտական դպրոցի վերանորոգում և ջեռուցման համակարգի կառուցում, Նալբանդյան բնակավայրերում երաժշտական դպրոցի ջեռուցման համակարգի կառուցում (Մեծամոր և Արազափ)",0,12593.9,12593.706,0.99998459571697418]
[null,null,"Արաքս համայնքի Գայ գյուղի ջրահեռացման համակարգի մի մասի և ջրամատակարարման ցանցի, Ջրառատ գյուղի ջրամատակարարման ցանցի կառուցում (Գայի ջրահեռացում)",0,10777.6,10777.6,1]
[null,null,"  Արմավիր համայնքի թիվ 2 մանկապարտեզ ՀՈԱԿ-ի հիմնանորոգում, թիվ 3 և թիվ 7 մանկապարտեզ ՀՈԱԿ-ների ջեռուցման համակարգերի կառուցում, գազիֆիկացում, հին դռների և պատուհանների նորով փոխարինում, Մյասնիկյան գյուղի մանկապարտեզ ՀՈԱԿ-ի ջեռուցման համակարգի կառուցում և սանհանգույցի վերանորոգում, Լուկաշին գյուղի մանկապարտեզ ՀՈԱԿ-ի ջեռուցման համակարգի կառուցում, Սարդարապատ գյուղի մանկապարտեզ ՀՈԱԿ-ի հիմնանորոգում, գազիֆիկացում և ջեռուցման համակարգի կառուցում  (Արմավիր բն. թիվ 3, թիվ 7 մանկ., Լուկաշին գյուղի մանկապարտեզ) ",0,2466,2466,1]
[null,null,"Վաղարշապատ համայնքի Էջմիածին բնակավայրի թիվ 14 «Ձնծաղիկ» մանկապարտեզի հիմնանորոգում և Ոսկեհատ բնակավայրի մանկապարտեզի վերանորոգում (Ոսկեհատ)",0,11443.9,11443.891,0.99999921355481958]
[null,null,"Մեծամոր համայնքի Գետաշեն բնակավայրի փողոցների ց/ճնշման գազատարի կառուցում, Շենավան, Վարդանաշեն, Այգեշատ, Նոր Արմավիր, Եղեգնուտ, Ակնալիճ բնակավայրերի գազիֆիկացում /Գետաշեն/",0,18807.7,18807.7,1]
[null,null,"Բաղրամյան համայնքի Դալարիկ բնակավայրի  Օրջոնիկիձեի, Երիտասարդական, Գորկու  և Շահումյան փողոցներում ոռոգման ներտնտեսային  բաց և փակ ցանցի կառուցում (2021թ.)",0,1488.4,1488.3789999999999,0.9999858908895457]
[null,null,"Խոյ համայնքի Գեղակերտ բնակավայրի վերականգնվող խորքային հորեր և ոռոգման ցանց (2021թ.)",0,72321.100000000006,72321.100000000006,1]
[null,null," Արաքս համայնքի Առատաշեն գյուղի մանկապարտեզի երկհարկանի մասնաշենքի կապիտալ վերանորոգում, Խորոնք գյուղի մանկապարտեզի շենքի կապիտալ վերանորոգում, Ջրառատ գյուղի մանկապարտեզի շենքի կապիտալ վերանորոգում, ջեռուցման համակարգի կառուցում, Մեծամոր գյուղի Խ. Աբովյան փող. 1/2 հասցեում մանկապարտեզի շենքի հիմնանորոգման /վերանորոգման/ աշխատանքներ, Գայ գյուղի մանկապարտեզի շենքի կառուցում  /Խորոնք գյուղի մանկապարտեզի շենքի կապիտալ վերանորոգում, Ջրառատ գյուղի մանկապարտեզի շենքի կապիտալ վերանորոգում, ջեռուցման համակարգի կառուցում, Մեծամոր գյուղի Խ. Աբովյան փող. 1/2 հասցեում մանկապարտեզի շենքի հիմնանորոգման /վերանորոգման/ աշխատանքներ, Գայ գյուղի մանկապարտեզի շենքի կառուցում/",0,326565.40000000002,326565.40000000002,1]
[null,null,"Վաղարշապատ համայնքի Էջմիածին բնակավայրի Չարենց թաղամասի հյուսիսային մասի կոյուղու կառուցում",0,47820,47820,1]
[null,null,"Խոյ համայնքի Աղավնատուն գյուղի Բ. Ներսիսյան 2-րդ նրբ., Ս.Վիրաբյան, Երիտասարդական 3-րդ, Հարավ-Արևելյան 2-րդ փողոցների, Արշալույս գյուղի 27, 28, 29, 32-րդ փողոցների և Մոնթեավան գյուղի 1-ին և 7-րդ փողոցների գազիֆիկացում (Արշալույս գյուղի 27, 28, 29, 32-րդ փողոցների)",0,21284.400000000001,21284.37,0.99999859051699824]
[null,null,"Խոյ համայնքի Գեղակերտ գյուղում Մ. Սարյան, Մարշալ Բաղրամյան փողոցների և Մ. Մարշալ Բաղրամյան փողոցից մինչև մշակույթի տան հարակից տարածքի, Մոնթեավան գյուղում I-ին փողոցի (համայնքի կենտրոնական փողոց), Այգեշատ գյուղի Երիտասարդական և Մայիսյան փողոցների, Դողս գյուղում Դողս-Աղավնատուն տանող ճանապարհի, Լեռնամերձ գյուղի Բարեկամություն փողոցի (գերեզմաններ տանող ճանապարհ) ասֆալտապատման աշխատանքներ» (Մոնթեավան գյուղում I-ին փողոցի (համայնքի կենտրոնական փողոց) ",0,33724.1,33724.1,1]
[null,null," Արմավիր համայնքի  Արմավիր քաղաքի թիվ 2 մանկապարտեզ ՀՈԱԿ-ի հիմնանորոգում, թիվ 3 և թիվ 7 մանկապարտեզ ՀՈԱԿ-ների ջեռուցման համակարգերի կառուցում, գազիֆիկացում, հին դռների և պատուհանների նորով փոխարինում, Արաքս գյուղի մանկապարտեզի շենքի հիմնանորոգում, Մյասնիկյան գյուղի մանկապարտեզ ՀՈԱԿ-ի ջեռուցման համակարգի կառուցում և սանհանգույցի վերանորոգում, Լուկաշին գյուղի մանկապարտեզ ՀՈԱԿ-ի ջեռուցման համակարգի կառուցում, Սարդարապատ գյուղի մանկապարտեզ ՀՈԱԿ-ի հիմնանորոգում, գազիֆիկացում և ջեռուցման համակարգի կառուցում (Սարդարապատ գյուղի մանկապարտեզ ՀՈԱԿ-ի հիմնանորոգում, գազիֆիկացում և ջեռուցման համակարգի)",0,{"$f":"150899.6-493.7","v":150405.9},150405.834,0.99999956118742683]
[null,null,"Արմավիր համայնքի Այգեվան և Լենուղի գյուղերի ջրամատակարարման ցանցի վերակառուցում (Այգեվան/Լենուղի  գյուղի ջրամատակարարման ցանցի վերակառուցում)",0,54911.1,54911.076000000001,0.99999956292989944]
[null,null,"Արմավիր համայնքի  Արմավիր քաղաքի Մ. Գորկի փողոցի հիմնանորոգում",0,67508.600000000006,67505.366999999998,0.99995210980526916]
[null,null,"Արաքս համայնքի Գայ բնակավայրի ջրահեռացման համակարգի վերակառուցում և ջրամատակարարման համակարգի վերակառուցում, Արաքս գյուղում  ջրամատակարարման համակարգի վերակառուցում (2023թ.)",0,13233.1,13233.1,1]
[null,null,"Բաղրամյան համայնքի Հուշակերտ գյուղի մանկապարտեզի սեյսմազինվածության բարձրացում և վերանորոգում",0,50067.5,50067.5,1]
[null,null,"Բաղրամյան համայնքի Արգինա բնակավայրի Տիգրան Մեծ փողոցի և Աբովյան փողոցի ասֆալտապատում, Արտամետ բնակավայրի Գարեգին Նժդեհ փողոցի և Գարեգին Նժդեհ փողոցը Արաբոյի փողոցին կապող հատվածի և Արաբոյի փողոցի ասֆալտապատում, Բագարան բնակավայրի Գևորգ Մարզպետունի փողոցի ասֆալտապատում, Բաղրամյան բնակավայրի Սարի Թաղ փողոցի սկզբնամասի և Սարի Թաղ փողոցի վերջնամասի ասֆալտապատում, Դալարիկ բնակավայրի Մյասնիկյան փողոցի և դպրոցի բակի և Օրջոնիկիձե փողոցի ասֆալտապատում, Երվանդաշատ բնակավայրի Բերդակի փողոցի և Խաչին Տակ փողոցի ասֆալտապատում, Լեռնագոգ բնակավայրի 1-ին փողոցի և 12-րդ փողոցի ասֆալտապատում, Հուշակերտ բնակավայրի    2-րդ փողոցի և 5-րդ փողոցի ասֆալտապատում, Շենիկ բնակավայրի    Մ. Մելքոնյան փողոցի վերևի հատվածի և Մ. Մելքոնյան փողոցի ներքևի հատվածի ասֆալտապատում, Վանանդ բնակավայրի Պ. Սևակ փողոցի, Պ. Սևակ փողոցի մի հատվածի և Հ. Քոչար փողոցի և Զ. Սահակյան փողոցի ասֆալտապատում, Տալվորիկ բնակավայրի Գևորգ Չավուշի փողոցի ասֆալտապատում, Քարակերտ բնակավայրի Երկաթուղայինների փողոցի, Բաբաջանյան փողոցի, գերեզմանատան ճանապարհի և Սարյան փողոցի ասֆալտապատում /Դալարիկ բնակավայրի Մյասնիկյան փողոցի և դպրոցի բակի և Օրջոնիկիձե փողոցի ասֆալտապատում/",0,19544.7,19544.7,1]
[null,null,"Արաքս համայնքի Ապագա գյուղի այգու կառուցապատում, Արաքս գյուղի Դրոյի փող. 3 հասցեում գտնվող մանկապարտեզի բակի և մշակույթի տան հարակից այգու բարեկարգում",0,3967,3966.9960000000001,0.9999989916813713]
[null,null,"Արաքս համայնքի Ապագա գյուղի այգու կառուցապատում, Արաքս գյուղի Դրոյի փող. 3 հասցեում գտնվող մանկապարտեզի բակի և մշակույթի տան հարակից այգու բարեկարգում»                                                                                /Ապագա գյուղի այգու կառուցապատում/",0,5488.1,5488.1,1]
[null,null,"Արաքս համայնքի Գայ գյուղի համայնքապետարանի շենքի և Ապագա գյուղի մարզադպրոցի շենքի վերանորոգում /Ապագա գյուղի մարզադպրոցի շենքի վերանորոգում/ ",0,7058.2,7058.1639999999998,0.99999489954946019]
[null,null,"Փարաքար համայնքի Բաղրամյան, Այգեկ, Նորակերտ, Արևաշատ, Մուսալեռ, Մերձավան, Պտղունք, Փարաքար բնակավայրերում խաղահրապարակների կառուցում և գոյություն ունեցող խաղահրապարակների վերանորոգում և վերազինում",0,48891.1,48891.1,1]
[null,null,"Բաղրամյան համայնքի Արգինա բնակավայրի Տիգրան Մեծ փողոցի և Աբովյան փողոցի ասֆալտապատում,  Արտամետ բնակավայրի Գարեգին Նժդեհ փողոցի և Գարեգին Նժդեհ փողոցը Արաբոյի փողոցին կապող հատվածի և Արաբոյի փողոցի ասֆալտապատում, Բագարան բնակավայրի Գևորգ Մարզպետունի փողոցի ասֆալտապատում, Բաղրամյան բնակավայրի Սարի Թաղ փողոցի սկզբնամասի և Սարի Թաղ փողոցի վերջնամասի ասֆալտապատում, Դալարիկ բնակավայրի Մյասնիկյան փողոցի և դպրոցի բակի և Օրջոնիկիձե փողոցի ասֆալտապատում, Երվանդաշատ բնակավայրի Բերդակի փողոցի և Խաչին Տակ փողոցի ասֆալտապատում, Լեռնագոգ բնակավայրի 1-ին փողոցի և 12-րդ փողոցի ասֆալտապատում, Հուշակերտ բնակավայրի 2-րդ փողոցի և 5-րդ փողոցի ասֆալտապատում, Շենիկ բնակավայրի Մ.Մելքոնյան փողոցի վերևի հատվածի և Մ.Մելքոնյան փողոցի ներքևի հատվածի ասֆալտապատում, Վանանդ բնակավայրի Պ.Սևակ փողոցի, Պ. Սևակ փողոցի մի հատվածի և Հ.Քոչար փողոցի և Զ.Սահակյան փողոցի ասֆալտապատում, Տալվորիկ բնակավայրի Գևորգ Չավուշի փողոցի ասֆալտապատում, Քարակերտ բնակավայրի Երկաթուղայինների փողոցի, Բաբաջանյան փողոցի, գերեզմանատան ճանապարհի և Սարյան փողոցի ասֆալտապատում /Արտամետ բնակավայրի Գարեգին Նժդեհ փողոցի և Գարեգին Նժդեհ փողոցը Արաբոյի փողոցին կապող հատվածի և Արաբոյի փողոցի ասֆալտապատում և Շենիկ բնակավայրի Մ.Մելքոնյան փողոցի վերևի հատվածի և Մ.Մելքոնյան փողոցի ներքևի հատվածի ասֆալտապատում/",0,39900.1,39900.1,1]
[null,null,"Արաքս համայնքի Արաքս և Լուսագյուղ  գյուղերում պոմպակայանների կառուցում /Լուսագյուղ/",0,29688.2,29688.2,1]
[null,null,"Խոյ  համայնքի Դաշտ բնակավայրի մշակույթի տան տանիքի հիմնանորոգում, Արագած համայնքի մշակույթի տան 2-րդ և 3-րդ հարկերի վերանորոգում և ջեռուցում /Դաշտ/",0,5167.8,5167.75,0.99999032470296834]
[null,null,"Արաքս համայնքի Գայ բնակավայրի ջրահեռացման համակարգի վերակառուցում և ջրամատակարարման համակարգի վերակառուցում, Արաքս գյուղում  ջրամատակարարման համակարգի վերակառուցում /Գայի ջրահեռացում/",0,114345.60000000001,114345.587,0.9999998863095737]
[null,null,"Արաքս համայնքի Արտիմետ գյուղի Շիրազի փողոցի 1 հասցեով մանկապարտեզի բակի բարեկարգում, Ջրարբի գյուղի Թումանյան փողոցի 14 հասցեով մանկապարտեզի բակի բարեկարգում, Մեծամոր բնակավայրի Աբովյան փողոցի 1/2 հասցեով մանկապարտեզի բակի բարեկարգում, Առատաշեն գյուղի Ա.Այվազյան փող. թիվ 34 հասցեում գտնվող մանկապարտեզի բակի բարեկարգում» /Արտիմետ, Ջրարբի բնակավայրեր/",0,45377,43084.824999999997,0.94948597307005744]
[null,null," Արմավիր համայնքի  Արմավիր քաղաքի թիվ 2 մանկապարտեզ ՀՈԱԿ-ի հիմնանորոգում, թիվ 3 և թիվ 7 մանկապարտեզ ՀՈԱԿ-ների ջեռուցման համակարգերի կառուցում, գազաֆիկացում, հին դռների և պատուհանների նորով փոխարինում, Արաքս գյուղի մանկապարտեզի շենքի հիմնանորոգում, Մյասնիկյան գյուղի մանկապարտեզ ՀՈԱԿ-ի ջեռուցման համակարգի կառուցում և սանհանգույցի վերանորոգում, Լուկաշին գյուղի մանկապարտեզ ՀՈԱԿ-ի ջեռուցման համակարգի կառուցում, Սարդարապատ գյուղի մանկապարտեզ ՀՈԱԿ-ի հիմնանորոգում, գազաֆիկացում և ջեռուցման համակարգի կառուցում /Արաքս գյուղի մանկապարտեզի շենքի հիմնանորոգում/",0,195951.3,195951.291,0.99999995407022058]
[null,null,"Մեծամոր համայնքի ք.Մեծամորի թիվ 2, թիվ 3 մանկապարտեզների հիմնանորոգման և հարակից տարածքների բարեկարգման, Տարոնիկ և Տանձուտ բնակավայրերի մանկապարտեզների հիմնանորոգման աշխատանքներ ",0,244585.2,244514.329,0.99971024003087672]
[null,null," Խոյ համայնքի խորքային հորերի հիմնանորոգում (Արագած N-1, N-2, Արշալույս N-1, N-2, N-3, N-4, N-5, N-6, N-7, N-8, Գեղակերտ N-1, Հայթաղ N-1, N-2, N-3, Մրգաստան N-1, Ծաղկունք N-1, N-2, Ծաղկալանջ N-2, Ծիածան N-1) և Ծիածան բնակավայրի ներտնտեսային ոռոգման ջրագծերի կառուցում  /Արշալույս N-1, N-3,  Հայթաղ N-1/",0,{"$f":"33805.8-8618.9","v":25186.9},25186.828000000001,0.99999714137110962]
[null,null,"Մեծամոր համայնքի նախկին պոլիկլինիկայի շենքը Մեծամորի համայնքապետարանի վարչական շենք դարձնելու նպատակով վերանորոգման աշխատանքներ",0,88348.800000000003,88348.751000000004,0.99999944538012964]
[null,null,"Փարաքար համայնքի Բաղրամյան բնակավայրիԱյգեգործներիփողոցի,Թումանյան փողոցի  Շիրազի փողոցի, Պտղունք բնակավայրի Ագաթանգեղոս փողոցի, Մուսալեռ բնակավայրի Տիգրան Մեծ փողոցի, Մերձավան բնակավայրի 1-ին, 2-րդ, 3-րդ և 4-րդ փողոցների և Այգեկ բնակավայրի 2-րդ և 3-րդ փողոցների, Փարաքար բնակավայրի Արցախի թաղամասի և Մհեր Մկրտչյան փողոցի գազաֆիկացում /Մուսալեռ գյուղի Տիգրան Մեծ թաղամասի 1-ին, 2-րդ, 3-րդ, 4-րդ, 5-րդ, 6-րդ և 7-րդ փողոցների գազիֆիկացում/",0,19717.3,19717.3,1]
[null,null,"Արգինա բնակավայրի Տիգրան Մեծ  և Աբովյան փողոցների  ասֆալտապատում, Արտամետ բնակավայրի Գ. Նժդեհ  փ. ասֆալտապատում, Բագարան բնակավայրի Գ.Մարզպետունի կենտրոնական փողոցի շարունակության ասֆալտապատում,  Բաղրամյան բնակավայրի Սարի Թաղ փողոցի ասֆ.,  Դալարիկ բնակավայրի Մյասնիկյան և Օրջոնիկիձե փողոցների ասֆ., Երվանդաշատ բնակավայրի Սահմանապահների  փողոցի ասֆ., Բերդակ փողոցի ասֆալտապատում, Խաչին Տակ փողոցի ասֆ. Լեռնագոգ բնակավայրի Ա.Խաչատրյան փողոցի ասֆալտապատում, Հուշակերտ բնակավայրի 5-րդ փողոցի շարունակության ասֆալտապատում, 4-րդ փողոցի սկզբնամաս, 5-րդ և 4-րդ փողոցների միացվող հատվածի ասֆալտապատում, Շենիկ բնակավայրի  Տերյան փողոցի ասֆալտապատում, Վանանդ բնակավայրի Ա. Մարտիրոսյան և Պ. Սևակ փողոցների,  Պ. Սևակ  փողոցի մի հատվածի և Հ Քոչարի, Զ. Սահակյան փողոցիասֆալտապատում, Տալվորիկ բնակավայրի Գ.Չաուշ, Անդրանիկ, Արաբո, Նժդեհ փողոցների  ասֆալտապատում, Քարակերտ բնակավայրի Երկաթուղայիններ փողոցի ասֆ., Բաբաջանյան փողոցի ասֆ., գերեզմանատուն տանող ճանապարհի  և  Սարյան փողոցի ասֆ. (Երվանդաշատ բնակավայրի Բերդակի փողոցի, Լեռնագոգ բնակավայրի 1-ին, Լեռնագոգ բնակավայրի 12-րդ,Վանանդ բնակավայրի Պ․Սևակ փողոցի և Վանանդ բնակավայրի Զ.Սահակյան փողոցի ասֆալտապատում, Արգինա բնակավայրի Տիգրան Մեծ, Քարակերտ բնակավայրի  Բաբաջանյան փողոցի, գերեզմանատուն տանող ճանապարհի  և  Սարյան փողոցի ասֆ.)                  ",0,65269.5,65269.5,1]
[null,null,"Փարաքար համայնքի Փարաքար բնակավայրի Է. Թևոսյան և Րաֆֆու փողոցների կոյուղագծի կառուցում",0,{"$f":"16764.8-653","v":16111.8},16111.726000000001,0.99999540709293822]
[null,null,"Արմավիր համայնքի Արմավիր քաղաքի Շահումյան փողոցի Արարատյան-Ջիվանի և Չարենց-Բաղրամյան հատվածների ջրամատակարարման համակարգերի վերակառուցում, Հացիկ գյուղի ջրամատակարարման համակարգի վերակառուցում",0,17953.5,17953.5,1]
[null,null,"Արմավիր համայնքի Արմավիր քաղաքի Սահմանապահների փողոցի Հանրապետություն -Աբովյան և Երևանյան-Շահումյան հատվածների հիմնանորոգում,Թումանյան փողոցի Երևանյան-Շահումյան հատվածի հիմնանորոգում, Հ․Ավետիսյան փողոցի Երևանյան- Շահումյան հատվածի հիմնանորոգում, Շահումյան փողոցի   Արարատյան-Ջիվանի և Չարենց-Բաղրամյան հատվածների հիմնանորոգում, Նորավան գյուղի կենտրոնական փողոցի կառուցում, Այգեվան գյուղի կենտրոնական փողոցի հիմնանորոգում, կառուցում, Մյասնիկյան գյուղի Բաղրամյան փողոցի կառուցում, Լուկաշին գյուղի Թամանյան փողոցի հիմնանորոգում /Այգեվան գյուղի կենտրոնական փողոցի հիմնանորոգում, կառուցում,Նորավան գյուղի կենտրոնական փողոցի կառուցում, Լուկաշին գյուղի Թամանյան փողոցի հիմնանորոգում/",0,78802.899999999994,78802.899999999994,1]
[null,null,"Մեծամոր համայնքի Եղեգնուտ բնակավայրի «Ակադեմիայի», «Վարդանի», Արտաշար բնակավայրի  «Ախթամար», Վարդանաշեն բնակավայրի  «Գյուղի սկզբի», Արազափ բնակավայրի «Զաստավի», Արևիկ բնակավայրի  «Հովիկի»,  Մրգաշատ բնակավայրի  «Ճլլիկներ 2-րդ», Մարգարա բնակավայրի «3-րդ փողոցի», Արմավիր բնակավայրի «Գագիկի տան մոտ», Տարոնիկ բնակավայրի «Տրուբի», Արգավանդ բնակավայրի «Վալոդի», Բամբակաշատ բնակավայրի «Բաշնիայի», Փշատավան բնակավայրի «Ամարի գոմի մոտ», Ջրաշեն բնակավայրի  «Սարի տակի», Ակնալիճ բնակավայրի «Կրակակետի», Երասխահուն բնակավայրի «Ղաչաղի», Նոր Արմավիր բնակավայրի «Ստյոպի հողի տակի», Այգեշատ բնակավայրի «Կոկոյի» խորքային հորերի վերականգնում (Եղեգնուտ բնակավայրի «Ակադեմիայի», «Վարդանի» խորքային հորերի վերականգնում, Արազափ բնակավայրի «Զաստավի», Մարգարա բնակավայրի «3-րդ փողոցի», Արմավիր բնակավայրի «Գագիկի տան մոտ»,  Տարոնիկ բնակավայրի «Տրուբի», Բամբակաշատ բնակավայրի «Բաշնիայի», Ջրաշեն բնակավայրի  «Սարի տակի», Ակնալիճ բնակավայրի «Կրակակետի», Նոր Արմավիր բնակավայրի «Ստյոպի հողի տակի» խորքային հորեր)",0,82787.199999999997,82787.199999999997,1]
[null,null,"Մեծամոր համայնքի Ալաշկերտ, Ամասիա, Արգավանդ, Արևիկ, Բամբակաշատ, Գետաշեն, Հայկավան, Նալբանդյան, Նոր Արմավիր, Նոր Արտագերս, Նոր Կեսարիա, Շենավան, Ջանֆիդա, Ջրաշեն, Վարդանաշեն, Փշատավան, Տարոնիկ և Մրգաշատ բնակավայրերի խմելու ջրամատակարարման ցանցերի կառուցում /Վարդանաշեն, բնակավայրի խմելու ջրամատակարարման ցանցերի կառուցում/",0,17812.7,17812.7,1]
[null,null,"Բաղրամյան համայնքի Դալարիկ բնակավայրի Օրջոնիկիձե 6 և Օրջոնիկիձե 8 հասցեների բազմաբնակարան բնակելի շենքերի տանիքների վերակառուցում /Օրջոնիկիձե 6, 8 բազմաբնակարան բնակելի շենքի տանիքների հիմնանորոգում/                             ",0,15617.5,15617.474,0.99999833520089643]
[null,null," Մեծամոր համայնքի Մեծամոր քաղաքի 1-ին թաղամասի 2Բ1, 3Բ, 4Բ2, 5Բ, 6Բ2 և 2-րդ թաղամասի 1Բ, 2Բ, 3Բ շենքերի վերելակների փոխարինում",0,26040,26040,1]
[null,null,"Վաղարշապատ համայնքի Էջմիածին բնակավայրի թիվ 14 «Ձնծաղիկ» մանկապարտեզի հիմնանորոգում  և Ոսկեհատ բնակավայրի մանկապարտեզի վերանորոգում /Էջմիածին բնակավայրի թիվ 14 «Ձնծաղիկ» մանկապարտեզի հիմնանորոգում/",0,64235.199999999997,64235.199999999997,1]
[null,null,"Արաքս համայնքի Գայ բնակավայրի ջրահեռացման համակարգի մի մասի և ջրամատակարարման ցանցի, Ջրառատ բնակավայրի ջրամատակարարման ցանցի կառուցում /Ջրառատ բնակավայրի ջրամատակարարման ցանցի կառուցում/   ",0,550,550,1]
[null,null," Արաքս համայնքի Առատաշեն գյուղի մանկապարտեզի երկհարկանի մասնաշենքի կապիտալ վերանորոգում, Խորոնք գյուղի մանկապարտեզի շենքի կապիտալ վերանորոգում, Ջրառատ բնակավայրի մանկապարտեզի շենքի կապիտալ վերանորոգում, ջեռուցման համակարգի կառուցում, Մեծամոր գյուղի Խ.Աբովյան փող. 1/2 հասցեում մանկապարտեզի շենքի հիմնանորոգման /վերանորոգման/ աշխատանքներ, Գայ բնակավայրի մանկապարտեզի շենքի կառուցում /Գայ բնակավայրի մանկապարտեզի շենքի կառուցում/",0,1124,550,0.48932384341637009]
[null,null," Փարաքար համայնքի Փարաքար, Թաիրով, Մերձավան, Մուսալեռ, Նորակերտ, Այգեկ և Պտղունք բնակավայրերի մանկապարտեզների հիմնանորոգում և բակային տարածքների բարեկարգում, Արևաշատ բնակավայրում մանկապարտեզի կոյուղու հորի կառուցում և տարածքի բարեկարգում /Արևաշատ բնակավայրում մանկապարտեզի կոյուղու հորի կառուցում և տարածքի բարեկարգում/",0,24513.8,24513.8,1]
[null,null,"Դալարիկ համայնքի հանդիսությունների սրահի հիմնանորոգում",0,2478.3000000000002,2459.7150000000001,0.99250090788040191]
[null,null,"ՀՀ Գեղարքունիքի մարզպետի աշխատակազմ",{"$f":"SUM(D227:D298)","v":0},{"$f":"SUM(E227:E298)","v":3993057.3000000012},{"$f":"SUM(F227:F298)","v":3821421.0259999996},0.95701632581130214]
[null,null,"Մարտունի համայնքի Արծվանիստ, Ծովինար, Վարդենիկ, Աստղաձոր, Վաղաշեն, Ն. Գետաշեն Մադինա, Ծակքար, Ձորագյուղ, Վարդաձոր, Երանոս բնակավայրերում ոռոգման համակարգերի կառուցում և նորոգում /Վարդենիկ/ ",0,81469.600000000006,81469.600000000006,1]
[null,null,"Գավառ քաղաքի կենտրոնական հրապարակում շատրվանային համակարգի և Արծրունի եղբայրների արձանի տեղադրում (կենտրոնական հրապարակում շատրվանային համակարգի տեղադրում) ",0,212850,212850,1]
[null,null,"Զոլաքար համայնքի մանկապարտեզի շենքի կառուցում և տարածքի բարեկարգում-3-րդ փուլ ",0,46800,46800,1]
[null,null,"Ճամբարակ համայնքի «Ճամբարակ քաղաքի Սեպտեմբերի 21/2, Գ. Նժդեհի 103, Բաղրամյան 13, Տ. Մեծի 7, 9, 11, 13, 14, 15 և 30 բազմաբնակարան շենքերի բակերի ասֆալտապատման աշխատանքներ»",0,74963,74963,1]
[null,null,"Սարուխանի թիվ 1 մանկապարտեզի կապիտալ վերանորոգում 2-րդ փուլ ",0,5000.3999999999996,5000.3999999999996,1]
[null,null,"Գանձակ համայնքի խորքային հորի հորատում ",0,1421.3,1421.3,1]
[null,null,"Գեղամասար համայնքի Սոթք գյուղի գազիֆիկացման ընդլայնում ",0,6943.8,6943.8,1]
[null,null,"Գավառ քաղաքի մշակույթի տան և գեղարվեստի դպրոցի շենքերի հիմնանորոգում ",0,16742,16741.907999999999,0.99999450483813157]
[null,null,"Գավառի Սուրբ Աստվածածին եկեղեցու հարակից տարածքի կապիտալ վերանորոգում և խաղահրապարակի կառուցում ",0,12977.3,12977.3,1]
[null,null,"Ճամբարակ համայնքի Ճամբարակ քաղաքի Բաբաջանյան փողոցի և Նարեկացի փողոցի հետիոտնային ճանապարհի սալարկման աշխատանքներ ",0,4717.3,4717.3,1]
[null,null,"Զոլաքար համայնքի խմելու ջրի ներքին ցանցի կառուցում ",0,6993,6993,1]
[null,null,"Ճամբարակ քաղաքի Գ․Նժդեհի 103 և Տ․Մեծի 107 բազմաբնակարան շենքերի տանիքների վերանորոգման աշխատանքներ ",0,15201.5,15201.465,0.99999769759563206]
[null,null,"Լճաշեն համայնքի ներհամայնքային փողոցների ասֆալտապատում ",0,5473.2,5437.2,0.9934224950668713]
[null,null,"Ակունք համայնքի մշակույթի տան վերանորոգում",0,3493.6,3493.6,1]
[null,null,"Վարդենիս համայնքի 4 բազմաբնակարան բնակելի շենքերի տանիքների հիմնանորոգում ",0,2831.7,null,"       "]
[null,null,"Ճամբարակ համայնքի Գետիկ, Դպրաբակ բնակավայրերի, ինչպես նաև Ճամբարակ քաղաքի Զ. Անդրանիկ և Սարալանջ փողոցների լուսավորության ցանցի կառուցում",0,607.4,607.39099999999996,0.99998518274613102]
[null,null,"Գեղամասար համայնքի 8 բնակավայրերում խմելու ջրի ջրագծերի ներքին և (կամ) արտաքին ցանցերի կառուցում և վերակառուցում, ինչպես նաև Շատջրեք գյուղի ոռոգման ջրի ջրագծի կառուցում՝ 1110մ ",0,9919.2000000000007,null,"       "]
[null,null,"Վարդենիս համայնքի փողոցային լուսավորության ցանցի և արևային ֆոտովոլտային վահանակների տեղադրում ",0,22504.799999999999,22504.737000000001,0.99999720059720598]
[null,null,"Ճամբարակ համայնքի Իսահակյան, Վերին Ճամբարակ թաղամասերի, ինչպես նաև Այգուտ բնակավայրի ջրագծերի ներքին և/կամ արտաքին ցանցերի կառուցման աշխատանքներ ",0,1050,1050,1]
[null,null,"Արծվանիստ համայնքի նոր կապտաժի կառուցում և որոշակի հատվածներում երկաթյա խողովակների փոխարինում նորերով ",0,853.3,853.3,1]
[null,null,"Շողակաթ համայնքի 6 բնակավայրերում փողոցների արտաքին լուսավորության ցանցի կառուցման աշխատանքներ ",0,1750,1750,1]
[null,null,"Շողակաթ համայնքի Դրախտիկ, Ջիլ և Արտանիշ բնակավայրերում խմելու ջրագծի ներքին և արտաքին ցանցի կառուցման աշխատանքներ ",0,2725.2,2725.192,0.99999706443563785]
[null,null,"Ճամբարակ համայնքի «Թթուջուր բնակավայրի համայնքային կենտրոնի վերանորոգման, Անտառամեջ բնակավայրի համայնքային կենտրոնի վերանորոգման ու տարածքի բարեկարգման և Կալավան ",0,1040,1040,1]
[null,null,"Ճամբարակ համայնքի Ճամբարակ քաղաքի Բաղրամյան 13, Տ. Մեծի 30, Տ. Մեծի 4, Տ. Մեծի 8 և Գ. Նժդեհի 21 բազմաբնակարան բնակելի շենքերի տանիքների վերանորոգման աշխատանքներ» ",0,1326.1,1326.1,1]
[null,null,"Ճամբարակ համայնքի Ճամբարակ քաղաքի Զ. Անդրանիկ, Նարեկացի, Գարդման, Տ. Պետրոսյան, Արցախի, Ա. Խաչատրյան փողոցների , Լեոյի նրբանցքի, Վերին Ճամբարակ թաղամասն ամբողջությամբ, Թթուջուր, Գետիկ, Դպրաբակ, Մարտունի, Այգուտ, Անտառամեջ և Կալավան բնակավայրերի լուսավորության անցկացման և Ճամբարակ համայնքի թիվ 3, թիվ 5 և Թթուջրի մանկապարտեզ ՀՈԱԿ-ների , ինչպես նաև Ճամբարակի համայնքապետարանի և Վահան բնակավայրի վարչական շենքի տանիքներին արևային ֆոտովոլտային կայանների տեղադրման աշխատանքներ ",0,5699.4,5699.4,1]
[null,null,"Մարտունի համայնքի կենտրոնի Վարդենիկ, Զոլաքար, Աստղաձոր, Գեղհովիտ, Ն. Գետաշեն և Ձորագյուղ բնակավայրեր գազիֆիկացում (Վարդենիկ) ",0,237.5,237.40199999999999,0.99958736842105256]
[null,null,"Մարտունի համայնքի Արծվանիստ, Ծովինար, Վարդենիկ, Աստղաձոր, Վաղաշեն, Ն.Գետաշեն Մադինա, Ծակքար, Ձորագյուղ, Վարդաձոր, Երանոս բնակավայրերում ոռոգման համակարգերի կառուցում և նորոգում (Արծվանիստ, Վարդաձոր, Ներքին Գետաշեն, Վերին Գետաշեն, Երանոս, Ձորագյուղ) ",0,31647.5,29437.5,0.93016825973615613]
[null,null,"Ճամբարակ համայնքի Ճամբարակ քաղաքի ջրամբարի արտաքին ջրագծի և ջրընդունիչի վերակառուցման, Վերին Ճամբարակ թաղամասի «Զնգզնգան աղբյուր» ջրագծի վերակառուցման, Վահան բնակավայրի արտաքին ջրագծի վերանորոգման, Այգուտ",0,1880.5,1880.5,1]
[null,null,"Ճամբարակ համայնքի թիվ 5 մանկապարտեզի 1-ին հարկի և ցանկապատի վերանորոգման ու 3-րդ մանկապարտեզի մասնաշենքի հիմնանորոգման աշխատանքներ (թիվ 5 մանկապարտեզ) ",0,3216.1,3216,0.99996890643947645]
[null,null,"Գավառ քաղաքի կենտրոնական հրապարակում շատրվանային համակարգի և Արծրունի եղբայրների արձանի տեղադրում",0,30222.5,30222.5,1]
[null,null,"Մարտունի համայնքի Մարտունու համայնքապետարանի, Ծովինար բնակավայրի մշակույթի պալատի և Ծակքար համայնքի մշակույթի պալատի շենքերի վերանորոգում ",0,20198.8,20198.8,1]
[null,null,"Գավառ քաղաքի թիվ 7 մանկապարտեզի հիմնանորոգում ",0,135431.79999999999,135431.79,0.99999992616209799]
[null,null,"Սևան համայնքի շենքերի բակային տարածքների 35000քմ +10% ընդհանուր մակերեսով ճանապարհների հիմնանորոգման աշխատանքներ ",0,273709,273709,1]
[null,null,"Գավառ համայնքում կանգառների տեղադրում ",0,44550,44550,1]
[null,null,"Գավառի համայնքապետարանի վարչական շենքի հիմնանորոգում ",0,88670.3,88670.3,1]
[null,null,"Մարտունի համայնքի Վարդենիկ բնակավայրի բանավան թաղամասի թիվ 1 մանկապարտեզի հիմնանորոգում, Երանոս բնակավայրի 3-րդ մսուր մանկապարտեզի հիմնանորոգում և ցանկապատի կառուցում, ինչպես նաև Ծովինար բնակավայրի մանկապարտեզի խաղահրապարակի և կոյուղագծի կառուցում (Երանոս, Վարդենիկ) ",0,230898.2,225111.26300000001,0.97493727971894106]
[null,null,"Մարտունի համայնքի Գ. Նժդեհ, Կոմիտաս, Գետափնյա 2, Կարապետյան և Վ. Մամիկոնյան փողոցներում մայթերի կառուցում սալարկմամբ ",0,194321.8,189036.36799999999,0.97280062247262011]
[null,null,"Մարտունի համայնքի կարիքների համար վերհան ավտոմեքենայի, ազդարարման շչակների, դահլիճային նստարանների և այլ անհրաժեշտ գույքի ձեռքբերում /վերհան ավտոմեքենա, ազդարարման շչակներ/ ",0,19627.5,19627.5,1]
[null,null,"Սևան համայնքի Նաիրյան փողոցի և Զ. Անդրանիկի հրապարակի ասֆալտբետոնե ծածկույթի հիմնանորոգում ",0,30531.599999999999,30531.599999999999,1]
[null,null,"Մարտունի համայնքի Զոլաքար, Աստղաձոր, Վաղաշեն, Լիճք, Ձորագյուղ, Երանոս բնակավայրերում խմելու ջրագծերի համակարգերի կառուցում և վերանորոգում /Վաղաշեն/ ",0,28833.219000000001,28833.219000000001,1]
[null,null,"Մարտունի համայնքի «Մարտունի համայնքի Արծվանիստ, Ծովինար, Զոլաքար, Աստղաձոր, Լիճք, Ծակքար, Ձորագյուղ, Վարդաձոր, Վարդենիկ և Երանոս բնակավայրերում խմելու նոր ջրագծերի կառուցում և Վարդաձոր, Վարդենիկ և Ծովինար բնակավայրերում խմելու ջրի կապտաժիների կառուցում»/Լիճք/ ",0,86787.199999999997,84230.464000000007,0.97054017182257302]
[null,null,"Մարտունի համայնքի Մարտունի քաղաքի և Արծվանիստ, Վարդենիկ, Աստղաձոր, Վաղաշեն, Գեղհովիտ, Ն․ Գետաշեն/, Վ Գետաշեն, Մադինա, Լիճք, Ծակքար, Վարդաձոր և Երանոս բնակավայրերի տարբեր փողոցների երթևեկելի հատվածների ասֆալտապատում /1-ին փուլ/ ",0,497549.3,437433.49800000002,0.87917619017854121]
[null,null,"Մարտունի համայնքի Մարտունի քաղաքում և համայնքի Արծվանիստ, Ծովինար, Վարդենիկ, Զոլաքար, Աստղաձոր, Վաղաշեն, Գեղհովիտ, Լեռնակերտ, Մադինա, Վ Գետաշեն և Ձորագյուղ բնակավայրերում ոռոգման ջրատարների կառուցում և վերանորոգում /Վաղաշեն բն. 1-ին խճուղի, 2-րդ փող 8-րդ փակ. և 3-րդ փող 6-րդ փակ/ ",0,41889.1,41145.436999999998,0.98224686135534067]
[null,null,"Գավառ համայնքում և Ծովազարդ, Լճափ, Հայրավանք, Նորատուս, Կարմիրգյուղ, Գեղարքունիք, Լանջաղբյուր, Սարուխան, Գանձակ և Ծաղկաշեն գյուղերում խաղահրապարակների և պուրակների կառուցում /Գավառ,Նորատուս, Կարմիրգյուղ/ ",0,25674.400000000001,25674.400000000001,1]
[null,null,"Գավառ համայնքում և Ծովազարդ, Լճափ, Բերդկունք, Հայրավանք, Նորատուս, Կարմիրգյուղ, Գեղարքունիք, Լանջաղբյուր, Սարուխան, Գանձակ և Ծաղկաշեն գյուղերում փողոցային լուսավորության ցանցի կառուցում և առկա համակարգի արդիականացում",0,126778.068,126778.068,1]
[null,null,"Մարտունի համայնքի Երևանյան փողոցի թիվ 10, 36, 42, 46, 43, 51, 53, 55, Գ. Զիրոյան փ. թիվ 25, 26, 31, Պռոշյան փ. թիվ 2, 2Ա, 4, 6, Թումանյան փ. թիվ 3, 5, 7 բազմաբնակարան շենքերի բակային հատվածների սալիկապատում ",0,37998.1,37998.1,1]
[null,null,"Մարտունի համայնքի Արծվանիստ, Ծովինար, Վարդենիկ, Աստղաձոր, Վաղաշեն, Ն. Գետաշեն, Մադինա, Ծակքար, Ձորագյուղ, Վարդաձոր, Երանոս, Վ. Գետաշեն բնակավայրերում ոռոգման համակարգերի կառուցում և նորոգում /Ծովինար/ ",0,2028,2027.981,0.99999063116370812]
[null,null,"Մարտունի համայնքի Արծվանիստ, Ծովինար, Զոլաքար, Աստղաձոր, Լիճք, Ծակքար, Ձորագյուղ, Վարդաձոր, Վարդենիկ և Երանոս բնակավայրերում խմելու նոր ջրագծերի կառուցում և Վարդաձոր, Վարդենիկ և Ծովինար բնակավայրերում խմելու ջրի կապտաժների կառուցում /Վարդաձոր/ ",0,28556.3,28082.775000000001,0.98341784474879457]
[null,null,"Ճամբարակ համայնքի Վերին Ճամբարակ թաղամասում նոր խաղահրապարակի կառուցման, Ճամբարակի կենտրոնական զբոսայգու բարեկարգման, ցանկապատի վերանորոգման, 44-օրյա պատերազմում Ճամբարակ համայնքից զոհված զինծառայողներին հարգանքի տուրք մատուցելու համար հուշահամալիրի կառուցման և «Տոռնադո» պատկերով հուշարձան-քանդակի ձեռքբերման աշխատանքներ \n",0,39250.199999999997,39123.79,0.99677937946813022]
[null,null,"Ճամբարակ համայնքի Ճամբարակ քաղաքի ջրամբարի արտաքին ջրագծի և ջրընդունիչի վերակառուցման, Վերին Ճամբարակ թաղամասի «Զնգզնգան աղբյուր» ջրագծի վերակառուցման, Վահան բնակավայրի արտաքին ջրագծի վերանորոգման, Այգուտ բնակավայրի արտաքին ջրագծի վերակառուցման աշխատանքներ /Վահան, Այգուտ/ ",0,51427.7,51406.78,0.99959321532948198]
[null,null,"Վարդենիս համայնքի Ռոմանի փողոցի ասֆալտապատում և կահավորում",0,14689.8,14689.8,1]
[null,null,"Գավառ համայնքում և Ծովազարդ, Լճափ, Հայրավանք, Նորատուս, Կարմիրգյուղ, Գեղարքունիք, Լանջաղբյուր, Սարուխան, Գանձակ և Ծաղկաշեն գյուղերում խաղահրապարակների եւ պուրակների կառուցում / Գավառ բն. Արծվաքար թաղամաս, Գեղարքունիք, Լանջաղբյուր/ ",0,20096.900000000001,20096.900000000001,1]
[null,null,"Գավառ քաղաքում և Նորատուս գյուղում ասֆալտապատման աշխատանքների իրականացում ",0,128252,128252,1]
[null,null,"Ճամբարակ համայնքի Վերին Ճամբարակ թաղամասում նոր խաղահրապարակի կառուցման, Ճամբարակի կենտրոնական զբոսայգու բարեկարգման, ցանկապատի վերանորոգման, 44-օրյա պատերազմում Ճամբարակ համայնքից զոհված զինծառայողներին հարգանքի տուրք մատուցելու համար հուշահամալիրի կառուցման և «Տոռնադո» պատկերով հուշարձան-քանդակի ձեռքբերման աշխատանքներ /Տոռնադո հուշարձան, Վերին Ճամբարակ թաղամասում նոր խաղահրապարակի կառուցման, Ճամբարակի կենտրոնական զբոսայգու բարեկարգման, ցանկապատի վերանորոգման/ ",0,8309.2000000000007,8309.1579999999994,0.99999494536176747]
[null,null,"Մարտունի համայնքի «Մարտունի քաղաքում և համայնքի Արծվանիստ, Ծովինար, Վարդենիկ, Զոլաքար, Աստղաձոր, Վաղաշեն, Գեղհովիտ, Լեռնակերտ, Մադինա, Վ. Գետաշեն և Ձորագյուղ բնակավայրերում ոռոգման ջրատարների կառուցում և վերանորոգում» /ք․ Մարտունի, Գեղհովիտ, Լեռնակերտ/",0,156821.1,154179.454,0.98315503462225418]
[null,null,"Մարտունի համայնքի «Մարտունի համայնքի Արծվանիստ, Ծովինար, Զոլաքար, Աստղաձոր, Լիճք, Ծակքար, Ձորագյուղ, Վարդաձոր, Վարդենիկ և Երանոս բնակավայրերում խմելու նոր ջրագծերի կառուցում և Վարդաձոր, Վարդենիկ և Ծովինար բնակավայրերում խմելու ջրի կապտաժների կառուցում» /Զոլաքար, Ձորագյուղ/ ",0,114844.9,104657.548,0.91129469397422092]
[null,null,"Մարտունի համայնքի «Մարտունի քաղաքում և համայնքի Արծվանիստ, Ծովինար, Վարդենիկ, Զոլաքար, Աստղաձոր, Վաղաշեն, Գեղհովիտ, Լեռնակերտ, Մադինա, Վ. Գետաշեն և Ձորագյուղ բնակավայրերում ոռոգման ջրատարների կառուցում և վերանորոգում» /Արծվանիստ, Ծովինար/",0,102368.1,100096.152,0.97780609389057715]
[null,null,"Վարդենիս համայնքի Վարդենիս քաղաքի 6 հատ բազմաբնակարան բնակելի շենքերի տանիքների հիմնանորոգում` Խ. Ստեփանյան 5, Խ. Ստեփանյան 7, Երիտասարդության 3, Երիտասարդության 12, Ա. Սեսմանուկյան 5, Լեռնագործների 1/2 /Խ․ Ստեփանյան 5 և 7, Երիտասարդության 3 և 12/ ",0,44045.7,43766.521000000001,0.99366160601375397]
[null,null,"Վարդենիս համայնքի Ախպրաձոր, Ակունք, Արփունք, Լուսակունք, Խաչաղբյուր, Մաքենիս, Շատջրեք, Տրետուք, Մեծ Մասրիկ, Նորաբակ բնակավայրերում ոռոգման ջրի ջրագծերի կառուցում կամ վերակառուցում /Շատջրեք/ ",0,72479,71383.345000000001,0.98488313856427379]
[null,null,"Վարդենիս համայնքի 4 հատ բազմաբնակարան շենքերի տանիքների հիմնանորոգում (Խ.Ստեփանյան 3, Երիտասարդության 6, Սեսմանուկյան 1 և Սեսմանուկյան 1 նրբ. 14 շենքեր/ ",0,41515.4,41515.4,1]
[null,null,"Մարտունի համայնքի Մարտունի համայնքային կենտրոնի Գարեգին Նժդեհ, Կոմիտաս, Գետափնյա 2, Կարապետյան փողոցների, Արծվանիստ, Ծովինար, Վարդենիկ, Զոլաքար, Գեղհովիտ, Գեղհովիտ բնակավայրի Լեռնակերտ տարածքի, Ն. Գետաշեն, Վ. Գետաշեն, Լիճք, Ծակքար, Ձորագյուղ, Վարդաձոր, Երանոս բնակավայրերում տարբեր փողոցների երթևեկելի հատվածների ասֆալտապատում, ինչպես նաև Ծակքար բնակավայրի 6-րդ և 10-րդ փողոցները միացնող կամրջի կառուցում /Կարապետյան, Գարեգին Նժդեհ, Կոմիտաս, Գետափնյա 2, Գեղհովիտ բն․, Զոլաքար, Ն․ Գետաշեն, Լիճք, Վարդաձոր, Երանոս/ ",0,258021.4,225482.951,0.87389244070453076]
[null,null,"Մարտունի համայնքի «Մարտունի քաղաքի Թումանյան, Սայաթ Նովա, Շահումյան և Հեռուստաաշտարակի փողոցների մայթերի կառուցում սալարկմամբ, ինչպես նաև Ներքին Գետաշեն բնակավայրի Ն. Դեմեր թաղամասի 1-ին փողոցից մինչև Դուրան թաղամասի 10-րդ փողոցի միջակայքում ընկած մայթերի կառուցում սալարկմամբ» ",0,170640.2,159689.16399999999,0.93582382111600892]
[null,null,"Մարտունի համայնքի կարիքների համար վերհան ավտոմեքենայի, ազդարարման շչակների, դահլիճային նստարանների և այլ անհրաժեշտ գույքի ձեռքբերում ",0,1240,1240,1]
[null,null,"Մարտունի համայնքի Մարտունի քաղաքի Պռոշյան 2, Երևանյան 36, 42, 43 և 51 բազմաբնակարան բնակելի շենքերի տանիքների վերանորոգում /Երևանյան 36, 42/ ",0,23756.1,23756.1,1]
[null,null,"Մարտունի համայնքի «Մարտունի համայնքի Արծվանիստ, Ծովինար, Զոլաքար, Աստղաձոր, Լիճք, Ծակքար, Ձորագյուղ, Վարդաձոր, Վարդենիկ և Երանոս բնակավայրերում խմելու նոր ջրագծերի կառուցում և Վարդաձոր, Վարդենիկ և Ծովինար բնակավայրերում խմելու ջրի կապտաժների կառուցում» /Աստղաձոր, Արծվանիստ/ ",0,30170.400000000001,29592.596000000001,0.98084864635536817]
[null,null,"Մարտունի համայնքի Մարտունի քաղաքի, Վարդենիկ, Վաղաշեն, Գեղհովիտ և Լիճք բնակավայրերի տարբեր փողոցներում նոր լուսավորության համակարգերի կառուցում /Վաղաշեն/ ",0,9332.9,9000,0.96433048677260025]
[null,null,"Մարտունի համայնքի Մարտունի քաղաքի Պռոշյան 2, Երևանյան 36, 42, 43 և 51 բազմաբնակարան բնակելի շենքերի տանիքների վերանորոգում /Երևանյան 43, 51, Պռոշյան 2/ ",0,20480.400000000001,19349.490000000002,0.9447808636550068]
[null,null,"Մարտունի համայնքի Մարտունի քաղաքի, Վարդենիկ, Վաղաշեն, Գեղհովիտ և Լիճք բնակավայրերի տարբեր փողոցներում նոր լուսավորության համակարգերի կառուցում ",0,15585.1,14982.552,0.9613382012306626]
[null,null,"Մարտունի համայնքի «Մարտունի քաղաքում և համայնքի Արծվանիստ, Ծովինար, Վարդենիկ, Զոլաքար, Աստղաձոր, Վաղաշեն, Գեղհովիտ, Լեռնակերտ, Մադինա, Վ Գետաշեն և Ձորագյուղ բնակավայրերում ոռոգման ջրատարների կառուցում և վերանորոգում» ",0,107877.2,104958,0.97293960169526095]
[null,null,"Մարտունի համայնքի Ծովինար, Զոլաքար, Վաղաշեն, Գեղհովիտ, Ն. Գետաշեն, Ծակքար և Ձորագյուղ բնակավայրերի փողոցներում լուսավորության համակարգերի կառուցում ",0,16282.7,15829.6,0.97217291972461573]
[null,null,"Մարտունի համայնքի «Մարտունի համայնքի Արծվանիստ, Ծովինար, Զոլաքար, Աստղաձոր, Լիճք, Ծակքար, Ձորագյուղ, Վարդաձոր, Վարդենիկ և Երանոս բնակավայրերում խմելու նոր ջրագծերի կառուցում և Վարդաձոր, Վարդենիկ և Ծովինար բնակավայրերում խմելու ջրի կապտաժների կառուցում» /Ծակքար/ ",0,3527.6,3433.2669999999998,0.97325858940923005]
[null,null,"Մարտունի համայնքի Ծովինար, Զոլաքար, Վաղաշեն, Գեղհովիտ, Ն. Գետաշեն, Ծակքար և Ձորագյուղ բնակավայրերի փողոցներում լուսավորության համակարգերի կառուցում ",0,15453.413,0,"       "]
[null,null,"ՀՀ Լոռու մարզպետի աշխատակազմ",{"$f":"SUM(D300:D366)","v":0},{"$f":"SUM(E300:E366)","v":2389140.5999999992},{"$f":"SUM(F300:F366)","v":2377014.1299999994},0.99492433806532787]
[null,null,"Սպիտակ համայնքի Նոր Խաչակապ բնակավայրի ոռոգման ցանցի վերանորոգում",0,7182,7182,1]
[null,null,"Փամբակ համայնքի Լեռնապատ բնակավայրի 10-րդ փողոցի նորոգում սալարկմամբ՝ տուֆապատման միջոցով",0,22606.6,19000,0.84046251979510411]
[null,null,"Սպիտակ համայնքի Սարամեջ բնակավայրի ոռոգման ցանցի վերակառուցում, Արջահովիտ բնակավայրի ոռոգման ներքին ջրատարի կառուցում, Շենավան, Կաթնաջուր, Ծաղկաբեր, Արևաշող, Գեղասար բնակավայրերի ոռոգման համակարգերի կառուցում, Սարահարթ բնակավայրի 10-րդ, 15-րդ և 16-րդ փողոցների ոռոգման համակարգի կառուցում, Լեռնավան բնակավայրի ջրագծերի կառուցում և ներքին ցանցավորում /Սարահարթ/  ",0,20818,20818,1]
[null,null,"Սպիտակ համայնքի Գոգարան բնակավայրի կենտրոնական փողոցից դեպի գերեզմանատուն տանող ճանապարհի սալարկում՝ տուֆապատման միջոցով",0,17605.2,17605.2,1]
[null,null,"Գյուլագարակ համայնքի Գյուլագարակ, Կուրթան և Հոբարձի բնակավայրերի ճանապարհների ասֆալտապատում ",0,11404.1,11404.1,1]
[null,null,"Սպիտակ համայնքի Ջրաշեն բնակավայրի փողոցների  վերակառուցման աշխատանքներ /1-ին փողոցի 6-րդ, 7-րդ, 8-րդ նրբանցքների, 4-րդ և 7-րդ փողոցների տուֆ քարով սալապատման աշխատանքներ",0,21419.7,21419.7,1]
[null,null,"Տաշիր համայնքի Նորաշեն բնակավայրի ներբնակավայրային ճանապարհների տուֆով սալարկում",0,35667.5,35667.5,1]
[null,null,"Ստեփանավան համայնքի Ստեփանավան քաղաքի Ե․ Չարենց 179, Մեղապարտ 8, Բաղրամյան 103, Բաղրամյան 172 ԲԲՇ-ների տանիքների վերանորոգում",0,15941.3,15941.3,1]
[null,null,"Տաշիր համայնքի փողոցների լուսավորության ցանցի ընդլայնում և արդիականացում՝ նոր էներգաարդյունավետ տեխնոլոգիաների միջոցով",0,25251.8,23319.1,0.92346288185396685]
[null,null,"Տաշիր համայնքի Պրիվոլնոյե բնակավայրի վարչական շենքի վերակառուցումը մանկապարտեզի",0,19868.7,19109.400000000001,0.96178411269987474]
[null,null,"Տաշիր համայնքի Լեռնահովիտ բնակավայրի խմելու ջրի ջրամբարի կառուցում",0,10391.4,9134.2000000000007,0.87901533960775269]
[null,null,"Տաշիր համայնքի Ձյունաշող բնակավայրի ջրագծի արտաքին ցանցի վերակառուցում /լրամշակում/ և Մեծավան բնակավայրի Վարդանանց փողոցի ջրագծի վերակառուցում",0,16923,16923,1]
[null,null,"Տաշիր համայնքի Մեծավան բնակավայրում մշակույթի կենտրոնին կից տարածքում զբոսայգու հիմնում",0,4297.7,4297.7,1]
[null,null,"Թումանյան համայնքի Լորուտ, Ահնիձոր, Մարց, Շամուտ և Աթան բնակավայրերի խմելու ջրի արտաքին ջրագծերի վերանորոգում",0,29406,29406,1]
[null,null,"Սարչապետ համայնքի Սարչապետ բնակավայրի մշակույթի տան վերանորոգում և արդիականացում",0,28122.799999999999,28122.799999999999,1]
[null,null,"Շնողի համայնքի Շնող բնակավայրի կենտրոնական այգու վերանորոգում",0,23384.3,23384.3,1]
[null,null,"Շնողի համայնքի «Հեքիաթ» մանկապարտեզի բարեկարգում",0,23474.799999999999,23474.799999999999,1]
[null,null,"Մեծավան համայնքի Մեծավան բնակավայրի ներհամայնքային ճանապարհների կանոնավոր ձևի տուֆ քարով սալարկում",0,22336.6,22336.6,1]
[null,null,"Թումանյան համայնքի Թումանյան, Դսեղ, Աթան, Քարինջ և Չկալով բնակավայրերի գիշերային լուսավորության ընդլայնում, Թումանյան համայնքի մշակույթի տան 15 կվտ հզորությամբ արևային ֆոտովոլտային կայանի կառուցում",0,12616.2,12616.2,1]
[null,null,"Թումանյան համայնքի Թումանյան քաղաքի 4-րդ փողոցի սալարկում տուֆով",0,6556.5,6556.5,1]
[null,null,"Ստեփանավան համայնքի Արմանիս և Կաթնաղբյուր բնակավայրերի մանկապարտեզների մասնաշենքերի հիմնանորոգում",0,43824.5,43824.5,1]
[null,null,"Ախթալա համայնքի Ախթալա և Ճոճկան բնակավայրերի ավտոկայանատեղիների կառուցում",0,35797,35468.199999999997,{"$f":"IF(F321=0,\"       \",F321/E321)","v":0.99081487275470004}]
[null,null,"Ախթալա համայնքի Շամլուղ քաղաքի 1-ին փողոցի 7-րդ, 7-րդ փողոցի 1-ին, Ախթալա քաղաքի Աբովյան 19, Գնունի 1 և Օրջոնիկիձե 1 ԲԲՇ-ների էներգաարդյունավետության բարձրացում",0,11324.7,11324.7,1]
[null,null,"Մեծավան համայնքի Մեծավան բնակավայրի ներհամայնքային ճանապարհների կանոնավոր ձևի տուֆ քարով սալարկում",0,4963.8,4963.8,1]
[null,null,"Թումանյան համայնքի Թումանյան, Դսեղ, Աթան, Քարինջ և Չկալով բնակավայրերի գիշերային լուսավորության ընդլայնում, Թումանյան համայնքի մշակույթի տան 15 կվտ հզորությամբ արևային ֆոտովոլտային կայանի կառուցում",0,2803.6,2803.6,1]
[null,null,"Թումանյան համայնքի Թումանյան քաղաքի 4-րդ փողոցի սալարկում տուֆով",0,1457,1457,1]
[null,null,"Շնողի համայնքի «Հեքիաթ» մանկապարտեզի բարեկարգում",0,13083.5,13083.5,1]
[null,null,"Սպիտակ համայնքի Սպիտակ, Արջահովիտ, Ջրաշեն, Արևաշող, Շենավան, Գեղասար և Խնկոյան բնակավայրերի փողոցային լուսավորության գոյություն ունեցող համակարգերի ընդլայնում /Սպիտակ, Արջահովիտ, Ջրաշեն, Արևաշող/",0,37792.699999999997,37792.699999999997,1]
[null,null,"Ստեփանավան համայնքի Ստեփանավան բնակավայր Ռումինական թաղամասի թիվ 10, 18, 19 ԲԲՇ-ների էներգաարդյունավետ արդիականացում, ռիսկերի նվազեցում /թիվ 18 ԲԲՇ/",0,26464.5,26241.03,0.99155585784730482]
[null,null,"Լոռի Բերդ համայնքի Ագարակ բնակավայրի մանկապարտեզի շենքի հիմնանորոգում",0,11054.5,11054.5,1]
[null,null,"Մեծավան բնակավայրի մարզադահլիճի տարածքի պարսպապատում ու բակի սալարկում",0,5873.3,5827.74,0.99224286176425514]
[null,null,"Տաշիր համայնքի Ձորամուտ և Պետրովկա բնակավայրերի գազաֆիկացում",0,65026,65026,1]
[null,null,"Տաշիր համայնքի Սարատովկա և Մեղվահովիտ բնակավայրեր տանող ճանապարհների, Տաշիր քաղաքի Ջահուկյան, Գետափնյա, Էրեբունի և Մաշտոց փողոցների մայթերի վերանորոգում՝ սալարկմամբ",0,60413,60413,1]
[null,null,"Տաշիր համայնքի Տաշիր բնակավայրի ԲԲՇ-ների տանիքների վերանորոգման, էներգաարդյունավետության և ջերմաարդյունավետության բարձրացման ծրագիր",0,120076.6,120076.6,1]
[null,null,"Ալավերդի համայնքի Ալավերդի բնակավայրի ԲԲՇ-ների տանիքների վերանորոգում՝ ջերմաարդիականացմամբ",0,61130,61130,1]
[null,null,"Սպիտակ համայնքի Կաթնաջուր բնակավայրի Արցախյան գոյամարտերում անմահացած զավակների հիշատակի հուշահամալիրի կառուցում և Մեծ Պարնի բնակավայրի նոր բնակատեղիի համայնքային այգու կառուցում /Մեծ Պարնի/",0,10674,10674,1]
[null,null,"Գյուլագարակ համայնքի Գյուլագարակ, Գարգառ, Պուշկինո, Ամրակից, Վարդաբլուր, Հոբարձի և Կուրթան բնակավայրերի փողոցային լուսավորության ցանցի անցկացում",0,42242.1,42242.1,1]
[null,null,"Լերմոնտովո համայնքի փողոցների նորոգում՝ սալարկմամբ",0,14130.9,14130.9,1]
[null,null,"Փամբակ համայնքի Մարգահովիտ, Լեռնապատ, Անտառամուտ բնակավայրերի փողոցների նորոգում սալարկմամբ՝ տուֆապատման միջոցով",0,61179,61179,1]
[null,null,"Ստեփանավան համայնքի Ստեփանավան բնակավայրի քաղաքային հրապարակի հիմնանորոգում",0,83334.7,83334.7,1]
[null,null,"Ստեփանավան համայնքի Ուրասար բնակավայրի մշակույթի և ժամանցի կենտրոնի հիմնանորոգում",0,24270.799999999999,24270.799999999999,1]
[null,null,"Սպիտակ համայնքի Սարամեջ բնակավայրի ոռոգման ցանցի վերակառուցում, Արջահովիտ բնակավայրի ոռոգման ներքին ջրատարի կառուցում, Շենավան, Կաթնաջուր, Ծաղկաբեր, Արևաշող, Գեղասար բնակավայրերի ոռոգման համակարգերի կառուցում, Սարահարթ բնակավայրի 10-րդ, 15-րդ և 16-րդ փողոցների ոռոգման համակարգի կառուցում, Լեռնավան բնակավայրի ջրագծերի կառուցում և ներքին ցանցավորում /Լեռնավան բնակավայրի ոռոգում, ջրագիծ և ջրամբարի կառուցում/ ",0,177025.5,176689.08,0.99809959582094099]
[null,null,"Լոռի Բերդ համայնքի Բովաձոր, Լոռի Բերդ, Լեջան, Կողես և Յաղդան բնակավայրերի փողոցների կանոնավոր տուֆ քարով սալարկում /Կողես, Յաղդան/",0,26936.9,26936.9,1]
[null,null,"Թումանյան համայնքի Քարինջ և Չկալով բնակավայրերի գազաբաշխիչ ներքին ցանցի ընդլայնում",0,13467.3,13467.3,1]
[null,null,"Թումանյան համայնքի Թումանյան և Չկալով բնակավայրերի փողոցների սալարկում տուֆով /Թումանյան/",0,22345.8,22345.8,1]
[null,null,"Տաշիր համայնքի Տաշիր, Լեռնահովիտ, Կաթնառատ, Սարատովկա բնակավայրերի փողոցների լուսավորության ցանցի ընդլայնում` նոր էներգաարդյունավետ տեխնոլոգիաների միջոցով",0,63289.2,63289.2,1]
[null,null,"Վանաձոր համայնքի կարիքների համար աղբատար մեքենաների ձեռքբերում",0,74340,74340,1]
[null,null,"Մեծավան համայնքի Մեծավան բնակավայրի Զ. Անդրանիկ փողոցի լուսավորության ցանցի նոր էներգաարդյունավետ տեխնոլոգիաների միջոցով արդիականացում, Գորկու, Իսակով, Գագարին, Միասնիկյան, Րաֆֆու, Գայի, Պ. Սևակ, Վարդանանց, Տերյան, Աբովյան, Խանզադյան, Պուշկին փողոցների լուսավորության ցանցի կառուցում",0,25921,25921,1]
[null,null,"Ձորագետ բնակավայրի համայնքային սեփականություն հանդիսացող շենքի տանիքի կապիտալ նորոգում և շենքի մասնակի նորոգում",0,35700.199999999997,35700.199999999997,1]
[null,null,"Ֆիոլետովո համայնքի կոյուղագծի կառուցում",0,21294,21294,1]
[null,null,"Ստեփանավան համայնքի Ստեփանավան բնակավայրի քաղաքային այգու և Ալեայի անցուղու հիմնանորոգում",0,149786,149786,1]
[null,null,"Փամբակ համայնքի Բազում բնակավայրի նախկին համայնքապետարանի շենքի հիմնանորոգում որպես մշակույթի կենտրոն, Փամբակ բնակավայրի հանդիսությունների սրահի կառուցում /Բազում/",0,8457.7000000000007,8457.7000000000007,1]
[null,null,"Վանաձոր համայնքի Դարպաս բնակավայրի 3-րդ և 4-րդ փողոցների հիմնանորոգում",0,26922.6,26922.6,1]
[null,null,"Սպիտակ համայնքի Սպիտակ բնակավայրի Էստոնական և Տաշիր թաղամասերի գլխավոր ճանապարհների, Ծաղկաբեր բնակավայրի 3-րդ փողոցի, Լեռնանցք բնակավայրի «Նոր գյուղի» կենտրոնական ճանապարհի սալարկում տուֆով և ջրահեռացման համակարգի կառուցում",0,22428.1,22428.1,1]
[null,null,"Վանաձոր համայնքի Ավետիք Իսահակյան փողոցի ասֆալտապատում",0,49288.9,49288.9,1]
[null,null,"Սպիտակ համայնքի Կաթնաջուր բնակավայրի ոռոգման ջրագծի պոմպակայանի տեղադրում, Լեռնավան, Գեղասար և Արջահովիտ բնակավայրերի ոռոգման ցանցի ընդլայնում, Շենավան և Գոգարան բնակավայրերի ոռոգման ցանցի կառուցում, Սարամեջ բնակավայրի ոռոգման ջրամբարների վերանորոգում, Սարահարթ բնակավայրի ոռոգման համակարգի ընդլայնում և պոմպակայանի վերանորոգում",0,150047.5,150047.5,1]
[null,null,"Ալավերդի համայնքի Մեծ Այրում և Ճոճկան բնակավայրերի ոռոգման համակարգերի ներքին ցանցի և  Ճոճկան բնակավայրի ՕԿՋ-ի կառուցում",0,69169.600000000006,69169.600000000006,1]
[null,null,"Տաշիր համայնքում աղբավայրի կոնսերվացման /փակման/ ծրագիր",0,13239.2,13239.2,1]
[null,null,"Լոռի Բերդ համայնքի Ագարակ, Լեջան, Կողես, Յաղդան և Սվերդլով բնակավայրերի գիշերային լուսավորության համակարգերի կառուցում",0,31998.5,31998.5,1]
[null,null,"Ստեփանավան համայնքի Ստեփանավան բնակավայրի Ռումինական թաղամասի թիվ 10, 18, 19 ԲԲՇ-ների էներգաարդյունավետ արդիականացում, ռիսկերի նվազեցում /10 և 19 ԲԲՇ-ներ/",0,73749.5,70131.08,0.95093634533115479]
[null,null,"Օձուն համայնքի բնակավայրերում լուսավորության համակարգերի կառուցում",0,14986.4,14986.4,1]
[null,null,"Գյուլագարակ համայնքի Գյուլագարակ բնակավայրի արվեստի դպրոցի համայնքային շենքի կառուցում",0,33772.5,33772.5,1]
[null,null,"Շնող համայնքի փողոցների արտաքին լուսավորության անցկացում՝ արևային լուսատուներով",0,17564.400000000001,17564.400000000001,1]
[null,null,"Լոռի Բերդ համայնքի Բովաձոր բնակավայրի ներհամայնքային ճանապարհների կանոնավոր տուֆ քարով սալարկում",0,13283.8,13283.8,1]
[null,null,"Վանաձոր համայնքի Գուգարք բնակավայրի Էներգետիկների 5-րդ փողոցի և Կոտեջային 1, 2, 3, 4, 9-րդ փողոցների հիմնանորոգում, 14-րդ փողոցում սելավատարի կառուցում",0,36810.9,36810.9,1]
[null,null,"Լոռի Բերդ համայնքի Լոռի Բերդ, Բովաձոր, Հովնանաձոր և Սվերդլով բնակավայրերի ջրամատակարարման համակարգի ներքին և արտաքին ցանցի մասնակի նորոգում և հաշվիչների տեղադրում",0,12946.3,12946.3,1]
[null,null,"Սպիտակ համայնքի Սպիտակ, Նոր Խաչակապ, Ջրաշեն, Ծաղկաբեր, Սարալանջ, Խնկոյան բնակավայրերի փողոցների տուֆով սալարկում",0,92178.4,92160.4,0.99980472648689933]
[null,null,"ՀՀ Կոտայքի մարզպետի աշխատակազմ",{"$f":"SUM(D368:D435)","v":0},{"$f":"SUM(E368:E435)","v":4269227.0999999996},{"$f":"SUM(F368:F435)","v":4261914.3769999994},0.99828710845576707]
[null,null,"Ակունք համայնքի համար բազմաֆունկցիոնալ ճանապարհային մեքենայի ձեռքբերում",0,25250,25250,{"$f":"IF(F368=0,\"       \",F368/E368)","v":1}]
[null,null,"Ակունք համայնքի Սևաբերդ և Զառ բնակավայրերի ջրամատակարարման համակարգերի բարելավում",0,1295,1295,1]
[null,null,"Ակունք համայնքի Ակունք բնակավայրի 14-րդ փողոցի, 14-րդի 1-ին փակուղի, Նոր Գյուղ բնակավայրի 9-րդ փողոց, 2-րդ, և 10-րդ փողոցների, Կապուտան բնակավայրի 10-րդ, 9-րդ ,փողոցների , Կոտայք բնակավայրի 3-րդ փողոցի և 3-րդ փողոցի 1-ին նրբանցքի, Զառ բնակավայրի Մեխանիզատորների և դպրոցականների փողոցների ասֆալտապատում",0,5544,5544,1]
[null,null,"Բյուրեղավան համայնքի Բյուրեղավան քաղաքում պուրակի կառուցում",0,8537.7000000000007,8537.7000000000007,1]
[null,null,"Աբովյան համայնքի Աբովյան բնակավայրի 4-րդ միկրոշրջանում զբոսայգու և խաղադաշտի կառուցման, Բալահովիտ բնակավայրի զբոսայգու բարեկարգման և Գետարգել բնակավայրի զբոսայգիների կառուցում",0,47162.9,47162.9,1]
[null,null,"Աբովյան համայնքի Ռոսիա փողոցի ասֆալտապատման և եզրաքարերի փոխարինման, Գետարգել բնակավայրի Հ. Վերդյան փողոցի շենքերի հետնամասի և նոր թաղամասի, Պտղնի բնակավայրի, Արամուս բնակավայրի, Գետաշեն բնակավայրի 3-րդ թաղամասի 3-րդ փողոցի, Կամարիս բնակավայրի 7-րդ և 3-րդ փողոցների, Առինջ բնակավայրի Գետարգել վանքին միացնող Ա թաղամասի 4-րդ, 5-րդ և 6-րդ փողոցների, Վերին Պտղնի բնակավայրի գերեզմանների հարակից տարածքի, Կաթնաղբյուր բնակավայրի 5-րդ փողոցի 1-ին փակուղու, Մայակովսկի բնակավայրի 2-րդ, 10-րդ, 11-րդ և 12-րդ փողոցների և Բալահովիտ բնակավայրի 2-րդ փողոցի ասֆալտապատման աշխատանքներ",0,23152.6,23152.6,1]
[null,null,"Ծաղկաձոր համայնքի Խաչիկ Մուրադյան փողոցի մի մասի և Մհեր Մկրտչյան փողոցին զուգահեռ ճանապարհի կառուցման` ասֆալտապատման աշխատանքներ",0,9078.6,8676.5,0.95570903002665608]
[null,null,"Ծաղկաձոր համայնքի Մեղրաձոր գյուղի 1-ին փողոց, 1-ին փողոց 11 նրբանցք, 11 փողոց 4-րդ նրբանք, 9-րդ փողոց 4-րդ նրբանցք և 9-րդ փողոցներում, Արտավազ գյուղի 2-րդ փողոցում և Մարմարիկ գյուղի 4-րդ փողոցում ջրահեռացման առուների հիմնանորոգման աշխատանքներ",0,22443.3,22443.3,1]
[null,null,"Ծաղկաձոր համայնքի Աղավնաձոր գյուղի 1-ին, 2-րդ, 3-րդ և 4-րդ փողոցներում ջրահեռացման առուների հիմնանորոգման աշխատանքներ",0,27555.4,26952.030999999999,0.97810342074511702]
[null,null,"Ծաղկաձոր համայնքի Սուրբ Հարություն եկեղեցու 3000 քմ տարածքի հարակից զբոսայգու կառուցում",0,14841.8,13571.82,0.91443221172634048]
[null,null,"Աբովյան համայնքի Աբովյան բնակավայրի 7-8 միկրոշրջանի, Ռոսիա փողոցի, Առինջ բնակավայրի 1-ին փողոցի 1-ին նրբանցքի և 24-րդ փողոցի, գերեզմանատան ճանապարհի, Մայակովսկի բնակավայրի, Գեղաշեն բնակավայրի Արամուս բնակավայրի փողոցային լուսավորության համակարգերի կառուցում",0,63759,63759,1]
[null,null,"Նաիրի համայնքի Եղվարդ, Զորավան, Արագյուղ բնակավայրերի խմելու ջրագծի ցանցի կառուցման և Բուժական, Սարալանջ բնակավայրերի խմելու ջրագծերի հիմնանորոգման աշխատանքներ (Զորավան բնակավայրի խմելու ջրագծերի հիմնանորոգման աշխատանքներ)",0,4670.1000000000004,4670.1000000000004,1]
[null,null,"Ծաղկաձոր համայնքի կոյուղագծերի կառուցման աշխատանքներ (Ծաղկաձոր համայնքի Օրբելի եղբայրներ և Չարենցի փողոցների, Պահլավունյանց, Սարալանջ հատման հատվածով դեպի Մ. Մկրտչյան փողոց և դեպի Հայֆիդայիների փողոցի կոյուղագծերի կառուցման աշխատանքներ)",0,107910,103218.126,0.95652048929663613]
[null,null,"Աբովյան բնակավայրի Ռոսիա փողոցի և Առինջ բնակավայրի Ա թաղամասի 4-րդ, 5-րդ, 6-րդ փողոցների ջրահեռացման համակարգերի անցկացման աշխատանքներ /Աբովյան բնակավայրի Ռոսիա փողոցի/",0,34118.6,34118.6,1]
[null,null,"Նաիրի համայնքի Եղվարդ, Զորավան, Արագյուղ բնակավայրերի խմելու ջրագծի ցանցի կառուցման և Բուժական, Սարալանջ բնակավայրերի խմելու ջրագծերի հիմնանորոգման աշխատանքներ",0,8825.1,8825.1,1]
[null,null,"Նաիրի համայնքի Եղվարդ, Զովունի, Քասախ բնակավայրերում կոյուղու (ջրահեռացման) ցանցի կառուցում /Եղվարդ/",0,70219.8,70219.8,1]
[null,null,"Նաիրի համայնքի Եղվարդի Զորավար Անդրանիկի 1-ից 8-րդ նրբանցքների, Աբովյան, Ավտոկայան, Զաքարյան, Կնունյանց, Հովհաննիսյան, Շահումյան, Շիրակի, Սայաթ-Նովայի, Սաֆարյան, Արա Գեղեցիկի և Չարենցի փողոցների, Պռոշյան բնակավայրի Մայիսյան 4-րդ նրբանցքի, Գևորգ Չաուշի 4-րդ, 5-րդ, 6-րդ, 7-րդ նրբանցքների, Զորավան բնակավայրի 1-ին փողոցի, 2-րդ փակուղու և 10-րդ նրբանցքի, Զովունի բնակավայրի 39-րդ, 38-րդ և 7-րդ փողոցների ասֆալտապատման աշխատանքներ /Պռոշյան/",0,50424.5,50424.5,1]
[null,null,"Նաիրի համայնքի մի շարք բնակավայրերի փողոցների արտաքին լուսավորության և Եղվարդի Սարալանջ բնակավայրի 3-րդ և 5-րդ փողոցների լուսավորության ցանցի կառուցում",0,44199.199999999997,44199.199999999997,1]
[null,null,"Գառնի գյուղի խմելու ջրի համակարգում քլորակայանի, Գեղարդ, Հացավան և Գեղադիր գյուղերում ջրագծերի կառուցում",0,31316.799999999999,31316.799999999999,1]
[null,null,"Աբովյան համայնքի և Առինջ բնակավայրերի Ռոսիա փողոցի և Առինջ բնակավայրի Ա թաղամասի 4-րդ, 5-րդ, 6-րդ փողոցների ջրահեռացման համակարգերի անցկացման աշխատանքներ",0,3220.8,3220.8,1]
[null,null,"Մրգաշեն բնակավայրի 7-րդ փողոցի /2-րդ, 4-րդ, 6-րդ, 8-րդ, 10-րդ շենքերի/ և ջրահեռացման ցանցի կառուցում և Մրգաշեն բնակավայրի խմելու ջրագծերի կառուցում",0,9709.9,9709.9,1]
[null,null,"Նաիրի համայնքի Եղվարդ, Զորավան, Արագյուղ բնակավայրերի խմելու ջրագծի ցանցի կառուցման և Բուժական, Սարալանջ բնակավայրերի խմելու ջրագծերի հիմնանորոգման աշխատանքներ",0,2941.7,2941.7,1]
[null,null,"Նոր Հաճն համայնքի Մրգաշեն բնակավայրի 7-րդ փողոցի (2-րդ, 4-րդ, 6-րդ, 8-րդ, 10-րդ շենքերի) և ջրահեռացման ցանցի կառուցում և Մրգաշեն բնակավայրի խմելու ջրագծերի կառուցում (Մրգաշեն)",0,23008.5,23008.5,1]
[null,null,"Նոր Հաճն համայնքի Մրգաշեն բնակավայրի 7-րդ փողոցի 4-րդ, 6-րդ, 8-րդ, 10-րդ բազմաբնակարան շենքերի մուտքերի և տանիքների և Արգել բնակավայրի բազմաբնակարան շենքերի մուտքերի վերանորոգում (Արգել)",0,25405.3,25405.3,1]
[null,null,"Նաիրի համայնքի Արագյուղ, Քասախ, Պռոշյան բնակավայրերում ոռոգման համակարգի կառուցում",0,{"$f":"198075.2-11205.4","v":186869.80000000002},{"$f":"198075.2-11205.4","v":186869.80000000002},1]
[null,null,"Նաիրի համայնքի Եղվարդ, Զովունի, Քասախ բնակավայրերում կոյուղու (ջրահեռացման) ցանցի կառուցում (Եղվարդ)",0,23406.6,23406.6,1]
[null,null,"Նաիրի համայնքի մի շարք բնակավայրերի փողոցների\nարտաքին լուսավորության և Եղվարդի Սարալանջ\nբնակավայրի 3-րդ և 5-րդ փողոցների լուսավորության\nցանցի կառուցում /Սարալանջ, Զորավան /",0,5608,5608,1]
[null,null,"Հրազդան համայնքի Բաղրամյան թաղամաս, 5-րդ փողոցի թիվ 7/1 հասցեում գտնվող թիվ 11 մանկապարտեզի և թիվ 6 մանկապարտեզի հիմնանորոգում, թիվ 8 մանկապարտեզի վերանորոգում, թիվ 4 մանկապարտեզի 2-րդ մասնաշենքի, միջանցքի հիմնանորոգման ու վերանորոգման աշխատանքների իրականացում և թիվ 15 մանկապարտեզի կոյուղու ցանցի կառուցում",0,645771.30000000005,645771.30000000005,1]
[null,null,"Գառնի գյուղի խմելու ջրի համակարգում քլորակայանի, Գեղարդ, Հացավան և Գեղադիր գյուղերում ջրագծերի կառուցում",0,10439,10439,1]
[null,null,"Նոր Հաճըն համայնքի Քանաքեռավան բնակավայրի կոյուղու կառուցում",0,127600.3,127600.3,1]
[null,null,"Ակունք համայնքի Սևաբերդ և Զառ բնակավայրերի ջրամատակարարման համակարգերի բարելավում /Զառ-2 փուլ/",0,109025,109025,1]
[null,null,"Ծաղկաձոր համայնքի Աղավնաձոր բնակավայրի 1-ին և 3-րդ փողոցների կապիտալ վերանորոգում` ասֆալտապատում",0,24127.200000000001,24127.200000000001,1]
[null,null,"Նաիրի համայնքի Եղվարդ բնակավայրի «Արվեստի դպրոց» ՀՈԱԿ-ի շենքի մասնակի վերանորոգում",0,15809.4,15809.4,1]
[null,null,"Նաիրի համայնքի Արագյուղ բնակավայրի մանկապարտեզի և Պռոշյանի թիվ 1 մսուր մանկապարտեզի հիմնանորոգում /Արագյուղ բնակավայրի մանկապարտեզի հիմնանորոգում",0,73323,73323,1]
[null,null,"Ջրվեժ համայնքի ներհամայնքային ճանապարհների ասֆալտապատման աշխատանքներ",0,45285.9,45285.9,1]
[null,null,"Նաիրի համայնքի Եղվարդ, Զովունի, Քասախ բնակավայրերում կոյուղու (ջրահեռացման) ցանցի կառուցում /Զովունի բնակավայրում կոյուղու (ջրահեռացման) ցանցի կառուցում",0,91537.8,91537.8,1]
[null,null,"Ակունք համայնքի Սևաբերդ և Զառ բնակավայրերի ջրամատակարարման  համակարգերի բարելավում /Զառ բնակավայրի ջրամատակարարման համակարգի բարելավում/",0,9341,9341,1]
[null,null,"Նոր Հաճն համայնքի Քանաքեռավան բնակավայրի կոյուղու կառուցում ",0,63800.1,63800.1,1]
[null,null,"Ակունք համայնքի Նոր Գյուղ բնակավայրի մանկապարտեզի շենքի կառուցում",0,143159.1,143159.1,1]
[null,null,"Ջրվեժ համայնքի Ձորաղբյուր գյուղի «Մեծ աղբյուր» աղբյուրակապերի և «Լճի մոտ» պոմպակայանի վերակառուցում ",0,60643.7,60643.7,1]
[null,null,"Նաիրի համայնքի   գազաֆիկացման աշխատանքներ/Եղվարդ, Արագյուղ, Քասախ, Պռոշյան բնակավայրեր/",0,85620.4,85620.4,1]
[null,null,"Ծաղկաձոր համայնքի Մարմարիկ բնակավայրի 3-րդ, 9-րդ փողոցների և 11-րդ փողոցի 1-ին փակուղու կապիտալ վերանորոգման` ասֆալտապատման աշխատանքներ",0,29638.6,29638.6,1]
[null,null,"Նոր Հաճն համայնքի Է. Տոռոզյան և Շաս Սյուր Ռոնի փողոցների ասֆալտապատում",0,141418.1,141418.1,1]
[null,null,"Ծաղկաձոր համայնքի Մեղրաձոր բնակավայրի 3-րդ, 9-րդ և 11-րդ փողոցների կապիտալ վերանորոգման` ասֆալտապատման աշխատանքներ",0,65186.7,65186.7,1]
[null,null,"Նաիրի համայնքի Զովունի, Եղվարդ, Քասախ, Պռոշյան, Արագյուղ, Զորավան և Բուժական բնակավայրերի փողոցային լուսավորության համակարգի կառուցման և նորոգման աշխատանքներ",0,70957.899999999994,70957.899999999994,1]
[null,null,"Նաիրի համայնքի Զովունի բնակավայրի խմելու ջրի ներհամայնքային ցանցի կառուցման աշխատանքներ",0,152765.20000000001,152765.20000000001,1]
[null,null,"Բալահովիտ բնակավայրում նոր մանկապարտեզի շենքի կառուցում",0,44240,44240,1]
[null,null,"Գառնի համայնքի Ս Շահումյան 4 հասցեում  գտնվող համայնքապետարանի շենքի նկուղի  նորոգման աշխատանքներ",0,8305.7999999999993,7960.4,0.95841460184449423]
[null,null,"Նոր Հաճըն համայնքի Արգել բնակավայրի մանկապարտեզի հիմնանորոգման աշխատանքներ",0,92186.8,92186.8,1]
[null,null,"Նոր Հաճն համայնքի Քարաշամբ, Նոր Արտամետ, Նոր Գեղի, Արգել, Գետամեջ և Թեղենիք բնակավայրերի արտաքին լուսավորության անցկացում /Նոր Գեղի, Քարաշամբ/",0,23395.5,23395.5,1]
[null,null,"Ակունք համայնքի Կոտայք  բնակավայրի ջրամատակարարման համակարգերի բարելավում",0,35935.5,35935.5,1]
[null,null,"Ակունք համայնքի Ակունք բնակավայրի 4-րդ և 19-րդ,  փողոցների ասֆալտապատում",0,13299.3,13299.3,1]
[null,null,"Ակունք համայնքի Էքսկավատոր-բեռնիչի ձեռքբերում ",0,24305,24305,1]
[null,null,"Նաիրի համայնքի Արագյուղ, Բուժական, Սարալանջ, Զորավան, Զովունի, Քասախ, Պռոշյան և  Եղվարդ բնակավայրերի  ճանապարհների ասֆալտապատման աշխատանքներ/Քասախ և Պռոշյան/",0,72203,72203,1]
[null,null,"Նաիրի համայնքի Եղվարդ, Արագյուղ, Սարալանջ և Զորավան բնակավայրերի և Եղվարդ բնակավայրի Երևանյան թաղամասի  խմելու ջրագծերի բարելավում",0,33072.6,33072.6,1]
[null,null,"Նաիրի համայնքի Պռոշյան, Քասախ , Բուժական և Արագյուղ բնակավայրերի  ոռոգման համակարգի կառուցում ",0,71033.8,71033.8,1]
[null,null,"Նաիրի համայնքի Եղվարդ,  Քասախ, Բուժական  բնակավայրերում կոյուղու ցանցի կառուցում",0,115233.9,115233.9,1]
[null,null,"Աբովյան համայնքի Աբովյան քաղաքի Նաիրյան փողոցի Ս․ Մնացականյան փողոցի, 2-րդ միկրոշրջանի  7-րդ դպրոց տանող ճանապարհների, Առինջ գյուղի Ստեփան Առինջեցու փողոցի 1-ին փակուղու, Պ Դուրյան թ-ի 4-րդ և 7-րդ փողոցները կապող հատվածի , Պ Սևակի 3-րդ փ., Ա թաղամասի 2-րդ և 3-րդ փողոցների,Դ Խաչատրյան փողոցի 2-րդ նրբանցքի,  Ձագավանքի փողոցի՝  Արամուս գյուղի կենտրոնական փողոցի , Ջրմուղ փողոցից մինչև գյուղի վերջ, 3-րդ փողոցի, 1-ին փողոցի, 2-րդ փողոցի, Մայակովսկի գյուղի 12-րդ փողոցի 1-ին փակուղու,13-րդ փողոցի , 2-րդ փողոցի 1-ին և 2-րդ փակուղիների, 1-ին փողոցի 1-ին փակուղու,Կաթնաղբյուր գյուղի 5-րդ փողոցի , Գետարգել գյուղի Վերդյան փողոցի ասֆ. և եզրաքարերի փոխարինման, Վերին Պտղնի Նորավան թ-ի 2-րդ փողոցի , Բալահովիտ գյուղի Ծաղկունք թաղամասի 3-րդ փողոցի 2-րդ և 3-րդ նրբ-ի, Պտղնի գյուղի 1-ին փողոցի 1-ին նրբանցքի, 4-րդ փողոցի , Գեղաշեն գյուղի 3-րդ թ-ի 3-րդ և 4-րդ փողոցների և դրանց միացումների, 1-ին փողոցի 5-րդ փակուղու, 6-րդ փողոց 2-րդ փակուղու,, Կամարիս գյուղի 2-րդ փողոցի, 3-րդ փողոցի 1-ին նրբանցքի, 1-ին փողոցի 1-ին նրբանցքի  ասֆ. աշխ. /Աբովյան քաղաքի Նաիրյան փողոցի Ս․ Մնացականյան փողոցի, 2-րդ միկրոշրջանի  7-րդ դպրոց տանող ճանապարհների, Առինջ գյուղի Ստեփան Առինջեցու փողոցի 1-ին փակուղու, Պ Դուրյան թաղամասի 4-րդ և 7-րդ փողոցները կապող հատվածի , Պ Սևակի 3-րդ փողոցի, Ա թաղամասի 2-րդ և 3-րդ փողոցների,Դ Խաչատրյան փողոցի 2-րդ նրբանցքի,  Ձագավանքի փողոցի, Գետարգել գյուղի Վերդյան փողոցի ասֆ. և եզրաքարերի փոխարինման/",0,242975.4,242975.4,1]
[null,null,"Աբովյան համայնքի Աբովյան բնակավայրի թվով 292 Վերելակների արդիականացում",0,33782.400000000001,33782.400000000001,1]
[null,null,"Նաիրի համայնքի Եղվարդի Զորավար Անդրանիկի 1-ից 8-րդ նրբանցքների,Աբովյան,Ավտոկայան,Զաքարյան,Կնունյանց,Հովհաննիսյան,Շահումյան,Շիրակի,Աայաթ Նովայի,Սաֆարյան, Արա Գեղեցիկի և Չարենցի փողոցների, Պռոշյան բնակավայրի Մայիսյան 4-րդ նրբանցքի, Գևորգ Չաուշի 4-րդ, 5-րդ, 6-րս, 7-րդ նրբանցքների, ,Զորավան բնակավայրի 1-ին փողոցի, 2-րդ փակուղու և 10-րդ նրբանցքի  Զովունի բնակավայրի  39-րդ, 38-րդ և 7-րդ փողոցների ասֆալտապատման աշխատանքներ/ Զովունի բնակավայրի  39-րդ, 38-րդ և 7-րդ փողոցների ասֆալտապատման աշխատանքներ/",0,89969.9,89969.9,1]
[null,null,"Արզնի համայնքի մարզադաշտի օժանդակ կառույցների և ինժեներական կոմունիկացիաների կառուցում ",0,11778.4,11778.4,1]
[null,null,"Աբովյան համայնքի Աբովյան քաղաքի Նաիրյան փողոցի Ս․ Մնացականյան փողոցի, 2-րդ միկրոշրջանի  7-րդ դպրոց տանող ճանապարհների, Առինջ գյուղի Ստեփան Առինջեցու փողոցի 1-ին փակուղու, Պ Դուրյան թաղամասի 4-րդ և 7-րդ փողոցները կապող հատվածի , Պ Սևակի 3-րդ փողոցի, Ա թաղամասի 2-րդ և 3-րդ փողոցների,Դ Խաչատրյան փողոցի 2-րդ նրբանցքի,  Ձագավանքի փողոցի՝  Արամուս գյուղի կենտրոնական փողոցի , Ջրմուղ փողոցից մինչև գյուղի վերջ, 3-րդ փողոցի, 1-ին փողոցի, 2-րդ փողոցի, Մայակովսկի գյուղի 12-րդ փողոցի 1-ին փակուղու,13-րդ փողոցի , 2-րդ փողոցի 1-ին և 2-րդ փակուղիների, 1-ին փողոցի 1-ին փակուղու,Կաթնաղբյուր գյուղի 5-րդ փողոցի , Գետարգել գյուղի Վերդյան փողոցի ասֆալտապատման և եզրաքարերի փոխարինման, Վերին Պտղնի Նորավան թաղամասի 2-րդ փողոցի , Բալահովիտ գյուղի Ծաղկունք թաղամասի 3-րդ փողոցի 2-րդ և 3-րդ նրբանցքների, Պտղնի գյուղի 1-ին փողոցի 1-ին նրբանցքի, 4-րդ փողոցի , Գեղաշեն գյուղի 3-րդ թաղամասի 3-րդ և 4-րդ փողոցների և դրանց միացումների,  1-ին փողոցի 5-րդ փակուղու, 6-րդ փողոց 2-րդ փակուղու,, Կամարիս գյուղի 2-րդ  փողոցի, 3-րդ փողոցի 1-ին նրբանցքի, 1-ին փողոցի 1- ին նրբանցքի  ասֆալտապատմանն աշխատանքներ   / Արամուս/",0,52314.6,52314.6,1]
[null,null,"Աբովյան համայնքի Աբովյան քաղաքի Հատիս փողոցի 1-ին և 2-րդ թաղամասերի, Առինջ բնակավայրի Զագավանքի փողոցի,Արամուս բնակավայրի Տիգրանաձոր խճ-ու, Ջերմատան փողոցի և Երիտասարդական թաղամասի 2-րդ փողոցի,Պտղնի բնակավայրի 10-րդ և 12-րդ փողոցների, Մայակովսկի բնակավայրի 15-րդ փողոցի լուսավորության համակարգի կառուցում",0,13206.5,13206.5,1]
[null,null,"Գառնի համայնքի Գառնի բնակավայրի  խմելու ջրի խողովակների  անցկացում",0,31601.4,31601.4,1]
[null,null,"Ծաղկաձոր համայնքի Արտավազ և Փյունիկ բնակավայրերի խմելու ջրի ջրամատակարարման համակարգի կառուցում",0,185434.1,185434.1,{"$f":"IF(F432=0,\"       \",F432/E432)","v":1}]
[null,null,"Ծաղկաձոր համայնքի Աղավնաձոր գյուղի խմելու ջրի խողովակների նորացում և ջրավազանի կառուցում",0,14203.4,14203.4,1]
[null,null,"Ծաղկաձոր համայնքի Ծաղկաջոր բնակավայրի Վ Հարությունյան փողոցի հենապատի կառուցման աշխատանքներ",0,26234.1,26234.1,1]
[null,null,"Նաիրի համայնքի Արագյուղ, Բուժական, Սարալանջ, Զորավան, Զովունի, Քասախ, Պռոշյան և  Եղվարդ բնակավայրերի  ճանապարհների ասֆալտապատման աշխատանքներ/ Արագյուղ, Բուժական, Սարալանջ, Զորավան և  Եղվարդ/ ",0,188591,188591,1]
[null,null,"ՀՀ Շիրակի մարզպետի աշխատակազմ",{"$f":"SUM(D437:D472)","v":0},{"$f":"SUM(E437:E472)","v":2713811.6999999997},2697950.4019999993,0.99415534320233034]
[null,null,"Գյումրի համայնքի համար բազմաֆունկցիոնալ տեխնիկայի ձեռք բերում ",0,67980.600000000006,67980.600000000006,{"$f":"IF(F437=0,\"       \",F437/E437)","v":1}]
[null,null,"Գյումրի համայնքին պատկանող շենքերին, շինութուններին արևային համակարգի տեղադրում ",0,447870,447369,0.99888137182664616]
[null,null,"Աշոցք համայնքի Աշոցք բնակավայրում պուրակի կառուցման աշխատանքներ ",0,17212.599999999999,17212.599999999999,1]
[null,null,"Մարմաշեն համայնքի Շիրակ գյուղում 2 խմբասենյակով 46 երեխայի համար նախատեսված մանկապարտեզի կառուցում",0,14824.7,14824.7,1]
[null,null,"Գյումրի համայնքի 22 փողոցների հիմնանորոգում",0,904534.3,902437.56700000004,0.99768197513350243]
[null,null,"Արթիկ համայնքի Արթիկ, Հայկասար, Հայրենյաց, Պեմզաշեն, Սարատակ, Վարդաքար, Արևշատ, Հովտաշեն, Տուֆաշեն և Գետափ բնակավայրերի փողոցային լուսավորության ցանցի ընդլայնում",0,39152.300000000003,39150.1,0.99994380917596148]
[null,null,"Աշոցք համայնքի Աշոցք, Սիզավետ, Ցողամարգ, Գոգհովիտ, Արփենի, Մուսայելյան, Փոքր Սարիար և Սալուտ բնակավայրերի համայնքային կենտրոնների նորոգման և վերակառուցման աշխատանքներ ",0,28315.7,28238.154999999999,0.99726141327955864]
[null,null,"Աշոցք համայնքի Աշոցք, Սիզավետ, Ցողամարգ, Գոգհովիտ, Արփենի, Մուսայելյան, Փոքր Սարիար և Սալուտ բնակավայրերի համայնքային կենտրոնների նորոգման և վերակառուցման աշխատանքներ \n",0,3709.2,3709.2,1]
[null,null,"Արթիկ բնակավայրի թվով 6 բազմաբնակարան շենքերի տանիքների վերանորոգում",0,31433.599999999999,31433.599999999999,1]
[null,null,"Ամասիա համայնքի Աղվորիկ, Բերդաշեն, Զարիշատ, Զորակերտ գյուղական համայնքների ջրագծի կառուցում ",0,16695,16689.41,0.99966516921233906]
[null,null,"Գյումրի համայնքի սոցիալական բնակարանների և մշակութային կենտրոնների վերանորոգում (տիկնիկային թատրոն) ",0,21748.2,21748.2,1]
[null,null,"Գյումրի համայնքի երկրորդային 17 փողոցների հիմնանորոգում /Կոմիտաս փողոցի ասֆալտապատում/ ",0,94017,92716.123999999996,0.98616339598157776]
[null,null,"Ախուրյան համայնքի Բայանդուր բն. մանկապարտեզի շենքի կառուցում /2 փուլով/ ",0,125713.2,125713.2,1]
[null,null,"Մարմաշեն համայնքի Վահրամաբերդ բնակավայրի մանկապարտեզի կառուցում",0,58222.9,56706.150999999998,0.97394927081955718]
[null,null,"Գյումրի համայնքի սոցիալական բնակարանների և մշակութային կենտրոնների վերանորոգում /տիկնիկային թատրոնի տանիքի վերականգնման մասով/ ",0,3333.3,3297.3,0.98919989199892]
[null,null,"Գյումրի քաղաքի երկրորդային 8 փողոցների և 1 հրապարակի հիմնանորոգում /հրապարակի հիմնանորոգում/ ",0,53524.4,53524.4,1]
[null,null,"Արփի համայնքի Աղվորիկ, Արդենիս և Զարիշատ բնակավայրերի համայնքային կենտրոնների նորոգում",0,16889.400000000001,16889.400000000001,1]
[null,null,"Ախուրյան համայնքի Կառնուտ բնակավայրի մանկապարտեզի շենքի կառուցում՝ /1 փուլ/",0,107865.2,107865.2,1]
[null,null,"Արթիկ համայնքի Արթիկ բն. Տուֆագործների և Թամանյան փողոցների ասֆալտապատում և Շիրակացի փողոցի մայթի կառուցում",0,52318.7,52318.7,1]
[null,null,"Ամասիա համայնքի Արդենիս և Զարիշատ բնակավայրերի փողոցային լուսավորության ցանցի կառուցում",0,5252.8,5252.8,1]
[null,null,"Ախուրյան համայնքի 4 բնակավայրերի ներբնակավայրային ճանապարհների ասֆալտապատում /Երազգավորս, Ախուրյան բնակավայրի Շահբազյան փողոց/",0,30828.7,29806.799999999999,0.96685231618589162]
[null,null,"Հայաստանի Հանրապետության Շիրակի մարզի Ախուրյան համայնքի՝ Բենիամին, Ազատան, Երազգավորս և Ախուրյան բնակավայրերի ներբնակավայրային ճանապարհների ասֆալտապատման աշխատանքներ /Ազատան/ \n",0,52744,50494.48,0.95735021993022906]
[null,null,"Ամասիա համայնքի Ամասիա բն․ 2-րդ փողոցից մինչև 24-րդ փողոց ընկած հատվածի ասֆալտապատման աշխատանքներ",0,38309.5,38309.5,1]
[null,null,"Արթիկ համայնքի Արթիկ, Արևշատ, Նահապետավան, Պեմզաշեն, Սարալանջ և Հառիճ բն․ ճանապարհների տուֆ քարով սալապատում",0,25052.799999999999,25052.799999999999,1]
[null,null,"Արթիկ համայնքի Արթիկ բնակավայրի թվով 15 բազմաբնակարան շենքերի տանիքների վերանորոգում /11շեննք/",0,54397.5,54388.758000000002,0.99983929408520611]
[null,null,"Անի համայնքի կարիքների համար բազմաֆունկցիոնալ տեխնիկաների ձեռքբերում /էքսկավատոր բեռնիչ/",0,26388.1,26388.1,1]
[null,null,"Անի համայնքի Լանջիկ բն․ խմելու ջրի ջրամատակարարման ներքին ցանցի կառուցում",0,100237,100216.057,0.99979106517553396]
[null,null,"Արթիկ համայնքի Արթիկ բն․ Տուֆագործների և Թամանյան փողոցների ասֆալտապատում և Շիրակացի փողոցի մայթի կառուցում /լրացուցիչ աշխատանքների համաձայնագիր/",0,2751,2751,1]
[null,null,"Աշոցք համայնքի Թավշուտ բնակավայրում ոռոգման համակարգի կառուցում",0,50226.400000000001,50226.400000000001,1]
[null,null,"Գյումրի համայնքի ՀՈԱԿ-ների և բակերի կարիքների համար անհրաժեշտ գույքի ձեռքբերում /նստարաններ, աղբամաններ/",0,4579.1000000000004,4579.1000000000004,1]
[null,null,"Գյումրի համայնքի կարիքների համար բազմաֆունկցիոնալ տեխնիկաների և սարքավորումների ձեռքբերում /2 խոտհնձիչ, 1 հողը փխրեցնող սարք, 1 աղբատար և 1 բեռնատար մեքենաներ/",0,58561.599999999999,58561.599999999999,1]
[null,null,"Ախուրյան համայնքի Բենիամին բնակավայրի ոռոգման ցանցի հիմնանորոգում",0,62623.3,55685.3,0.88921056539658561]
[null,null,"Գյումրի համայնքի սոցիալական բնակարանների և մշակութային կենտրոնների վերանորոգում /սոց․ բնակարանների վերանորոգում, Ասլամազյան թանգարանի պատշգամբի նորոգում/",0,12497.5,12497.5,1]
[null,null,"Աշոցք համայնքի Աշոցք բնակավայրում պուրակի կառուցման աշխատանքներ",0,35451,35365.5,0.99758822036049755]
[null,null,"Աշոցք համայնքի Արփենի, Կաքավասար, Բավրա և Սարագյուղ բնակավայրերի խմելու ջրագծերի վերանորոգման և վերակառուցման աշխատանքներ",0,21040.5,21040.5,1]
[null,null,"Աշոցք համայնքի Սարագյուղ, Բավրա, Զույգաղբյուր բնակավայրերում բնական գազի ներքին ցանցի կառուցում",0,27510.6,27510.6,1]
[null,null,"ՀՀ Սյունիքի մարզպետի աշխատակազմ",{"$f":"SUM(D474:D536)","v":0},{"$f":"SUM(E474:E536)","v":4948981.7000000011},{"$f":"SUM(F474:F536)","v":4948981.7000000011},1]
[null,null,"Գորայք համայնքի գ. Ծղուկ 1-ին փողոց 10-րդ վարչական\nշենք հասցեի վարչական ղեկավարի նստավայրի շենքի և\nնախակրթարանի վերանորոգման աշխատանքներ \n",0,19363.8,19363.8,{"$f":"IF(F474=0,\"       \",F474/E474)","v":1}]
[null,null,"Գորայք համայնքի Գորայք բնակավայրի «Սպիտակ տուն», «Ծաղկունք»> աղբյուրներից No 1 ՕԿՋ-ը սնող ջրագծի խողովակաշարի հիմնանորոգում ",0,34080,34080,1]
[null,null,"Քաջարան համայնքի «Փողոցային լուսավորության\nհամակարգի կառուցում գյուղական բնակավայրում»\n/Անդոկավան, Քաջարաց, Փուխրուտ, Նոր Աստղաբերդ,\nՁագիկավան, Կաթնառատ, Աջաբաջ/ \n",0,40574.200000000004,40574.200000000004,1]
[null,null,"Գորիս համայնքի «Գորիսի-Վերիշեն- Ակներ ավտոճանապարհի 1379 մ հատվածի ասֆալտապատման աշխատանքներ",0,97874.2,97874.2,1]
[null,null,"Գորիս համայնքի թիվ 3 ՆՈՒՀ-ի հիմնանորոգում ",0,161164.9,161164.9,1]
[null,null,"Տաթև համայնքի Շինուհայր բնակավայրի երաժշտական դպրոցի վերանորոգում",0,10432.400000000001,10432.400000000001,1]
[null,null,"Տաթև համայնքի Շինուհայր բնակավայրի մանկապարտեզի շենքի մի հատվածի վերանորոգում",0,22329.5,22329.5,1]
[null,null,"Տաթև համայնքի Տաթև բնակավայրի ՆՈՒՀ-ի վերանորոգում",0,18655.899999999998,18655.899999999998,1]
[null,null,"Գորիս համայնքի Ավանգարդ 5-րդ թաղամասի մոտեցման ճանապարհների հիմնանորոգում",0,108075.40000000001,108075.40000000001,1]
[null,null,"Կապան քաղաքի Հալիձոր թաղամասի թիվ 6, թիվ 8, թիվ 15 բազմաբնակարան բնակելի շենքերի հարևանությամբ խաղահրապարակի և մարզադաշտի վերանորոգում ու հանգստյան գոտու կազմակերպում, Կապան քաղաքի Շինարարների փողոցի թիվ 15 և 17 բազմաբնակարան բնակելի շենքերի հարևանությամբ խաղահրապարակի և մարզադաշտի վերանորոգում ու հանգստյան գոտու կազմակերպում, Կապան քաղաքի Սպանդարյան փողոցի թիվ 7 և թիվ 6 բազմաբնակարան բնակելի շենքերի միջանկյալ հատվածում խաղահրապարակի և մարզադաշտի վերանորոգում ու հանգստյան գոտու կազմակերպում, Կապան քաղաքի Հ․ Ավետիսյան փողոցի թիվ 1 բազմաբնակարան բնակելի շենքի հարևանությամբ խաղահրապարակի և մարզադաշտի վերանորոգում և հանգստյան գոտու կազմակերպում, Թիվ 5 երթուղու հարևանությամբ հանգստի գոտու կազմակերպում և Նորաշենիկ գյուղում մարզադաշտի կառուցում /Նորաշենիկ/",0,3637.5,3637.5,1]
[null,null,"Քաջարան համայնքի «Մեքենասարքավորումների և տեխնիկայի ձեռք բերում»",0,61686.1,61686.1,1]
[null,null,"Կապան համայնքի «Հասարակական շենքերի նորոգում և կառուցում՝ Եղվարդ բնակավայրի կենցաղի տան վերանորոգում, Ծավ բնակավայրի կենցաղի տան վերանորոգում, Ըրկենանց բնակավայրում վարչական շենքԻ կառուցում և տարածքի բարեկարգում, Վանեք բնակավայրում վարչական շենքի կառուցում և տարածքի բարեկարգում, Եղեգ  բնակավայրում վարչական շենքի կառուցում և տարածքի բարեկարգում, Ներքին Խոտանան բնակավայրում վարչական շենքի կառուցում և տարածքի բարեկարգում, Դավիթ Համբարձումյանի անվան մանկապատանեկան մարզադպրոց ՀՈԱԿ-ի շենքի մասնակի վերանորոգում և ջեռուցման համակարգի վերականգնում, Կապան քաղաքի Վաչագան թաղամասի հանդիսությունների սրահի մասնակի վերանորոգում և Օխտար բնակավայրի ակումբի շենքի հիմնանորոգում» /Եղվարդ, Ծավ/ \\շարունակությունը ՀՀ կառավարության 2023 թվականի հուլիսի  6-ի  N  1130-Ն որոշում/",0,23153.5,23153.5,1]
[null,null,"Շինուհայր, Տաթև, Խոտ, Հալիձոր բնակավայրերի նախադպրոցական\nուսումնական հաստատությունների, Շինուհայր բնակավայրի երաժշտական դպրոցի շենքերի տանիքներին և Հ 46 հանրապետական ու միջհամայնքային նշ. ավտոճանապարհի գիշերային լուսավորության ցանցի էներգիայի սնուցման նպատակով արևային ֆոտովոլտային կայաններիտեղադրում /Շինուհայր, Տաթև, Խոտ, Հալիձոր բնակավայրերի նախադպրոցական ուսումնական հաստատություններ/ \n",0,27820.799999999999,27820.799999999999,1]
[null,null,"Գորայք համայնքի` Սպանդարյան և Ծղուկ բնակավայրերի կենցաղի տների տանիքների 24.96 դրվածքային հզորության արևային կայանների  կառուցում, կենցաղի տան և վարչական շենքի ջեռուցում/Ծղուկ բնակավայր/",0,8517.6,8517.6,1]
[null,null,"Կապան համայնքի Դավիթ Բեկ բնակավայրի ջրամատակարարում,  Սրաշեն բնակավայրի խմելու ջրամատակարարման ապահովում և Կաղնուտ բնակավայրի խմելու ջրամատակարարման ապահովում /Սրաշեն, Կաղնուտ բնակավայր/",0,50198.000000000015,50198.000000000015,1]
[null,null,"  Կապան համայնքի Կապան քաղաքի նախադպրոցական ուսումնական հաստատությունների նորոգում՝ \"Կապանի թիվ 9 ՆՈՒՀ\" ՀՈԱԿ-ի շենքի վերակառուցում և տարածքի բարեկարգում, \"Կապանի թիվ 10 ՆՈՒՀ\" ՀՈԱԿ-ի շենքի վերանորոգում և տարածքի բարեկարգում /թիվ 10 ՆՈՒՀ/",0,53141.399999999994,53141.399999999994,1]
[null,null,"Կապան համայնքի «Նորաշենիկ բնակավայրի վարչ. շենքի նորոգում և «Կապանի կոմունալ ծառայություն» ՀՈԱԿ-ի գրասենյակի կառուցում»,/Նորաշենիկ/",0,1019.6000000000004,1019.6000000000004,1]
[null,null,"Կապան համայնքի Սևաքար գյուղի ջրամատակարարման համակարգի վերակառուցում, Վարդավանք գյուղի ջրամատակարարման համակարգի վերակառուցում և Չափնի գյուղի ջրամատակարարման համակարգի վերակառուցում ",0,1858.2000000000007,1858.2000000000007,1]
[null,null,"Քաջարան համայնքի բնակավայրերի փողոցների և\nներհամայնքային ճանապարհների հիմնանորոգում/բարեկարգում ",0,875.10000000003492,875.10000000003492,1]
[null,null,"Կապան համայնքի Նորաշենիկ բնակավայրի վարչական շենքի նորոգում և «Կապանի կոմունալ ծառայություն» ՀՈԱԿ-ի գրասենյակի կառուցում (Կապան) ",0,24629.4,24629.4,1]
[null,null,"Կապան քաղաքի Հալիձոր թաղամասի թիվ 6, թիվ 8, թիվ 15 բազմաբնակարան բնակելի շենքերի հարևանությամբ խաղահրապարակի և մարզադաշտիվերանորոգում ու հանգստյան գոտու կազմակերպում, Կապան քաղաքի Շինարարների փողոցի թիվ 15 և 17 բազմաբնակարան բնակելի շենքերի հարևանությամբ խաղահրապարակի և մարզադաշտի վերանորոգում ու հանգստյան գոտու կազմակերպում, Կապան քաղաքի Սպանդարյան փողոցի\nթիվ 7 և թիվ 6 բազմաբնակարան բնակելի շենքերի միջանկյալ հատվածում խաղահրապարակի և մարզադաշտի վերանորոգում ու հանգստյան գոտու կազմակերպում, Կապան քաղաքի Հ. Ավետիսյան փողոցի թիվ 1 բազմաբնակարան բնակելի շենքի հարևանությամբ խաղահրապարակի և մարզադաշտի վերանորոգում և հանգստյան գոտու կազմակերպում, Թիվ 5 երթուղու հարևանությամբ հանգստի գոտու կազմակերպում և Նորաշենիկ գյուղում մարզադաշտի կառուցում (Ավետիսյան փողոցի թիվ 1 բազմաբնակարան բնակելի շենքի հարևանությամբ խաղահրապարակի և մարզադաշտի վերանորոգում և հանգստյան գոտու կազմակերպում) \n",0,5130.3000000000011,5130.3000000000011,1]
[null,null,"Կապան համայնքի «Կապան ք-ի փողոցների և բակերի հիմն.՝ 1. Կապան ք-ի Գ․ Նժդեհ փողոցի 1-ին և 2-րդ նրբ-ի հիմն., 2. Կապան ք-ի Ա․ Մանուկյանի արձանի և ԿապանՄոլի միջանկյալ հատվածի հիմն., 3.Կապան ք-ի Դավիթ Բեկ փ-ի հիմն., 4. Կապան ք-ի Ռ․ Մինասյան փողոցի թիվ 11, 12, 13 շ-ի բակերի հիմն., 5.Կապան ք-ի Ռ․ Մինասյան փ-ի թիվ 15, 16, 17, 18, 19, 20 շ-ի բակերի հիմն., 6. Կապան ք-ի Ռ․ Մինասյան փ-ի N 25Ա, 25Բ շ-ի բակերի հիմն., 7.Կապան ք-ի Լեռնագործների փ-ի 3-րդ նրբանցքի հիմն., 8. Կապան ք-ի Սպանդարյան փ-ի թիվ 6, 7 շ-ի բակերի հիմն., 9. Կապան ք-ի Սպանդարյան փ-ի 4-րդ նրբանցքի հիմն., 10. Կապան ք-ի Գր․ Արզումանյան փ-ի հիմն., 11. Կապան քաղաքի Գր․ Արզումանյան փողոցի 3-րդ նրբանցքի հիմն., 12. Կապան ք-ի Հալիձոր թ-ի բակային տարածքների հիմն., 13.Կապան ք-ի Ավետիսյան փ-ի N2, 4, 6, 28, 30, 32, 34 և Պապյան փողոցի N 5, 6, 7, 8, 9, 15, 16, 17, 18, 19, 20, 22, 24 և 26 շ-ի բակերի ասֆ.,14. Կապան ք-ի Երկաթուղայինների փ-ի թիվ 7, 9, 11, 13, 15 շ-ի բակերի հիմն., 15. Կապան ք-ի Երկաթուղայինների փ-ի 3-րդ նրբանցքի հիմն. և Կապան ք-ի Մ․ Հարությունյան փ-ի  N1, 2, 3, 4, 5, 6, 8 շ-ի բակերի և Շահումյան փ-ի թիվ 37, 38 շ-ի բակերի հիմն.», /1. «Կապան ք-ի Գ.Նժդեհ փողոցի 1-ին և 2-րդ նրբ.-ի հիմն.», 2.Կապան ք-ի Երկաթուղայինների փ-ի N 7, 9, 11, 13, 15 շ-ի բակերի հիմ.» 3. «Կապան ք-ի Ա. Մանուկյան արձանի և Կապան-Մոլի միջանկյալ հ-ի հիմն.», 4.«Կապան ք-ի Երկաթուղայինների փ-ի 3-րդ նրբ. հիմն.», 5. «Կապան ք-ի Մ.Հարությունյան փ-ի N 1, 2, 3, 4, 5, 6, 8 շ-ի բակերի և Շահումյան փ-ի թիվ 37, 38 շ-ի բակերի հիմն.», 6. «Կապան ք-ի Սպանդարյան 4-րդ նրբ-ի հիմն.»/ ",0,356748.3,356748.3,1]
[null,null,"Մեղրի քաղաքի մանկապարտեզի հիմնանորոգում ",0,19757.5,19757.5,1]
[null,null,"Կապան ք-ի փողոցների և բակերի հիմնանորոգում՝ Կապան ք-ի Գ. Նժդեհ փողոցի, 1-ին և 2-րդ նրբանցքների հիմնանորոգում, Կապան քաղաքի Ա. Մանուկյանի արձանի և Կապան-Մոլի միջանկյալ հատվածի հիմնանորոգում, Կապան ք-ի Դավիթ Բեկ փողոցի հիմն., Ռ. Մինասյան փողոցի N 11, 12, 13 շենքերի բակերի հիմն., Ռ. Մինասյան փողոցի N 15, 16, 17, 18, 19, 20 շենքերի բակերի հիմն., Ռ. Մինասյան փողոցի թիվ 25Ա, 25Բ շենքերի բակերի հիմնանորոգ.շենքերի, Լեռնագործների փողոցի 3-րդ նրբանցքի հիմնանորոգում, Սպանդարյան փողոցի թիվ 6, 7 շենքերի բակերի հիմն., Սպանդարյան փողոցի 4-րդ նրբանցքի հիմն., Գր. Արզումանյան փ-ի հիմնանորոգում, Գր. Արզումանյան փողոցի 3-րդ նրբանցքի հիմն., Հալիձոր թաղամասի բակային տարածքների հիմն., Ավետիսյան փողոցի N 2, 4, 6, 28, 30, 32, 34 և Պապյան փողոցի N 5, 6, 7, 8, 9, 15, 16, 17, 18, 19, 20, 22, 24 և 26 շենքերի բակերի ասֆալտապատում, Երկաթուղայինների փողոցիN 7, 9, 11, 13, 15 շենքերի բակերի հիմն., Երկաթուղայինների փողոցի 3-րդ նրբանցքի հիմն. և Մ. Հարությունյան փողոցի N 1, 2, 3, 4, 5, 6, 8 շենքերի բակերի և Շահումյան փողոցի թիվ 37, 38 շենքերի բակերի հիմն. /Գր. Արզումանյան, Դավիթ Բեկ, Հալիձոր թաղամասի բակային տարածքներ, Ռ. Մինասյան փողոցի N 11, 12, 13 շենքերի բակեր, Ռ. Մինասյան 25Ա, 25Բ շենքերի բակեր, Գր. Արզումանյան փողոցի 3-րդ նրբանցք, Ռ. Մինասյան փողոցիN 15, 16, 17, 18, 19, 20 շենքերի բակեր, Լեռնագործներ փողոցի 3-րդ նրբանցք, Սպանդարյան փողոցի N 6, 7 շենքերի բակեր /",0,300131.5,300131.5,1]
[null,null,"Կապան համայնքի Սյունիք բնակավայրի գյուղամիջյան ճանապարհների նորոգում և ասֆալտապատում",0,54514.3,54514.3,1]
[null,null,"Կապան համայնքի «Հասարակական շենքերի նորոգում և կառուցում՝ Եղվարդ բնակավայրի կենցաղի տան վերանորոգում, Ծավ բնակավայրի կենցաղի տան վերանորոգում, Ըրկենանց բնակավայրում վարչական շենքի կառուցում և տարածքի բարեկարգում, Վանեք բնակավայրում վարչական շենքի կառուցում և տարածքի բարեկարգում, Եղեգ բնակավայրում վարչական շենքի կառուցում և տարածքի բարեկարգում, Ներքին Խոտանան բնակավայրում վարչական շենքի կառուցում և տարածքի բարեկարգում, Դավիթ Համբարձումյանի անվան մանկապատանեկան մարզադպրոց ՀՈԱԿ-ի շենքի մասնակի վերանորոգում և ջեռուցման համակարգի վերականգնում, Կապան քաղաքի Վաչագան թաղամասի հանդիսությունների սրահի մասնակի վերանորոգում և Օխտար բնակավայրի ակումբի շենքի հիմնանորոգում» /Եղվարդ, Ծավ/",0,29132.400000000001,29132.400000000001,1]
[null,null,"Կապան քաղաքի Հալիձոր թաղամասի թիվ 6, թիվ 8, թիվ 15 բազմաբնակարան բնակելի շենքերի հարևանությամբ խաղահրապարակի և մարզադաշտի վերանորոգում ու հանգստյան գոտու կազմակերպում, Կապան քաղաքի Շինարարների փողոցի թիվ 15 և 17 բազմաբնակարան բնակելի շենքերի հարևանությամբ խաղահրապարակի և մարզադաշտի վերանորոգում ու հանգստյան գոտու կազմակերպում, Կապան քաղաքի Սպանդարյան փողոցի թիվ 7 և թիվ 6 բազմաբնակարան բնակելի շենքերի միջանկյալ հատվածում խաղահրապարակի և մարզադաշտի վերանորոգում ու հանգստյան գոտու կազմակերպում, Կապան քաղաքի Հ. Ավետիսյան փողոցի թիվ 1 բազմաբնակարան բնակելի շենքի հարևանությամբ խաղահրապարակի և մարզադաշտի վերանորոգում և հանգստյան գոտու կազմակերպում, Թիվ 5 երթուղու հարևանությամբ հանգստի գոտու կազմակերպում և Նորաշենիկ գյուղում մարզադաշտի կառուցում /Ավետիսյան փողոցի թիվ 1 բազմաբնակարան բնակելի շենքի հարևանությամբ խաղահրապարակի և մարզադաշտի վերանորոգում և հանգստյան գոտու կազմակերպում և Նորաշենիկ գյուղում մարզադաշտի կառուցում/",0,24692.3,24692.3,1]
[null,null,"Կապան համայնքի Դավիթ Բեկ բնակավայրի ջրամատակարարում,\nՍրաշեն բնակավայրի խմելու ջրամատակարարման ապահովում և\nԿաղնուտ բնակավայրի խմելու ջրամատակարարման ապահովում\n/Սրաշեն, Կաղնուտ բնակավայր/ \n",0,92156.7,92156.7,1]
[null,null,"Կապան համայնքի Կապան քաղաքի նախադպրոցական ուսումնական հաստատությունների նորոգում՝ «Կապանի թիվ 9 ՆՈՒՀ» ՀՈԱԿ-ի շենքի վերակառուցում և տարածքի բարեկարգում, «Կապանի թիվ 10 ՆՈՒՀ» ՀՈԱԿ-ի շենքի վերանորոգում և տարածքի բարեկարգում /թիվ 10 ՆՈՒՀ/",0,181935.4,181935.4,1]
[null,null,"Կապան համայնքի Նորաշենիկ բնակավայրի վարչական շենքի նորոգում և «Կապանի կոմունալ ծառայություն» ՀՈԱԿ-ի գրասենյակի կառուցում (Կապան)",0,13233.6,13233.6,1]
[null,null,"Կապան համայնքի «Հասարակական շենքերի նորոգում և կառուցում՝ Եղվարդ բնակավայրի կենցաղի տան վերանորոգում, Ծավի բնակավայրի կենցաղի տան վերանորոգում, Ըրկենանց բնակավայրում վարչական շենքի կառուցում և տարածքի բարեկարգում, Վանեք բնակավայրում վարչական շենքի կառուցում և տարածքի բարեկարգում, Եղեգ բնակավայրում վարչական շենքի կառուցում և տարածքի բարեկարգում, Ներքին Խոտանան բնակավայրում վարչական շենքի կառուցում և տարածքի բարեկարգում, Դավիթ Համբարձումյանի անվան մանկապատանեկան մարզադպրոց ՀՈԱԿ-ի շենքի մասնակի վերանորոգում և ջեռուցման համակարգի վերականգնում /Եղեգ, Վանեք, Ըրկենանց/",0,81999.8,81999.8,1]
[null,null,"Կապան քաղաքի բազմաբնակարան բնակելի շենքերի հարթ և լանջավոր տանիքների նորոգում /Հալիձոր 13, Դավիթ Բեկ 10, Ձորք թաղամաս 8, Մ. Ստեփանյան 18, Ռ. Մինասյան 12, Հալիձոր 15, Հալիձոր 17 Բաղաբերդ թաղամաս 2, Բաղաբերդ թաղամաս 2Ա Գ, Բաղաբերդ թաղամաս 2Ա Դ, Երկաթուղայիններ 7, Ա. Մանուկյան 1-ին նրբ. շենք 4, բլոկ Գ, Երկաթուղայիններ 15, Հալիձոր 19, Շահումյան 38, Թումանյան 9, Մ. Պապյան 5/",0,27823.500000000004,27823.500000000004,1]
[null,null,"Քաջարան համայնքի «Փողոցային լուսավորության համակարգի կառուցում գյուղական բնակավայրում» (Անդոկավան, Քաջարաց, Փուխրուտ, Նոր Աստղաբերդ, Ձագիկավան, Կաթնառատ, Աջաբաջ)",0,522.6,522.6,1]
[null,null,"Գորիս համայնքի թիվ 3 ՆՈՒՀ-ի հիմնանորոգում",0,18011.099999999999,18011.099999999999,1]
[null,null,"Տաթև համայնքի Շինուհայր բնակավայրի երաժշտական դպրոցի վերանորոգում",0,22638.6,22638.6,1]
[null,null,"Տաթև համայնքի Շինուհայր բնակավայրի մանկապարտեզի շենքի մի հատվածի վերանորոգում",0,1558.9,1558.9,1]
[null,null,"Տաթև համայնքի Տաթև բնակավայրի ՆՈՒՀ-ի վերանորոգում",0,1507.2,1507.2,1]
[null,null,"Տաթև համայնքի Շինուհայր, Տաթև, Խոտ, Հալիձոր բնակավայրերի նախադպրոցական ուսումնական հաստատությունների, Շինուհայր բնակավայրի երաժշտական դպրոցի շենքերի տանիքներին և Հ 46 հանրապետական ու միջհամայնքային նշանակության ավտոճանապարհի գիշերային լուսավորության ցանցի էներգիայի սնուցման նպատակով արևային ֆոտովոլտային կայանների տեղադրում (Շինուհայր, Տաթև, Խոտ, Հալիձոր բնակավայրերի նախադպրոցական ուսումնական հաստատություններ)",0,1047.4000000000001,1047.4000000000001,1]
[null,null,"Կապան համայնքի «Նորաշենիկ բնակավայրի վարչական շենքի նորոգում և «Կապանի կոմունալ ծառայություն» ՀՈԱԿ-ի գրասենյակի կառուցում» (Նորաշենիկ)",0,13368.6,13368.6,1]
[null,null,"Քաջարան համայնքի բնակավայրերի փողոցների և ներհամայնքային ճանապարհների հիմն./բարեկարգում",0,312974.2,312974.2,1]
[null,null,"Սիսիան համայնքի Գորայք բնակավայրի փողոցների լուսավորության ցանցի կառուցում",0,12825.1,12825.1,1]
[null,null,"Սիսիան համայնքի Գորայք, Ծղուկ, Սառնակունք, Սպանդարյան բնակավայրերի մանկական խաղահրապարակների կառուցում",0,8440.7999999999993,8440.7999999999993,1]
[null,null,"Տաթև համայնքի վարչական տարածքով անցնող Հ-46 հանրապետական նշանակության ավտոճանապարհի երկայնքով գիշերային լուսավորության ցանցի կառուցում \n",0,80230.2,80230.2,1]
[null,null,"Գորիս համայնքի « Գալստյան փողոցի մի հատվածի, Գալստյան փողոցի թիվ 60 բազմաբնակարան  շենքի բակի, Մաշտոցի փողոցի թիվ 146,148,150 բնակելի շենքերի բակերի ասֆալտապատման  և բարեկարգման աշխատանքներ»",0,161936.70000000001,161936.70000000001,1]
[null,null,"Տեղ համայնքի Քարաշեն և Խնացախ բնակավայրերում խաղահրապարակի և ժամանցի կենտրոնի կառուցում/հիմնում",0,11530.5,11530.5,1]
[null,null,"Քաջարան համայնքի «Համայնքի բնակավայրերում պուրակների, մարզահրապարակների և խաղահրապարակների կառուցում, վերակառուցում» /ք․ Քաջարանի Տերյան, Բակունցի, Շիրվանզադե, Լեռնագործների փողոցներ,Լեռնաձոր բնակավայր/ \n",0,123018.5,123018.5,1]
[null,null,"Կապան քաղաքի Հալիձոր թաղամասի թիվ 6, թիվ 8, թիվ 15 բազմաբնակարան բնակելի շենքերի հարևանությամբ խաղահրապարակի և մարզադաշտի վերանորոգում ու հանգստյան գոտու կազմակերպում, Կապան քաղաքի Շինարարների փողոցի թիվ 15 և 17 բազմաբնակարան բնակելի շենքերի հարևանությամբ խաղահրապարակի և մարզադաշտի վերանորոգում ու հանգստյան գոտու կազմակերպում, Կապան քաղաքի Սպանդարյան փողոցի թիվ 7 և թիվ 6 բազմաբնակարան բնակելի շենքերի միջանկյալ հատվածում խաղահրապարակի և մարզադաշտի վերանորոգում ու հանգստյան գոտու կազմակերպում, Կապան քաղաքի Հ․ Ավետիսյան փողոցի թիվ 1 բազմաբնակարան բնակելի շենքի հարևանությամբ խաղահրապարակի և մարզադաշտի վերանորոգում և հանգստյան գոտու կազմակերպում, թիվ 5 երթուղու հարևանությամբ հանգստի գոտու կազմակերպում և Նորաշենիկ գյուղում մարզադաշտի կառուցում /թիվ 5 երթուղու հարևանությամբ հանգստի գոտու\nկազմակերպում/ \n",0,49341.9,49341.9,1]
[null,null,"Այլ ենթակառուցվածքների\nկառուցում ",0,576658,576658,1]
[null,null," Գորայք համայնքի Սառնակունք բնակավայրի կոյուղագծերի և սեպտիկ հորի կառուցում ",0,69864.899999999994,69864.899999999994,1]
[null,null,"Կապան քաղաքի Հալիձոր թաղամասի թիվ 6, թիվ 8, թիվ 15 բազմաբնակարան բնակելի շենքերի հարևանությամբ խաղահրապարակի և մարզադաշտի վերանորոգում ու հանգստյան գոտու կազմակերպում, Կապան քաղաքի Շինարարների փողոցի թիվ 15 և 17 բազմաբնակարան բնակելի շենքերի հարևանությամբ խաղահրապարակի և մարզադաշտի վերանորոգում ու հանգստյան գոտու կազմակերպում, Կապան քաղաքի Սպանդարյան փողոցի թիվ 7 և թիվ 6 բազմաբնակարան բնակելի շենքերի միջանկյալ հատվածում խաղահրապարակի և մարզադաշտի վերանորոգում ու հանգստյան գոտու կազմակերպում, Կապան քաղաքի Հ. Ավետիսյան փողոցի թիվ 1 բազմաբնակարան բնակելի շենքի հարևանությամբ խաղահրապարակի և մարզադաշտի վերանորոգում և հանգստյան գոտու կազմակերպում, Թիվ 5 երթուղու հարևանությամբ հանգստի գոտու կազմակերպում և Նորաշենիկ գյուղում մարզադաշտի կառուցում /Հալիձոր թաղամասի թիվ 6, թիվ 8, թիվ 15 բազմաբնակարան բնակելի շենքերի հարևանությամբ խաղահրապարակի և մարզադաշտի վերանորոգում ու հանգստյան գոտու կազմակերպում, Կապան քաղաքի Սպանդարյան փողոցի թիվ 7 և թիվ 6, բազմաբնակարան բնակելի շենքերի միջանկյալ հատվածում խաղահրապարակի և մարզադաշտի վերանորոգում ու հանգստյան գոտու կազմակերպում, Շինարարների փողոցի թիվ 15 և 17 բազմաբնակարան բնակելի շենքերի հարևանությամբ խաղահրապարակի և մարզադաշտի վերանորոգում ու հանգստյան գոտու կազմակերպում/\n",0,96220.9,96220.9,1]
[null,null,"Քաջարան համայնքի «Բազմաբնակարան շենքերի էներգաարդյունավետության բարելավում» ",0,184643.20000000001,184643.20000000001,1]
[null,null,"Կապան համայնքի «Կապանի թիվ 2 ՆՈՒՀ» ՀՈԱԿ-ի շենքի հիմնանորոգում և տարածքի բարեկարգում, «Արծվանիկ» ՆՈՒՀ ՀՈԱԿ-ի հարևանությամբ\nտարածքի բարեկարգում /Արծվանիկ/ \n",0,30919.1,30919.1,1]
[null,null,"«Կապանի թիվ 9 ՆՈՒՀ» ՀՈԱԿ-ի շենքի վերակառուցում և տարածքի բարեկարգում, «Կապանի թիվ 10 ՆՈՒՀ» ՀՈԱԿ-ի շենքի վերանորոգում /«Կապանի թիվ 9 ՆՈՒՀ» ՀՈԱԿ-ի շենքի վերակառուցում և տարածքի բարեկարգում/ ",0,95000,95000,1]
[null,null,"Մեղրի համայնքի «Կենտրոնական փողոցի ասֆալտապատում Լեհվազ բնակավայրում և Վարդանիձոր բնակավայրում Վանք-Կալեր անավարտ կամրջի վերանորոգում՝ հետիոտնային և գյուղատնտեսական հաղորդակցության ապահովման ժամանակավոր միջոցառումների իրականացում»,",0,48108.3,48108.3,1]
[null,null,"Կապան համայնքի «Կապան քաղաքի փողոցների և բակերի հիմնանորոգում՝1. Կապան քաղաքի Գ․ Նժդեհ փողոցի, 1-ին և 2-րդ նրբանցքների հիմնանորոգում,2. Կապան քաղաքի Ա. Մանուկյանի արձանի և Կապան-Մոլի միջանկյալ հատվածի հիմնանորոգում, 3. Կապան քաղաքի Դավիթ Բեկ փողոցի հիմնանորոգում, 4. Կապան քաղաքի Ռ. Մինասյան փողոցի թիվ 11, 12, 13 շենքերի բակերի հիմնանորոգում, 5. Կապան քաղաքի Ռ. Մինասյան փողոցի N 15, 16, 17,18, 19, 20 շենքերի բակերի հիմնանորոգում, 6. Կապան քաղաքի Ռ. Մինասյան փ-ի թիվ 25Ա, 25Բ շենքերի բակերի հիմն., 7.Կապան քաղաքի Լեռնագործների փողոցի 3-րդ նրբանցքի հիմն., 8.Կապան քաղաքի Սպանդարյան փողոցի N6,7 շենքերի բակերի հիմնանորոգում, 9. Կապան ք-ի Սպանդարյան փողոցի 4-րդ նրբանցքի հիմնանորոգում, 10. Կապան քաղաքի Գր.Արզումանյան փողոցի հիմն., 11. Կապան ք. Գր․ Արզումանյան փողոցի 3-րդ նրբանցքի հիմն., 12.Կապան ք-ի Հալիձոր թ-ի բակային տարածքների հիմն., 13.Կապան ք. Ավետիսյան փ-ի N 2, 4, 6, 28, 30, 32, 34 և Պապյան փ-ի N 5,6,7,8, 9,15,16,17,18,19,20,22,24 և 26 շ-ի բ-ի ասֆ.,14.Կապան ք-ի Երկաթուղայինների փ-ի N 7, 9, 11, 13, 15 շ-ի բակերի հիմնանորոգում, 15.Կապան ք-ի Երկաթուղայինների փողոցի 3-րդ նրբանցքի հիմն. և Կապան ք. Մ․ Հարությունյան փողոցի N 1,2, 3, 4, 5, 6, 8 շենքերի բակերի և Շահումյան փողոցի N 37, 38 շ-ի բակերի հիմնանորոգում» /Կապան ք. Ավետիսյան փ.N2, 4,6,28,30,32,34 և Պապյան փողոցների N5,6,7,8,9,15,16,17,18,19,20,22,24 և 26 շենքերի բակերի ասֆ./ ",0,34865.599999999999,34865.599999999999,1]
[null,null,"Կապան համայնքի «Կապան քաղաքի Գարեգին Նժդեհ փողոցի աջակողմյան մայթի նորոգում, Արամ Մանուկյան փողոցի N 1 և Չարենցի փողոցի N 2, 4 շենքերի բակերի վերանորոգում, Ռ. Մելիքյան փողոցի N 6 շենքի բակի և Արվեստի պետական քոլեջի հետնամասի հիմնանորոգում» ",0,26093.7,26093.7,1]
[null,null,"ՀՀ Սյունիքի մարզի Քաջարան խոշորացված համայնքի Քաջարան, Ձագիկավան և Գետիշեն գյուղերի խմելու ջրամատակարարման համակարգերի կառուցման աշխատանքներ \n",0,121294.1,121294.1,1]
[null,null,"ՀՀ Սյունիքի մարզի Սիսիան համայնքի Ադամյան, Իսրայելյան և Պարույր Սևակի փողոցների կապիտալ վերանորոգում ",0,223180.2,223180.2,1]
[null,null,"Գորայք համայնքի` Սպանդարյան և Ծղուկ բնակավայրերի կենցաղի տների տանիքների 24.96 դրվածքային հզորության արևային կայանների կառուցում, կենցաղի տան և վարչական շենքի ջեռուցում \n",0,6448.9,6448.9,1]
[null,null,"Քաջարան համայնքի «Բազմաբնակարան շենքերի էներգաարդյունավետության բարելավում» ",0,577142,577142,1]
[null,null,"Կապան համայնքի «Հասարակական շենքերի նորոգում և կառուցում՝ Եղվարդ բնակավայրի կենցաղի տան վերանորոգում, Ծավ բնակավայրի կենցաղի տան վերանորոգում, Ըրկենանց բնակավայրում վարչական շենքի կառուցում և տարածքի բարեկարգում, Վանեք բնակավայրում վարչական շենքի կառուցում և տարածքի բարեկարգում, Եղեգ բնակավայրում վարչական շենքի կառուցում և տարածքի բարեկարգում, Ներքին Խոտանան բնակավայրում վարչական շենքի կառուցում և տարածքի բարեկարգում, Դավիթ Համբարձումյանի անվան մանկապատանեկան մարզադպրոց ՀՈԱԿ-ի շենքի մասնակի վերանորոգում և ջեռուցման համակարգի վերականգնում, Կապան քաղաքի Վաչագան թաղամասի հանդիսությունների սրահի մասնակի վերանորոգում և Օխտար բնակավայրի ակումբի շենքի հիմնանորոգում» /Ներքին Խոտանան/",0,20074.5,20074.5,1]
[null,null,"Շինուհայր, Տաթև, Խոտ, Հալիձոր բնակավայրերի նախադպրոցական ուսումնական հաստատությունների, Շինուհայր բնակավայրի երաժշտական դպրոցի շենքերի տանիքներին և Հ 46 հանրապետական ու միջհամայնքային նշանակության ավտոճանապարհի գիշերային լուսավորության ցանցի էներգիայի սնուցման նպատակով արևային ֆոտովոլտային կայանների տեղադրում ",0,45335.4,45335.4,1]
[null,null,"Նախակրթարանի կառուցում մանկապարտեզի Ալվանք բնակավայրում և նոր մանկապարտեզի հիմնում Մեղրի համայնքի Նռնաձոր բնակավայրում /Ալվանք/",0,17837.5,17837.5,1]
[null,null,"ՀՀ Վայոց ձորի մարզպետի աշխատակազմ",{"$f":"SUM(D538:D559)","v":0},{"$f":"SUM(E538:E559)","v":414450.89999999991},{"$f":"SUM(F538:F559)","v":403832.8},0.97438031863364294]
[null,null,"Վայք համայնքի ներհամայնքային Մայիսյան փողոցի մասնակի վերանորոգում, Շինարարների փողոց հատված 0+000 կմ+112, 0+112կմ, 0+403 մասնակի վերանորոգում և Հերհեր բնակավայրի 1-ին փողոցի ասֆալտապատում և Հերհեր բնակավայրի 1-ին փողոցի ասֆալտապատման աշխատանքներ (Վայք համայնքի ներհամայնքային Մայիսյան փողոցի մասնակի վերանորոգում, Շինարարների փողոց հատված 0+000 կմ+112 , 0+112 կմ, 0+403մասնակի վերանորոգում)",0,26769.7,26346.42,{"$f":"IF(F538=0,\"       \",F538/E538)","v":0.98418809325468715}]
[null,null,"Եղեգնաձոր համայնքի՝ Եղեգնաձոր բնակավայրի N2 \nմանկապարտեզ ՀՈԱԿ-ի շենքի ջեռուցման համակագի \nկառուցման և մասնակի վերանորոգման աշխատանքներ, \nԵղեգնաձոր բնակավայրի թիվ 5 մանկապարտեզՀՈԱԿ-ի \nբակի  բարեկարգման աշխատանքներ և Մալիշկա \nբնակավայրի թիվ 1 մանկապարտեզ ՀՈԱԿ-ի \nվերանորոգման և գազաֆիկացման աշխատանքներ ",0,854,854,1]
[null,null,"Եղեգնաձոր համայնքի Գլաձորյան փողոցի 380 մ, Կամոյի փողոցի 2-րդ նրբանցքի 210 մ, Մոմիկի փողոցի 1-ին նրբանցքի 270 մ հատվածների ասֆալտապատում ",0,3315.8,3315.8,1]
[null,null,"Արենի համայնքի Արենի բնակավայրում Նորավանքի ձոր տարածքում խմելու ջրի ՕԿՋ-ի /250 խմ/ և արտաքին ցանցի 2.5 կմ հատվածի կառուցում, Աղավնաձոր բնակավայրում Սահրատի աղբյուր ջրաղբյուրի կապտաժի և ջրագծի արտաքին ցանցի 80 գծմ հատվածի կառուցում, Արփի բնակավայրում Ջրովանքի ձոր տարածքում խմելու ջրի մեկ կապտածի կառուցում և ջրատարի արտաքին ցանցի 300 գծմ հատվածի հիմնանորոգում, Գնիշիկ բնակավայրում Կարմիր քար Գնիշիկ Մոզրով ջրագծի մասնակի նորոգում, Ելփին բնակավայրում Գասպարի աղբյուր ջրաղբյուրի կապտաժի և ջրաբաշխիչ հորի համար շինության կառուցում, Ելփին բնակավայրում Դիդիվան ջրաղբյուրի 4 կապտաժների կառուցում և ջրագծի արտաքին ցանցի մասնակի նորոգում, Խաչիկ բնակավայրում Առտետաձոր հանդամասում խմելու ջրի 1 կապտաժի և ջրագծի արտաքին ցանցի 2 կմ հատվածի հիմնանորոգում, Չիվա բնակավայրում Աղոթից ջրաղբյուրի կապտաժի և ներքին ցանցի հիմնանորոգում ",0,3243.7,2987.23,0.92093288528532236]
[null,null,"Գլաձոր համայնքի 11-րդ փողոց թիվ 9 հասցեում գոյություն ունեցող մշակույթի տան վերահատակագծում և կցակառույցի իրականացում",0,9290.7999999999993,9290.7999999999993,1]
[null,null,"Վայք համայնքի Շահումյան և Իսրայել Օրի փողոցների ասֆալտապատում",0,7560,7182,0.95]
[null,null,"Արենի համայնքի Ագարակաձոր բնակավայրում մշակույթի տան մի մասի հիմնանորոգում, վարչական շենքի և դահլիճի նորոգում, Արփի բնակավայրում երիտասարդական կենտրոնի /նախկին ճաշարանի շենք/ մասնակի հիմնանորոգում, Չիվա բնակավայրում մշակույթի տան մասնակի նորոգում /Արփի բնակավայրում երիտասարդական կենտրոնի /նախկին ճաշարանի շենք/ մասնակի հիմնանորոգում/ ",0,6366.6,6299.1,0.98939779474130618]
[null,null,"Եղեգնաձոր համայնքի Եղեգնաձոր բնակավայրի Գլաձորյան,Կամոյի, Չալաբյան, Մշեցու, Թամանցիներ, Չարենց, Հարավ-Արևմտյան թաղամասի, Բաղդասարյան, Վարդան Զորավար, Թամանցիներ, Օրբելի 510մ, Արսենյան  նրբ. 230մ, Գագարին փողոցների, Գլաձոր և Գետափ բնակավայրերի  ներհամայնքային փողոցների լուսավորության ցանցի կառուցում /Եղեգնաձոր բնակավայրի Գլաձորյան, Հարավ-Արևմտյան թաղամասի, Բաղդասարյան, Վարդան Զորավար, Թամանցիներ, Գլաձոր բնակավայրի ներհամայնքային փողոցների լուսավորության ցանցի կառուցում/ ",0,24479.1,24276.89,0.99173948388625399]
[null,null,"Արենի համայնքի Արենի բնակավայրում Նորավանքի ձոր տարածքում խմելու ջրի ՕԿՋ-ի /250խմ/ և արտաքին ցանցի 2.5 կմ հատվածի կառուցում, Աղավնաձոր բնակավայրում Սահրատի աղբյուր ջրաղբյուրի կապտաժի և ջրագծի արտաքին ցանցի 80 գծմ հատվածի կառուցում, Արփի բնակավայրում Ջրովանքի ձոր տարածքում խմելու ջրի մեկ կապտաժի կառուցում և ջրատարի արտաքին ցանցի 300 գծմ հատվածի հիմնանորոգում, Գնիշիկ բնակավայրում Կարմիր քար Գնիշիկ Մոզրով ջրագծի մասնակի նորոգում, Ելփին բնակավայրում Գասպարի աղբյուր ջրաղբյուրի կապտաժի և ջրաբաշխիչ հորի համար շինության կառուցում, Ելփին բնակավայրում Դիդիվան ջրաղբյուրի 4 կապտաժների կառուցում և ջրագծի արտաքին ցանցի մասնակի նորոգում, Խաչիկ բնակավայրում Առնետաձոր հանդամասում խմելու ջրի 1 կապտաժի և ջրագծի արտաքին ցանցի 2 կմ հատվածի հիմնանորոգում, Չիվա բնակավայրում Աղոթից ջրաղբյուրի կապտաժի և ներքին ցանցի հիմնանորոգում /Արենի բնակավայրում Նորավանքի ձոր տարածքում խմելու ջրի ՕԿՋ-ի /250խմ/ և արտաքին ցանցի 2.5 կմ հատվածի կառուցում",0,13939.3,13939.29,0.99999928260386117]
[null,null,"Եղեգնաձոր համայնքի Եղեգնաձոր բնակավայրի, Գլաձորյան, Կամոյի,Չալաբյան, Մշեցու, Թամանցիներ, Չարենց, Հարավ-Արևմտյան թաղամասի, Բաղդասարյան, Վարդան Զորավար, Թամանցիներ, Օրբելի 510մ, Արսենյան նրբ. 230մ, Գագարին փողոցների, Գլաձոր և Գետափ բնակավայրերի ներհամայնքային փողոցների լուսավորության ցանցի կառուցում /Գետափ բնակավայրի ներհամայնքային փողոցների լուսավորության ցանցի կառուցում",0,4372.5,4330.49,0.99039222412807315]
[null,null,"Եղեգնաձոր համայնքի Գլաձորյան փողոցի 380 մ հատվածի, Կամոյի փողոցի 2-րդ նրբանցքի 210 մ, Մոմիկի փողոցի I-ին նրբանցքի 270 մ, Կոմիտաս և Մյասնիկյան փողոցների ասֆալտապատում /Մյասնիկյան փողոցի ասֆալտապատում/\n",0,24552.5,24552.49,0.99999959270950012]
[null,null,"Եղեգիս համայնքի Վարդահովիտ բնակավայրի խմելու ջրի արտաքինցանցի վերակառուցում և Սալլի, Հորս, Գողթանիկ բնակավայրերի խմելու ջրագծերի կառուցում /Վարդահովիտ բնակավայրի խմելու ջրի արտաքին ցանցի վերակառուցում",0,8284.2999999999993,8284.25,0.99999396448704181]
[null,null,"Վայք համայնքի Մարտիրոս, Սերս և Բարձրունի բնակավայրերի ոռոգման ջրի ջրագծերի, գլխամասային կառույցների արտաքին ցանցերի հիմնանորոգման աշխատանքներ /Բարձրունի/\n",0,17320,17320,1]
[null,null,"Վայք համայնքի Զառիթափ բնակավայրի «Շարաֆ սուլթան» և «Մեշտեղ բանի» կոչվող հանդամասերում և Գոմք բնակավայրերի ոռոգման ցանցերի կառուցման աշխատանքներ /Գոմք/\n",0,16671,16671,1]
[null,null,"Ջերմուկի քաղաքային և Կեչուտ գյուղի գերեզմանատների բարեկարգում, Ջերմուկ քաղաքի Ձախափնյակ 7 շենքին և Ջերմուկ քաղաքի Ձախափնյակ 22 շենքին կից աստիճանների հիմնանորոգում, Ջերմուկ համայնքի աղբամանների տեղակայման վայրերի բարեկարգում",0,44595.3,37362.79,0.83781900783266394]
[null,null,"Ջերմուկ քաղաքի Մյասնիկյան փողոցի սկզբնամասում գտնվող Վ. Սարգսյանի  անվան զբոսայգու բարեկարգման աշխատանքներ, Ջերմուկ քաղաքի Ազատամարտիկների   պուրակի բարեկարգման աշխատանքներ /Ազատամարտիկների պուրակի բարեկարգման աշխատանքներ/\n",0,34636.800000000003,32783.74,0.94650025406504046]
[null,null,"Եղեգնաձոր համայնքի Վերնաշեն բնակավայրի ջրամատակարարման  վերակառուցման աշխատանքներ\n",0,27339.8,27339.8,1]
[null,null,"Եղեգիս համայնքի Թառաթումբ, Քարագլուխ, Աղնջաձոր, Հերմոն, Հորբատեղ,Գողթանիկ, Հորս և Եղեգիս բնակավայրերի ոռոգման առուների վերանորոգում",0,76584.3,76584.3,1]
[null,null,"Եղեգիս համայնքի Վարդահովիտ բնակավայրի խմելու ջրի արտաքին ցանցի  վերակառուցում և Սալլի, Հորս, Գողթանիկ բնակավայրերի խմելու ջրագծերի  կառուցում",0,15134.6,14971.64,0.98923261929618223]
[null,null,"Եղեգիս համայնքի Աղնջաձոր, Թառաթումբ, Քարագլուխ, Շատին և Արտաբույնք  բնակավայրերի փողոցային լուսավորության ցանցի կառուցում",0,16765,16764.97,0.99999821055770954]
[null,null,"Ջերմուկ քաղաքի Արփա գետի կիրճի և Ջերմուկի խորհրդանիշ եղնիկի արձան տանող  ճանապարհի շրջակա ժայռերի լուսավորության իրականացում /Ջերմուկ/ քաղաքի Արփա գետի կիրճի շրջակա ժայռերի լուսավորության ցանցի կառուցում/",0,15888,15888,1]
[null,null,"Արենի համայնքի Խաչիկ բնակավայրում «Մկնակտրեկ» հանդամասում 1 կապտաժի  կառուցում և 2 կապտաժների բարեկարգում ",0,16487.8,16487.8,1]
[null,null,"ՀՀ Տավուշի մարզպետի աշխատակազմ",{"$f":"SUM(D561:D596)","v":0},{"$f":"SUM(E561:E596)","v":2708642.5},{"$f":"SUM(F561:F596)","v":2681620.6389999995},0.99002383629437973]
[null,null,"Բերդ համայնքի Չինարի, Այգեպար, Մովսես, Պառավաքար, Այգեձոր և Չորա-թան բնակավայրերի գիշերային լուսավորության համակարգի կառուցում ",0,262364.09999999998,262364.01699999999,{"$f":"IF(F561=0,\"       \",F561/E561)","v":0.99999968364574277}]
[null,null,"Իջևան համայնքի Խաշթառակ բնակավայրի  ճանապարհների, բակերի հիմնանորոգում և ասֆալտապատում",0,26946.2,26946.2,1]
[null,null,"Նոյեմբերյան համայնքի Ոսկեվան, Բագրատաշեն և Կողբ բնակավայրերի մշակույթի տների մասնակի վերանորոգում",0,58941.1,58941.1,1]
[null,null,"Իջևան համայնքի Իջևան և Սևքար բնակավայրի ճանապարհների հիմնովին վերանորոգում և սալիկապատում (Սևքար)",0,25335,25335,1]
[null,null,"Իջևան համայնքի Իջևան, Աչաջուր, Այգեհովիտ և Խաշթառակ բն․ ճանա-պարհների և բակերի հիմնանորոգում, ասֆալտապատում /Խաշթառակ/",0,5248.1,5248.0780000000004,0.99999580800670718]
[null,null,"Իջևան համայնքի Սարիգյուղ բնակավայրի ջրամատակարարման համակարգերի արդիականացում",0,72275,70210,0.97142857142857142]
[null,null,"Իջևան համայնքի Դիտավան, Այգեհովիտ, Վազաշեն Աչաջուր բնակավայրերի ոռոգման համակարգի կառուցում /Աչաջուր/",0,102215.1,100220.1,0.98048233578013422]
[null,null,"Իջևանի Անկախության փողոցի թվով 12 և Ազատամարտիկների թվով 2 շենքերի բակերի  հիմնանորոգում, ասֆալտապատում",0,51066,51066,1]
[null,null,"Նոյեմբերյան համայնքի Այրում բնակավայրի  Թումանյան փողոցի  ասֆալտապատում",0,29513.3,29513.3,1]
[null,null,"Բերդ համայնքի Չինարի բնակավայրի ոռոգման համակարգի կառուցում",0,63925.5,63925.5,1]
[null,null,"Նոյեմբերյանի միջպետական ճանապարհի և ներհամայնքային փողոցների լուսավորության համակարգի կառուցում",0,62208.1,62208.1,1]
[null,null,"Դիլիջան համայնքի Մյասնիկյան 37/2 հասցեից մինչև Մյասնիկյան 117/4 ճանապարհահատվածի հիմնանորոգում",0,276764.90000000002,276764.88,0.99999992773650115]
[null,null,"Բերդ համայնքի Այգեձոր բնակավայրի 800 մ երկարությամբ ներհամայնքային ճանապարհների ասֆալտապատում և ջրահեռացում",0,62381.9,62381.9,1]
[null,null,"Իջևան համայնքի Դիտավան, Այգեհովիտ, Վազաշեն Աչաջուր բն․ ոռոգման համակարգի կառուցում /Այգեհովիտ, Վազաշեն/",0,127599.5,122780,0.96222947582083007]
[null,null,"Իջևան համայնքի Ղարագյոզյան փողոցի հիմնանորոգում",0,45386.5,45125.95,0.99425930618135339]
[null,null,"Դիլիջան համայնքի Հաղարծին բն. 2-րդ, 7-րդ, 10-րդ փող. տուֆապատում ",0,53727.199999999997,53727.199999999997,1]
[null,null,"Դիլիջան համայնքի «Հովհաննես Շարամբեյանի անվան գեղարվեստի մանկական դպրոց» ՀՈԱԿ-ի շենքի հիմնանորոգում",0,92206.9,92206.9,1]
[null,null,"Նոյեմբերյան համայնքի Բագրատաշեն, Պտղավան, Հաղթանակ, Զորական բնակավայրերով անցնող միջպետ. ճանապարհի և ներհամայնքային փողոց-ների լուսավոր. համակարգերի կառուցում /Բագրատաշեն, Զորական/",0,41144.6,41144.6,1]
[null,null,"Դիլիջան համայնքում տրանսպորտային երթուղիները սպասարկելու համար 2 հատ ավտոբուսների մեքենայի ձեռքբերում /2 ավտոբուս/",0,50645.7,50645.7,1]
[null,null,"Դիլիջան համայնքի թվով 6 ԲԲՇ-ների տանիքների հիմնանորոգում",0,29894.799999999999,29894.799999999999,1]
[null,null,"Դիլիջան համայնքի Հաղարծին բն 2-րդ,7-րդ,10-րդ, Խաչարձան բն 2-րդ,3-րդ Գոշ բն.Գոշ փող, Հովք բն.1-ին փող. տուֆապատում /Հովք/",0,36521.5,36521.5,1]
[null,null,"Բերդ համայնքի Բերդ բն. կենտրոնական զբոսայգու և Մաշտոցի պողոտայի մանկական զբոսայգու հիմնովին վերանորոգում, «Հերոսների պուրակ»-ի կառուցում, հարակից տարածքի բարեկարգում",0,78705,78705,1]
[null,null,"Նոյեմբերյան համայնքի Բաղանիս, Լճկաձոր և Ոսկեվան բն․ փողոցների սալապատում /Բաղանիս, Լճկաձոր, Ոսկեվան/",0,65955.5,65955.5,1]
[null,null,"Նոյեմբերյան համայնքի Նոյեմբերյան և Հաղթանակ բն․ փողոցների ասֆալտապատում",0,60975.3,60975.3,1]
[null,null,"Դիլիջան համայնքում կոմունալ տնտեսության սպասարկման համար 1 հատ աղբատար մեքենայի ձեռքբերում /աղբատար/",0,26550,26550,1]
[null,null,"Իջևան համայնքի Մետաղագործների փողոցի բակերի, Բլբուլյան 75, 81,88, 89, 91, 93, 95 շենքերի բակերի ասֆալտապատում",0,57176.5,57176.5,1]
[null,null,"Իջևան համայնքի Իջևան բն․ հյուսիսային մուտքի «Մայր Հայաստան» հուշար-ձանին կից պուրակի և Սևքար բն․ գյուղամիջյան զբոսայգու հիմնանորոգում, բարեկարգում /«Մայր Հայաստան» հուշարձանին կից պուրակ/",0,22847,22847,1]
[null,null,"Նոյեմբերյան համայնքի Բերդավան բն․ ոռոգմ. համակարգի արդիականացում",0,135307.20000000001,131779.20000000001,0.97392599950335235]
[null,null,"Իջևան համայնքի Իջևան, Ազատամուտ, Աչաջուր, Այգեհովիտ, Գետահովիտ և Գանձաքար բնակավայրերի ճանապարհների և բակերի հիմնանորոգում, ասֆալտապատում /Աչաջուր բնակավայր, Արցախյան 1,2,3,4 շենքերի բակեր/",0,48650.3,48639.313000000002,0.99977416377699624]
[null,null,"Դիլիջան համայնքի Թեղուտ և Աղավնավանք բնակավայրերում ջրագծի կառուցում /Աղավնավանք/",0,118439.3,118439.27899999999,0.99999982269398746]
[null,null,"Իջևան համայնքի Իջևան բնակավայրի հյուսիսային մուտքի «Մայր Հայաստան» հուշարձանին կից պուրակի և Սևքար բնակավայրի գյուղամիջյան զբոսայգու հիմնանորոգում, բարեկարգում /Սևքար բնակավայր/",0,28350.400000000001,28350.400000000001,1]
[null,null,"Դիլիջան համայնքի Դիլիջան քաղաքում և բնակավայրերում թվով 24 կանգառների կառուցում",0,22336.7,22336.7,1]
[null,null,"Իջևան համայնքի Վազաշեն բն․ ոռոգման համակարգի արդիականացում",0,62230.1,58730.1,0.94375712075024787]
[null,null,"Իջևան համայնքի Իջևան բնակավայրի ջրահեռացման համակարգի և կոյուղագծերի կառուցում, Խաշթառակ բնակավայրի  ջրամատակարարման համակարգի արդիականացում /Խաշթառակ/",0,145333.29999999999,140713.29999999999,0.96821100188325726]
[null,null,"Բերդ համայնքի Բերդ բնակավայրի 12 ԲԲՇ-ի ընդհանուր օգտագործման տարածքների վերանորոգում էներգաարդյունավետության արդիականացում /Մաշտոցի 23/",0,39062.300000000003,39062.300000000003,1]
[null,null,"Դիլիջան համայնքի Դիլիջան բն․ Մյասնիկյան 117/4 հասցեից մինչև Գայի 90 հասցեն ընկած հատվածի և Կալինինի 256 հասցեից մինչև Այգեստան 1/1 հասցեն ընկած հատվածի հիմնանորոգում ասֆալտապատմամբ  ",0,220412.6,214189.92199999999,0.97176804774318704]
[null,12025,"Մարզերում առաջնահերթ լուծում պահանջող հիմնախնդիրների լուծում",{"$f":"D599+D602+D605+D608","v":0},{"$f":"E599+E602+E605+E608","v":842890.6},{"$f":"F599+F602+F605+F608","v":836029.18300000008},0.99185965889286232]
[null,null," այդ թվում` ըստ կատարողների",0]
[null,null,"ՀՀ Արագածոտնի մարզպետի աշխատակազմ",{"$f":"SUM(D600:D601)","v":0},{"$f":"SUM(E600:E601)","v":350000},{"$f":"SUM(F600:F601)","v":350000},1]
[null,null,"Թալին համայնքի մի շարք բնակավայրերում նախատեսվում է իրականացնել ասֆալտապատման աշխատանքներ",0,140000,140000,{"$f":"IF(F600=0,\"       \",F600/E600)","v":1}]
[null,null,"Թալին համայնքի ոռոգման և խմելու ջրի ներքին ցանցերի հիմնանորոգման ու կառուցման աշխատանքներ",0,210000,210000,1]
[null,null,"ՀՀ Գեղարքունիքի մարզպետի աշխատակազմ",{"$f":"SUM(D603:D604)","v":0},{"$f":"SUM(E603:E604)","v":90503.7},{"$f":"SUM(F603:F604)","v":83642.282999999996},0.92418633713317799]
[null,null,"Մարտունի քաղաքի Գարեգին Նժդեհ փողոցի կոյուղագծերի վերակառուցման աշխատանքներ",0,53833.5,53354.999000000003,{"$f":"IF(F603=0,\"       \",F603/E603)","v":0.99111146405119499}]
[null,null,"Գավառ քաղաքի թվով 5 բազմաբնակարան շենքերի տանիքների վերանորոգման աշխատանքներ",0,36670.199999999997,30287.284,0.82593724604719909]
[null,null,"ՀՀ Շիրակի մարզպետի աշխատակազմ",{"$f":"SUM(D606:D607)","v":0},{"$f":"SUM(E606:E607)","v":375530.5},{"$f":"SUM(F606:F607)","v":375530.5},1]
[null,null,"Արթիկ համայնքի «Արթիկի թիվ 3 մանկապարտեզ» ՀՈԱԿ-ի վերանորոգում",0,187068.4,187068.4,{"$f":"IF(F606=0,\"       \",F606/E606)","v":1}]
[null,null,"Արթիկ համայնքի «Արթիկի թիվ 4 մանկապարտեզ» ՀՈԱԿ-ի վերանորոգում ",0,188462.1,188462.1,1]
[null,null,"ՀՀ Վայոց ձորի մարզպետի աշխատակազմ",{"$f":"D609","v":0},{"$f":"E609","v":26856.400000000001},{"$f":"F609","v":26856.400000000001},1]
[null,null,"Ջերմուկ համայնքի ճոպանուղու գլխավոր ճոպանի հիմնանորոգում",0,26856.400000000001,26856.400000000001,{"$f":"IF(F609=0,\"       \",F609/E609)","v":1}]
[null,12026,"Ազդակիր բնակավայրերի և համայնքների բյուջեներին հատկացվող համայնքային մասհանումներ",{"$f":"D612","v":874726},{"$f":"E612","v":0},0,"       "]
[null,null," այդ թվում` ըստ կատարողների",null,null,null,"       "]
[null,null," ՀՀ կառավարություն",874726,0,0,"       "]
[" ՀՀ շրջակա միջավայրի նախարարություն",null,null,{"$f":"D614","v":602373.80000000005},{"$f":"E614","v":602373.80000000005},495968.39,0.82335651052552417]
[" 1133",null," Բնապահպանական ծրագրերի իրականացում համայնքներում",{"$f":"+D616","v":602373.80000000005},{"$f":"+E616","v":602373.80000000005},495968.39,0.82335651052552417]
[null,null," այդ թվում`",null,null,null,"       "]
[null," 12001"," Բնապահպանական սուբվենցիաներ համայնքներին",{"$f":"+D618","v":602373.80000000005},{"$f":"+E618","v":602373.80000000005},495968.39,0.82335651052552417]
[null,null," այդ թվում` ըստ կատարողների",null,null,null,"       "]
[null,null," ՀՀ շրջակա միջավայրի նախարարություն",602373.80000000005,602373.80000000005,495968.39,0.82335651052552417]
[]
[]
["¹ Հաստատված է «Հայաստանի Հանրապետության 2023 թվականի պետական բյուջեի մասին» Հայաստանի Հանրապետության օրենքով:              "]
["² Հաշվի են առնված հաշվետու ժամանակաշրջանում օրենսդրության համաձայն կատարված փոփոխությունները:"]